Workbook

Sheet 1. INFORMACION ACUMULADA
A2: VEEDURIA DISTRITAL - INFORMACIÓN GESTION CONTRACTUAL
A3: DEL 1 DE ENERO AL 31 DE DICIEMBRE DE 2021
A5: 1. Entidad | E5: FONDO DE DESARROLLO LOCAL DE ENGATIVA | H5: 2. Sector
A6: 3. Presupuesto Disponible Inversión Directa PREDIS (BOGDATA) | E6: 92297521737 | H6: 5. Presupuesto Disponible Funcionamiento PREDIS (BOGDATA) | I6: 4934248981 | AK6: 9. Nombre de quien diligencia el formato | AM6: MARIANA SANCHEZ SERNA
A7: 4. Presupuesto Comprometido de Inversión Directa según PREDIS (BOGDATA) | E7: 91838300514 | H7: 6. Presupuesto Comprometido Funcionamiento según PREDIS (BOGDATA) | I7: 4884781093 | AK7: Cargo | AM7: TECNICA CONTRATACION
AK8: Dependencia | AM8: CONTRATACION
A9: 7. Presupuesto Disponible Operación (Régimen Privado) | AK9: Teléfono
A10: 8. Presupuesto Comprometido Operación mediante contratos | AK10: Correo Electrónico | AM10: alcalde.engativa@gobiernobogota.gov.co Y mariana.sanchez@gobiernobogota.gov.co
A11: 1- INFORMACION GENERAL | Y11: 2- INFORMACION FINANCIERA | AE11: 3 - PLAZOS | AK11: 4. CESION | AO11: 5. ESTADO | AS11: 6. % Avance y/o cumplimiento
A12: 1 | B12: 2 | C12: 3 | E12: 4 | F12: 5 | G12: 6 | H12: 7 | I12: 8 | N12: 9 | O12: 10 | P12: 11 | Y12: 12 | Z12: 13 | AA12: 14 | AB12: 15 | AC12: 16 | AD12: 17 | AE12: 18 | AF12: 19 | AG12: 20 | AH12: 21 | AI12: 22 | AJ12: 23 | AK12: 24 | AL12: 25 | AM12: 26 | AN12: 27 | AO12: 28 | AS12: 29
A13: Número Contrato | B13: Año | C13: Número de proceso contractual SECOP | D13: Link proceso SECOP | E13: Tipo de contrato | F13: Modalidad de Selección | G13: Procedimiento o causal | H13: Objeto | I13: Afectación | J13: Plan de Desarrollo Distrital | K13: Número Programa | L13: Equivalencia número de programa | M13: Propósito | N13: Número Proyecto | O13: Número de proponentes | P13: Número de Identificación del contratista (Cédula o NIT sin puntos, comas ni caracteres especiales y sin digito de verificación) | Q13: Nombre del contratista (según el caso: nombres y apellidos o Razón social y Tipo societario) | R13: Naturaleza Jurídica | S13: Número de Identificación del integrante del Consorcio o U.T. (Cédula o NIT sin puntos, comas ni caracteres especiales y sin digito de verificación) | T13: Nombre del Integrante del Consorcio o U.T. y Tipo societario (Según el caso: nombres y apellidos o razón social y tipo societario) | U13: % Participación (indicar solo el numero del porcentaje, sin caracteres especiales) | V13: Número de Identificación del integrante del Consorcio o U.T. (Cédula o NIT sin puntos, comas ni caracteres especiales y sin digito de verificación) | W13: Nombre del Integrante del Consorcio o U.T. y Tipo societario (Según el caso: nombres y apellidos o razón social y tipo societario) | X13: % Participación (indicar solo el numero del porcentaje, sin caracteres especiales) | Y13: Valor Inicial del contrato | Z13: Valor total reducciones (En valor negativo) | AA13: Número de adiciones | AB13: Valor total de adiciones | AC13: Valor Final | AD13: Giros (Valor en pesos) | AE13: Fecha de suscripción (DD/MM/AAAA) | AF13: Fecha de inicio (DD/MM/AAAA) | AG13: Fecha de terminación (DD/MM/AAAA) | AH13: Plazo en días | AI13: Número de prórrogas | AJ13: Prorroga en días | AK13: Número de Identificación del cesionario (NIT sin digito de verificación) | AL13: Nombre cesionario | AM13: Fecha cesión (DD/MM/AAAA) | AN13: Valor cesión | AO13: Celebrado o por iniciar | AP13: En Ejecución | AQ13: Terminado | AR13: Liquidado | AS13: % Avance y/o Cumplimiento
A14: 397 | B14: 2021 | C14: FDLE-SMC-397-2021 | D14: https://community.secop.gov.co/Public/Tendering/OpportunityDetail/Index?noticeUID=CO1.NTC.2401453&isFromPublicArea=True&isModal=False | E14: Compraventa de bienes muebles | F14: Selección abreviada | G14: Selección abreviada por menor cuantía | H14: COMPRAVENTA DE IMPLEMENTOS PARA EL DESARROLLO DEL CONVENIO INTERADMINISTRATIVO 343 DE 2021 CELEBRADO ENTRE LA ORQUESTA FILARMÓNICA DE BOGOTÁ Y EL FONDO DE DESARROLLO LOCAL DE ENGATIVÁ. Se expide cdp con solicitud sipse 64628, memorando con solicitud 20216020032453 del 12 de noviembre de 2021 y se recibe para trámite el 12 de noviembre. Se expide crp con memorando 20216020032953 del 26 de noviembre de 2021 y se recibe para trámite el 30 de noviembre de 2021, revisado SIPSE y SECOP. | I14: Inversión | J14: Un Nuevo Contrato Social y Ambiental para la Bogotá del Siglo XXI | K14: 21 | L14: Creación y vida cotidiana: Apropiación ciudadana del arte, la cultura y el patrimonio, para la democracia cultural | M14: =IF(ISERROR(VLOOKUP(K14,Proposito_programa!$C$2:$E$59,3,FALSE))," ",VLOOKUP(K14,Proposito_programa!$C$2:$E$59,3,FALSE)) -> Propósito 1: Hacer un nuevo contrato social para incrementar la inclusión social, productiva y política | N14: 1595 | O14: 1 | P14: 901489264 | Q14: TIESTO EMPAQUES SAS | R14: Persona Jurídica | Y14: 2815796 | AA14: 0 | AB14: 0 | AC14: =+Y14+Z14+AB14 -> 2815796 | AD14: 0 | AE14: 2021-11-29 | AF14: 2021-12-01 | AG14: 2021-12-31 | AH14: 31 | AI14: 0 | AJ14: 0 | AQ14: X | AS14: =IF(ISERROR(AD14/AC14),"-",(AD14/AC14)) -> 0
A15: 4 | B15: 2021 | C15: FDLE-CD-004-2021 | D15: https://community.secop.gov.co/Public/Tendering/OpportunityDetail/Index?noticeUID=CO1.NTC.1767418&isFromPublicArea=True&isModal=False | E15: Contratos de prestación de servicios profesionales y de apoyo a la gestión | F15: Contratación directa | G15: Prestación de servicios profesionales y de apoyo a la gestión, o para la ejecución de trabajos artísticos que sólo puedan encomendarse a determinadas personas naturales; | H15: LA PRESTACION DE SERVICIOS AUXILIARES AL ÁREA DE GESTION DE DESARROLLO LOCAL,COMO APOYO A LA ATENCIÓN AL CIUDADANO EN LA GESTIÓN DE LAS LABORES DE ATENCIÓN INTEGRAL, FILTRO Y DIRECCIONAMIENTO DE LAS SOLICITUDES DE LA CIUDADANÍA QUE ACUDE DE MANERA PERSONAL A LAS INSTALACIONES DE LA ALCALDÍA LOCAL DE ENGATIVÁ, Se expide CDP con certificado de no existencia de personal 23346 del 20 de enero de 2021, solicitud SIPSE 54401, memorando con solicitud 20216020000683 recibido para tramite de fecha Ene 26/21. SE EXPIDE CRP POR SOLICITUD CON RADICADO N° 20216020005023 FEB. 22 2021 SE RECIBE PARA TRAIMITE EL 23 DE FEB-2021 REVISADO SECOP II Y SIPSE. | I15: Inversión | J15: Un Nuevo Contrato Social y Ambiental para la Bogotá del Siglo XXI | K15: 57 | L15: Gestión Pública Local | M15: =IF(ISERROR(VLOOKUP(K15,Proposito_programa!$C$2:$E$59,3,FALSE))," ",VLOOKUP(K15,Proposito_programa!$C$2:$E$59,3,FALSE)) -> Propósito 5: Construir Bogotá - Región con gobierno abierto, transparente y ciudadanía consciente | N15: 1623 | O15: 0 | P15: 1026259558 | Q15: NIDIA MILENA PEDRAZA GAONA | R15: Persona Natural | Y15: 4370000 | AA15: 0 | AB15: 0 | AC15: 4370000 | AD15: 4370000 | AE15: 2021-02-22 | AF15: 2021-02-23 | AG15: 2021-04-19 | AH15: 270 | AI15: 0 | AJ15: 0 | AQ15: X | AS15: 1
A16: 375 | B16: 2021 | C16: FDLE-SMC- 375- 2021 | D16: https://community.secop.gov.co/Public/Tendering/OpportunityDetail/Index?noticeUID=CO1.NTC.2271709&isFromPublicArea=True&isModal=False | E16: Compraventa de bienes muebles | F16: Selección abreviada | G16: Selección abreviada por menor cuantía | H16: ADQUISICIÓN DE UN DESFIBRILADOR EXTERNO AUTOMÁTICO (DEA) CON ACCESORIOS, INCLUIDA LA TRANSFERENCIA DE CONOCIMIENTO. Se expide cdp con solicitud sipse 60401 y con memorando 20216020019723 del 19 de julio de 2021 y se recibe para trámite el 22 de julio de 2021. Se expide crp por solicitud con radicado 20216020028163 del 11 de octubre de 2021 y se recibe para trámite el 13 de octubre, revisado Secop II y sipse. | I16: Inversión | J16: Un Nuevo Contrato Social y Ambiental para la Bogotá del Siglo XXI | K16: 57 | L16: Gestión Pública Local | M16: =IF(ISERROR(VLOOKUP(K16,Proposito_programa!$C$2:$E$59,3,FALSE))," ",VLOOKUP(K16,Proposito_programa!$C$2:$E$59,3,FALSE)) -> Propósito 5: Construir Bogotá - Región con gobierno abierto, transparente y ciudadanía consciente | N16: 1623 | O16: 1 | P16: 900222098 | Q16: INCAV COLOMBIA SAS | R16: Persona Jurídica | Y16: 4969950 | AA16: 0 | AB16: 0 | AC16: 4969950 | AD16: 4969950 | AE16: 2021-10-12 | AF16: 2021-10-13 | AG16: 2021-11-10 | AH16: 29 | AI16: 0 | AJ16: 0 | AQ16: X | AS16: 1
A17: 440 | B17: 2020 | C17: FDLE-SMC-449-2020 | D17: https://community.secop.gov.co/Public/Tendering/OpportunityDetail/Index?noticeUID=CO1.NTC.1566566&isFromPublicArea=True&isModal=False | E17: Contratos de prestación de servicios profesionales y de apoyo a la gestión | F17: Contratación directa | G17: Prestación de servicios profesionales y de apoyo a la gestión, o para la ejecución de trabajos artísticos que sólo puedan encomendarse a determinadas personas naturales; | H17: Adición #1 al contrato 440 de 2020 que tiene como objeto: REALIZAR LA INTERVENTORÍA TÉCNICA, JURÍDICA, ADMINISTRATIVA, FINANCIERA Y CONTABLE AL CONTRATO INTERADMINISTRATIVO QUE SE DESPRENDE DEL PROCESO CUYO OBJETO ES: ¿BRINDAR HERRAMIENTAS QUE FAVOREZCAN LA PROYECCIÓN PERSONAL A LAS PERSONAS CON DISCAPACIDAD DE LA LOCALIDAD DE ENGATIVÁ A TRAVÉS DEL OTORGAMIENTO DE DISPOSITIVOS DE ASISTENCIA PERSONAL AYUDAS TÉCNICAS-, NO INCLUIDAS EN EL PLAN DE BENEFICIOS EN SALUD (PBS), ACORDE A LAS CARACTERÍSTICAS Y NECESIDADES INDIVIDUALES DE LAS PERSONAS CON DISCAPACIDAD, SU FAMILIA, CUIDADOR O CUIDADORA EN CUMPLIMIENTO A LA LÍNEA DE INVERSIÓN. Se expide cdp con proceso sipse número 60102 y memorando solicitud 20216020018943 del 7 de julio de 2021 y se recibe para trámite el 8 de julio de 2021. SE EXPIDE CRP POR SOLICITUD CON RAD N° 20216020019623 13 DE JUL 2021 SE RECIBE PARA TRAMITE EL 14 D JULIO VERIFICADO SIPSE. | I17: Inversión | J17: Un Nuevo Contrato Social y Ambiental para la Bogotá del Siglo XXI | K17: 6 | L17: Sistema Distrital del Cuidado | M17: =IF(ISERROR(VLOOKUP(K17,Proposito_programa!$C$2:$E$59,3,FALSE))," ",VLOOKUP(K17,Proposito_programa!$C$2:$E$59,3,FALSE)) -> Propósito 1: Hacer un nuevo contrato social para incrementar la inclusión social, productiva y política | N17: 1601 | O17: 0 | P17: 52268409 | Q17: LORENA MENDEZ VALLEJO | R17: Persona Natural | Y17: 0 | AA17: 1 | AB17: 5100000 | AC17: 5100000 | AD17: 3400000 | AE17: 2021-01-14 | AF17: 2021-01-14 | AG17: 2021-01-14 | AQ17: X | AS17: 0.6666666667
A18: 393 | B18: 2021 | C18: FDLE-CD-393-2021 | D18: https://community.secop.gov.co/Public/Tendering/OpportunityDetail/Index?noticeUID=CO1.NTC.2375689&isFromPublicArea=True&isModal=False | E18: Contratos de prestación de servicios profesionales y de apoyo a la gestión | F18: Contratación directa | G18: Prestación de servicios profesionales y de apoyo a la gestión, o para la ejecución de trabajos artísticos que sólo puedan encomendarse a determinadas personas naturales; | H18: PRESTAR LOS SERVICIOS PROFESIONALES ÁREA DE GESTIÓN POLICIVA JURÍDICA Y/O ÁREA DE GESTIÓN DE DESARROLLO LOCAL, EN TEMAS DE SEGURIDAD, PREVENCIÓN Y CONVIVENCIA CIUDADANA EN LA LOCALIDAD, DE CONFORMIDAD CON EL MARCO NORMATIVO APLICABLE PARA LA MATERIA. Se expide cdp con certificado de no existencia personal 28471 del 3 de noviembre de 2021, solicitud sipse 63830, memorando con solicitud 20216020031713 del 4 de noviembre de 2021 y se recibe para trámite el 8 de noviembre de 2021. SE EXPIDE CRP POR SOLICITUD CON RAD. N° 20216020032203 DE 09-11-2021 SE RECIBE PARA TRAMITE EL 11-11-2021. VERIFICADO SECOP Y SIPSE. | I18: Inversión | J18: Un Nuevo Contrato Social y Ambiental para la Bogotá del Siglo XXI | K18: 48 | L18: Plataforma institucional para la seguridad y justicia | M18: =IF(ISERROR(VLOOKUP(K18,Proposito_programa!$C$2:$E$59,3,FALSE))," ",VLOOKUP(K18,Proposito_programa!$C$2:$E$59,3,FALSE)) -> Propósito 3: Inspirar confianza y legitimidad para vivir sin miedo y ser epicentro de cultura ciudadana, paz y reconciliación | N18: 1620 | O18: 0 | P18: 1057579523 | Q18: JAVIER PRIETO TRISTANCHO | R18: Persona Natural | Y18: 6555000 | AA18: 0 | AB18: 0 | AC18: 6555000 | AD18: 2913333 | AE18: 2021-11-10 | AF18: 2021-11-11 | AG18: 2021-12-25 | AH18: 45 | AI18: 0 | AJ18: 0 | AQ18: X | AS18: 0.4444443936
A19: 394 | B19: 2021 | C19: FDLE-CD-394-2021 | D19: https://community.secop.gov.co/Public/Tendering/OpportunityDetail/Index?noticeUID=CO1.NTC.2403870&isFromPublicArea=True&isModal=False | E19: Contratos de prestación de servicios profesionales y de apoyo a la gestión | F19: Contratación directa | G19: Prestación de servicios profesionales y de apoyo a la gestión, o para la ejecución de trabajos artísticos que sólo puedan encomendarse a determinadas personas naturales; | H19: PRESTAR LOS SERVICIOS PROFESIONALES ÁREA DE GESTIÓN POLICIVA JURÍDICA Y/O ÁREA DE GESTIÓN DE DESARROLLO LOCAL, EN TEMAS DE SEGURIDAD, PREVENCIÓN Y CONVIVENCIA CIUDADANA EN LA LOCALIDAD, DE CONFORMIDAD CON EL MARCO NORMATIVO APLICABLE PARA LA MATERIA. Se expide cdp con certificado de no existencia personal 28471 del 3 de noviembre de 2021, solicitud sipse 63830, memorando con solicitud 20216020031703 del 4 de noviembre de 2021 y se recibe para trámite el 8 de noviembre de 2021. SE EXPIDE CRP POR SOLICITUD CON RAD. N° 20216020032723 de nov 11-2021 SE RECIBE PARA TRMITE EL 22 DE NOV. 2021 VERIFICADO SIPSE. | I19: Inversión | J19: Un Nuevo Contrato Social y Ambiental para la Bogotá del Siglo XXI | K19: 48 | L19: Plataforma institucional para la seguridad y justicia | M19: =IF(ISERROR(VLOOKUP(K19,Proposito_programa!$C$2:$E$59,3,FALSE))," ",VLOOKUP(K19,Proposito_programa!$C$2:$E$59,3,FALSE)) -> Propósito 3: Inspirar confianza y legitimidad para vivir sin miedo y ser epicentro de cultura ciudadana, paz y reconciliación | N19: 1620 | O19: 0 | P19: 41721560 | Q19: AIDA LILIA HIPUS DE TACHIRA | R19: Persona Natural | Y19: 6555000 | AA19: 0 | AB19: 0 | AC19: 6555000 | AD19: 0 | AE19: 2021-11-19 | AF19: 2021-11-23 | AG19: 2022-01-06 | AH19: 45 | AI19: 0 | AJ19: 0 | AQ19: X | AS19: 0
A20: 82171 | B20: 2021 | C20: CCE-GS-2018-1 | D20: https://colombiacompra.gov.co/tienda-virtual-del-estado-colombiano/ordenes-compra/82640/1 | E20: Suministro | F20: Selección abreviada | G20: Acuerdo marco de precios | H20: ADQUIRIR EQUIPOS TECNOLOGICOS PARA LA ESTACION DECIMA DE POLICIA DE ENGATIVÁ. Se expide cdp con solicitud sipse 66348 con memorando 20216020033303 del 6 de diciembre de 2021 y se recibe para trámite el 7 de diciembre de 2021. SE EXPIDE CRP POR SOLICITUD CON RAD. N°20216020033683 DE 10 DE DIC -2021SE RECIBE PARA TRAMITE EL 13 DE DIC DE 2021. | I20: Inversión | J20: Un Nuevo Contrato Social y Ambiental para la Bogotá del Siglo XXI | K20: 48 | L20: Plataforma institucional para la seguridad y justicia | M20: =IF(ISERROR(VLOOKUP(K20,Proposito_programa!$C$2:$E$59,3,FALSE))," ",VLOOKUP(K20,Proposito_programa!$C$2:$E$59,3,FALSE)) -> Propósito 3: Inspirar confianza y legitimidad para vivir sin miedo y ser epicentro de cultura ciudadana, paz y reconciliación | N20: 1620 | P20: 900564459 | Q20: GRUPO EMPRESARIAL CREAR DE COLOMBIA S A S | R20: Persona Jurídica | Y20: 6750718 | AA20: 0 | AB20: 0 | AC20: 6750718 | AD20: 0 | AE20: 2021-12-14 | AF20: 2021-12-14 | AG20: 2022-02-14 | AH20: 90 | AI20: 0 | AJ20: 0 | AP20: X | AS20: 0
A21: 377 | B21: 2021 | C21: FDLE-CD-377-2021 | D21: https://community.secop.gov.co/Public/Tendering/OpportunityDetail/Index?noticeUID=CO1.NTC.2292904&isFromPublicArea=True&isModal=False | E21: Contratos de prestación de servicios profesionales y de apoyo a la gestión | F21: Contratación directa | G21: Prestación de servicios profesionales y de apoyo a la gestión, o para la ejecución de trabajos artísticos que sólo puedan encomendarse a determinadas personas naturales; | H21: PRESTACIÓN DE SERVICIOS AUXILIARES EN LA CONDUCCIÓN DE LOS VEHÍCULOS DE CARGA PESADA, PRINCIPALMENTE LA MOTONIVELADORA Y/O RETROEXCAVADORA Y/O TBR DE PROPIEDAD Y/O TENENCIA DEL FONDO DE DESARROLLO LOCAL DE ENGATIVÁ. Se expide cdp con certificado de no existencia personal 27915 del 8 de septiembre de 2021, solicitud sipse 61831, memorando con solicitud 20216020022993 del 13 de septiembre de 2021 y se recibe para trámite el 14 de septiembre de 2021. SE EXPIDE CRP POR SOLICTUD CON RAD. N° 20216020026573 DE OCT.04-2021 SE RECIBE PARA TRÁMITE EL 08 DE OCT.2021. VERIFICADO SECOP II Y SIPSE. | I21: Inversión | J21: Un Nuevo Contrato Social y Ambiental para la Bogotá del Siglo XXI | K21: 49 | L21: Movilidad segura, sostenible y accesible | M21: =IF(ISERROR(VLOOKUP(K21,Proposito_programa!$C$2:$E$59,3,FALSE))," ",VLOOKUP(K21,Proposito_programa!$C$2:$E$59,3,FALSE)) -> Propósito 4: Hacer de Bogotá Región un modelo de movilidad multimodal, incluyente y sostenible | N21: 1621 | O21: 0 | P21: 1077975167 | Q21: ANDRES HERNANDEZ DUQUE | R21: Persona Natural | Y21: 6900000 | AA21: 0 | AB21: 0 | AC21: 6900000 | AD21: 4063333 | AE21: 2021-10-05 | AF21: 2021-10-08 | AG21: 2022-01-07 | AH21: 90 | AI21: 0 | AJ21: 0 | AQ21: X | AS21: 0.5888888406
A22: 381 | B22: 2021 | C22: FDLE-CD-381-2021 | D22: https://community.secop.gov.co/Public/Tendering/OpportunityDetail/Index?noticeUID=CO1.NTC.2326166&isFromPublicArea=True&isModal=False | E22: Contratos de prestación de servicios profesionales y de apoyo a la gestión | F22: Contratación directa | G22: Prestación de servicios profesionales y de apoyo a la gestión, o para la ejecución de trabajos artísticos que sólo puedan encomendarse a determinadas personas naturales; | H22: PRESTACIÓN DE SERVICIOS AUXILIARES EN LA CONDUCCIÓN DE LOS VEHÍCULOS DE CARGA PESADA, VOLQUETAS SENCILLA O DOBLE TROQUE, VEHÍCULO ARTICULADO, CAMIÓN Y VEHÍCULOS EN GENERAL DE PROPIEDAD Y/O TENENCIA DEL FONDO DE DESARROLLO LOCAL DE ENGATIVÁ. Se expide cdp con certificado de no existencia personal 28028 del 17 de septiembre de 2021, solicitud sipse 62370, memorando con solicitud 20216020023993 del 21 de septiembre de 2021 y se recibe para trámite el 21 de septiembre de 2021. SE EXPIDE CRP POR SOLICITID CON RAD.N° 20216020030493 DE OCT.25-2021 | I22: Inversión | J22: Un Nuevo Contrato Social y Ambiental para la Bogotá del Siglo XXI | K22: 49 | L22: Movilidad segura, sostenible y accesible | M22: =IF(ISERROR(VLOOKUP(K22,Proposito_programa!$C$2:$E$59,3,FALSE))," ",VLOOKUP(K22,Proposito_programa!$C$2:$E$59,3,FALSE)) -> Propósito 4: Hacer de Bogotá Región un modelo de movilidad multimodal, incluyente y sostenible | N22: 1621 | O22: 0 | P22: 1030645870 | Q22: SEBASTIAN AVILA DUQUE | R22: Persona Natural | Y22: 6900000 | AA22: 0 | AB22: 0 | AC22: 6900000 | AD22: 2530000 | AE22: 2021-10-22 | AF22: 2021-10-28 | AG22: 2022-01-27 | AH22: 90 | AI22: 0 | AJ22: 0 | AQ22: X | AS22: 0.3666666667
A23: 224 | B23: 2021 | C23: FDLE-SMC-224-2021 | D23: https://community.secop.gov.co/Public/Tendering/OpportunityDetail/Index?noticeUID=CO1.NTC.1975035&isFromPublicArea=True&isModal=False | E23: Suministro | F23: Contratación mínima cuantia | G23: No aplica | H23: ADQUISICIÓN DE CHAQUETAS INSTITUCIONALES PARA EL PERSONAL DE LA ALCALDÍA LOCAL DE ENGATIVÁ EN CUMPLIMIENTO DE SUS FUNCIONES Y EN EL MARCO DE LA ESTRATEGIA DE FORTALECIMIENTO INSTITUCIONAL. Se expide cdp con solicitud sipse 58845, memorando con solicitud 20216020014723 del 10 de mayo de 2021 y se recibe para trámite el 12 de mayo de 2021. SE EXPIDE CRP POR SOLICITUD CON RAD. N° 20216020016083 01 DE JUNIO-2021 SE RECIBE PARA TRAMITE EL 03 DE JUNIO 2021 VERIFICADO SIPSE. | I23: Inversión | J23: Un Nuevo Contrato Social y Ambiental para la Bogotá del Siglo XXI | K23: 57 | L23: Gestión Pública Local | M23: =IF(ISERROR(VLOOKUP(K23,Proposito_programa!$C$2:$E$59,3,FALSE))," ",VLOOKUP(K23,Proposito_programa!$C$2:$E$59,3,FALSE)) -> Propósito 5: Construir Bogotá - Región con gobierno abierto, transparente y ciudadanía consciente | N23: 1623 | O23: 32 | P23: 901466000 | Q23: FUNDACIÓN JÓVENES CON UN PROPÓSITO DE AM OR | R23: Persona Jurídica | Y23: 7425600 | AA23: 0 | AB23: 0 | AC23: 7425600 | AD23: 7425600 | AE23: 2021-06-01 | AF23: 2021-06-03 | AG23: 2021-09-02 | AH23: 90 | AI23: 0 | AJ23: 0 | AQ23: X | AS23: 1
A24: 147 | B24: 2021 | C24: FDLE-CD-147-2021 | D24: https://community.secop.gov.co/Public/Tendering/OpportunityDetail/Index?noticeUID=CO1.NTC.1847767&isFromPublicArea=True&isModal=False | E24: Contratos de prestación de servicios profesionales y de apoyo a la gestión | F24: Contratación directa | G24: Prestación de servicios profesionales y de apoyo a la gestión, o para la ejecución de trabajos artísticos que sólo puedan encomendarse a determinadas personas naturales; | H24: APOYAR AL ALCALDE (SA) LOCAL EN LA PROMOCIÓN, ACOMPAÑAMIENTO, COORDINACIÓN Y ATENCIÓN DE LAS INSTANCIAS DE COORDINACIÓN INTERINSTITUCIONALES Y LAS INSTANCIAS DE PARTICIPACIÓN LOCALES, ASÍ COMO LOS PROCESOS COMUNITARIOS EN LA LOCALIDAD. Se expide CDP con certificado de no existencia personal 23998 del 29 de enero de 2021, solicitud sipse 54601, memorando con solicitud 20216020003533 con fecha de solicitud del 11 de febrero de 2021 y se recibe para trámite el 15 de febrero de 2021. SE EXPIDE CRP POR SOLICITUD CON RAD. N° 20216020009533 DEL 17 MARZO-2021SE RECIBE PARA TRAMITE EL 17 DE MARZO REVISADO SECOP II Y SIPSE. | I24: Inversión | J24: Un Nuevo Contrato Social y Ambiental para la Bogotá del Siglo XXI | K24: 55 | L24: Fortalecimiento de Cultura Ciudadana y su institucionalidad | M24: =IF(ISERROR(VLOOKUP(K24,Proposito_programa!$C$2:$E$59,3,FALSE))," ",VLOOKUP(K24,Proposito_programa!$C$2:$E$59,3,FALSE)) -> Propósito 5: Construir Bogotá - Región con gobierno abierto, transparente y ciudadanía consciente | N24: 1622 | O24: 0 | P24: 1017183650 | Q24: SUSANA LONDOÑO RODRIGUEZ | R24: Persona Natural | Y24: 7500000 | AA24: 0 | AB24: 0 | AC24: 7500000 | AD24: 7500000 | AE24: 2021-03-16 | AF24: 2021-03-18 | AG24: 2021-05-03 | AH24: 270 | AI24: 0 | AJ24: 0 | AQ24: X | AS24: 1
A25: 363 | B25: 2021 | C25: FDLE-CD-363-2021 | D25: https://community.secop.gov.co/Public/Tendering/OpportunityDetail/Index?noticeUID=CO1.NTC.2165262&isFromPublicArea=True&isModal=False | E25: Contratos de prestación de servicios profesionales y de apoyo a la gestión | F25: Contratación directa | G25: Prestación de servicios profesionales y de apoyo a la gestión, o para la ejecución de trabajos artísticos que sólo puedan encomendarse a determinadas personas naturales; | H25: PRESTACIÓN DE SERVICIOS DE APOYO EN LA ADMINISTRACIÓN DE ESCENARIOS DEPORTIVOS QUE SEAN DE PROPIEDAD O RESPONSABILIDAD DE LA ALCALDÍA LOCAL DE ENGATIVÁ. Se expide cdp con certificado de no existencia personal 27305 del 2 de agosto 2021, solicitud sipse 60483, memorando con solicitud 20216020020603 del 4 de agosto de 2021 y se recibe para trámite el 5 de agosto de 2021. SE EXPIDE CRP POR SOLICITUD CON RAD. N° 20216020021523 DE AGO 13 2021 SE RECIBE PARA TRAMITE EL 18 DE AGOSTO 2021 VERIFICADO SIPSE. | I25: Inversión | J25: Un Nuevo Contrato Social y Ambiental para la Bogotá del Siglo XXI | K25: 57 | L25: Gestión Pública Local | M25: =IF(ISERROR(VLOOKUP(K25,Proposito_programa!$C$2:$E$59,3,FALSE))," ",VLOOKUP(K25,Proposito_programa!$C$2:$E$59,3,FALSE)) -> Propósito 5: Construir Bogotá - Región con gobierno abierto, transparente y ciudadanía consciente | N25: 1623 | O25: 0 | P25: 1000257454 | Q25: LESSLY CAROLAIN GONZALEZ BOHORQUEZ | R25: Persona Natural | Y25: 7500000 | AA25: 0 | AB25: 0 | AC25: 7500000 | AD25: 5150000 | AE25: 2021-08-13 | AF25: 2021-08-18 | AG25: 2022-01-17 | AH25: 150 | AI25: 0 | AJ25: 0 | AQ25: X | AS25: 0.6866666667
A26: 374 | B26: 2021 | C26: FDLE-CD-374-2021 | D26: https://community.secop.gov.co/Public/Tendering/OpportunityDetail/Index?noticeUID=CO1.NTC.2262055&isFromPublicArea=True&isModal=False | E26: Contratos de prestación de servicios profesionales y de apoyo a la gestión | F26: Contratación directa | G26: Prestación de servicios profesionales y de apoyo a la gestión, o para la ejecución de trabajos artísticos que sólo puedan encomendarse a determinadas personas naturales; | H26: LA PRESTACIÓN DE SERVICIOS TÉCNICOS DE APOYO LOGÍSTICO AL ÁREA DE GESTIÓN DE DESARROLLO LOCAL, EN LOS EVENTOS Y DEMÁS ACTIVIDADES QUE SE REALICEN EN LA LOCALIDAD DE ENGATIVÁ. Se expide cdp con certificado de no existencia personal 27933 del 09 de septiembre de 2021, solicitud sipse 61820, memorando con solicitud 20216020022893 del 10 de septiembre de 2021 y se recibe para trámite el 10 de septiembre de 2021. SE EXPIDE CRP POR SOLICITUD CON RAD. N°20216020023953 DE SEPT.20.2021 RECIBIDO PARA TRÁMITE SEP.21.2021 VERIFICADO SIPSE Y SECOP II. | I26: Inversión | J26: Un Nuevo Contrato Social y Ambiental para la Bogotá del Siglo XXI | K26: 57 | L26: Gestión Pública Local | M26: =IF(ISERROR(VLOOKUP(K26,Proposito_programa!$C$2:$E$59,3,FALSE))," ",VLOOKUP(K26,Proposito_programa!$C$2:$E$59,3,FALSE)) -> Propósito 5: Construir Bogotá - Región con gobierno abierto, transparente y ciudadanía consciente | N26: 1623 | O26: 0 | P26: 1014204046 | Q26: ANDRES FELIPE ARAGON ARANGO | R26: Persona Natural | Y26: 9000000 | AA26: 0 | AB26: 0 | AC26: 9000000 | AD26: 7000000 | AE26: 2021-09-20 | AF26: 2021-09-21 | AG26: 2021-12-20 | AH26: 90 | AI26: 0 | AJ26: 0 | AQ26: X | AS26: 0.7777777778
A27: 382 | B27: 2021 | C27: FDLE-CD-382-2021 | D27: https://community.secop.gov.co/Public/Tendering/OpportunityDetail/Index?noticeUID=CO1.NTC.2315051&isFromPublicArea=True&isModal=False | E27: Contratos de prestación de servicios profesionales y de apoyo a la gestión | F27: Contratación directa | G27: Prestación de servicios profesionales y de apoyo a la gestión, o para la ejecución de trabajos artísticos que sólo puedan encomendarse a determinadas personas naturales; | H27: LA PRESTACIÓN DE SERVICIOS TÉCNICOS DE APOYO LOGÍSTICO AL ÁREA DE GESTIÓN DE DESARROLLO LOCAL, EN LOS EVENTOS QUE SE REALICEN EN LA LOCALIDAD DE ENGATIVÁ. Se expide cdp con certificado de no existencia personal 27932 del 9 de septiembre de 2021, solicitud sipse 61815, memorando con solicitud 20216020022903 del 10 de septiembre de 2021 y se recibe para trámite el 10 de septiembre de 2021. SE EXPIDE CRP POR SOLICITUD CON RAD. N° 20216020029383 DE 14-10-2021 VERIFICADO SECOP II Y SIPSE. | I27: Inversión | J27: Un Nuevo Contrato Social y Ambiental para la Bogotá del Siglo XXI | K27: 57 | L27: Gestión Pública Local | M27: =IF(ISERROR(VLOOKUP(K27,Proposito_programa!$C$2:$E$59,3,FALSE))," ",VLOOKUP(K27,Proposito_programa!$C$2:$E$59,3,FALSE)) -> Propósito 5: Construir Bogotá - Región con gobierno abierto, transparente y ciudadanía consciente | N27: 1623 | O27: 0 | P27: 1014191294 | Q27: JUAN MANUEL SALAMANCA MARTINEZ | R27: Persona Natural | Y27: 9000000 | AA27: 0 | AB27: 0 | AC27: 9000000 | AD27: 4700000 | AE27: 2021-10-14 | AF27: 2021-10-14 | AG27: 2022-01-13 | AH27: 90 | AI27: 0 | AJ27: 0 | AQ27: X | AS27: 0.5222222222
A28: 360 | B28: 2021 | C28: FDLE-CD-360-2021 | D28: https://community.secop.gov.co/Public/Tendering/OpportunityDetail/Index?noticeUID=CO1.NTC.2162875&isFromPublicArea=True&isModal=False | E28: Contratos de prestación de servicios profesionales y de apoyo a la gestión | F28: Contratación directa | G28: Prestación de servicios profesionales y de apoyo a la gestión, o para la ejecución de trabajos artísticos que sólo puedan encomendarse a determinadas personas naturales; | H28: PRESTACIÓN DE SERVICIOS DE APOYO EN LA EJECUCIÓN DE ACTIVIDADES AUXILIARES DE OBRA CIVIL, QUE CONLLEVEN AL MEJORAMIENTO Y ADECUACIÓN DEL ESPACIO PÚBLICO Y MALLA VIAL DE LA LOCALIDAD DE ENGATIVÁ. Se expide CDP con certificado de No existencia de personal 27120 del 16 de julio de 2021, solicitud SIPSE 60060, memorando con solicitud 20216020019923 del 21 de julio de 2021 y se recibe para trámite el 22 de julio de 2021. SE EXPIDE CRP POR SOLICITUD CON RAD. N° 20216020021353 DE AGO.11.2021 SE RECIBE PARA TRAMITE EL 11 DE AGO.2021. | I28: Inversión | J28: Un Nuevo Contrato Social y Ambiental para la Bogotá del Siglo XXI | K28: 49 | L28: Movilidad segura, sostenible y accesible | M28: =IF(ISERROR(VLOOKUP(K28,Proposito_programa!$C$2:$E$59,3,FALSE))," ",VLOOKUP(K28,Proposito_programa!$C$2:$E$59,3,FALSE)) -> Propósito 4: Hacer de Bogotá Región un modelo de movilidad multimodal, incluyente y sostenible | N28: 1621 | O28: 0 | P28: 1013640141 | Q28: JEFERSSON ALBERTO LOPEZ RAMOS | R28: Persona Natural | Y28: 10000000 | AA28: 0 | AB28: 0 | AC28: 10000000 | AD28: 7200000 | AE28: 2021-08-11 | AF28: 2021-08-13 | AG28: 2022-01-12 | AH28: 150 | AI28: 0 | AJ28: 0 | AQ28: X | AS28: 0.72
A29: 362 | B29: 2021 | C29: FDLE-CD-362-2021 | D29: https://community.secop.gov.co/Public/Tendering/OpportunityDetail/Index?noticeUID=CO1.NTC.2163066&isFromPublicArea=True&isModal=False | E29: Contratos de prestación de servicios profesionales y de apoyo a la gestión | F29: Contratación directa | G29: Prestación de servicios profesionales y de apoyo a la gestión, o para la ejecución de trabajos artísticos que sólo puedan encomendarse a determinadas personas naturales; | H29: PRESTACIÓN DE SERVICIOS DE APOYO EN LA EJECUCIÓN DE ACTIVIDADES AUXILIARES DE OBRA CIVIL, QUE CONLLEVEN AL MEJORAMIENTO Y ADECUACIÓN DEL ESPACIO PÚBLICO Y MALLA VIAL DE LA LOCALIDAD DE ENGATIVÁ. Se expide CDP con certificado de No existencia de personal 27120 del 16 de julio de 2021, solicitud SIPSE 60060, memorando con solicitud 20216020019913 del 21 de julio de 2021 y se recibe para trámite el 22 de julio de 2021. SE EXPIDE CRP POR SOLICITUD CON RAD N° 20216020021373 DE 11-08-2021 VERIFICADO SIPSE. | I29: Inversión | J29: Un Nuevo Contrato Social y Ambiental para la Bogotá del Siglo XXI | K29: 49 | L29: Movilidad segura, sostenible y accesible | M29: =IF(ISERROR(VLOOKUP(K29,Proposito_programa!$C$2:$E$59,3,FALSE))," ",VLOOKUP(K29,Proposito_programa!$C$2:$E$59,3,FALSE)) -> Propósito 4: Hacer de Bogotá Región un modelo de movilidad multimodal, incluyente y sostenible | N29: 1621 | O29: 0 | P29: 1003968792 | Q29: WILHEN ANDRES LOZANO VELASQUEZ | R29: Persona Natural | Y29: 10000000 | AA29: 0 | AB29: 0 | AC29: 10000000 | AD29: 7333333 | AE29: 2021-08-11 | AF29: 2021-08-11 | AG29: 2022-01-10 | AH29: 150 | AI29: 0 | AJ29: 0 | AQ29: X | AS29: 0.7333333
A30: 369 | B30: 2021 | C30: FDLE-CD-369-2021 | D30: https://community.secop.gov.co/Public/Tendering/OpportunityDetail/Index?noticeUID=CO1.NTC.2204385&isFromPublicArea=True&isModal=False | E30: Contratos de prestación de servicios profesionales y de apoyo a la gestión | F30: Contratación directa | G30: Prestación de servicios profesionales y de apoyo a la gestión, o para la ejecución de trabajos artísticos que sólo puedan encomendarse a determinadas personas naturales; | H30: PRESTACIÓN DE SERVICIOS DE APOYO EN LA EJECUCIÓN DE ACTIVIDADES AUXILIARES DE OBRA CIVIL, QUE CONLLEVEN AL MEJORAMIENTO Y ADECUACIÓN DEL ESPACIO PÚBLICO Y MALLA VIAL DE LA LOCALIDAD DE ENGATIVÁ. Se expide CDP con certificado de No existencia de personal 27120 del 16 de julio de 2021, solicitud SIPSE 60060, memorando con solicitud 20216020019903 del 21 de julio de 2021 y se recibe para trámite el 22 de julio de 2021. SE EXPIDE CRP POR SOLICITUD CON RAD.N°20216020022293 02 DE SEPT SE RECIBE PARA TRÁMITE EL 03 DE SEPT 2021 VERIFICADO SIPSE. | I30: Inversión | J30: Un Nuevo Contrato Social y Ambiental para la Bogotá del Siglo XXI | K30: 49 | L30: Movilidad segura, sostenible y accesible | M30: =IF(ISERROR(VLOOKUP(K30,Proposito_programa!$C$2:$E$59,3,FALSE))," ",VLOOKUP(K30,Proposito_programa!$C$2:$E$59,3,FALSE)) -> Propósito 4: Hacer de Bogotá Región un modelo de movilidad multimodal, incluyente y sostenible | N30: 1621 | O30: 0 | P30: 1143356843 | Q30: KIBERMAN VALETA MARIMON | R30: Persona Natural | Y30: 10000000 | AA30: 0 | AB30: 0 | AC30: 10000000 | AD30: 5866667 | AE30: 2021-09-01 | AF30: 2021-09-03 | AG30: 2022-02-02 | AH30: 150 | AI30: 0 | AJ30: 0 | AP30: X | AS30: 0.5866667
A31: 368 | B31: 2021 | C31: FDLE-CD-368-2021 | D31: https://community.secop.gov.co/Public/Tendering/OpportunityDetail/Index?noticeUID=CO1.NTC.2200546&isFromPublicArea=True&isModal=False | E31: Contratos de prestación de servicios profesionales y de apoyo a la gestión | F31: Contratación directa | G31: Prestación de servicios profesionales y de apoyo a la gestión, o para la ejecución de trabajos artísticos que sólo puedan encomendarse a determinadas personas naturales; | H31: APOYAR ADMINISTRATIVA Y ASISTENCIALMENTE A LAS INSPECCIONES DE POLICÍA DE LA LOCALIDAD. Se expide CDP con certificado de No existencia de personal 27530 del 13 de agosto de 2021, solicitud SIPSE 60993, memorando con solicitud 20216020021643 del 19 de agosto de 2021 y se recibe para trámite el 20 de agosto de 2021. SE EXPIDE CRP POR SOLICITUD CON RAD. N° 2021602022103 DE AGO.26.2021 SE RECIBE PARA TRÁMITE EL 27 DE AGO.2021 SE VERIFICA SISPSE. | I31: Inversión | J31: Un Nuevo Contrato Social y Ambiental para la Bogotá del Siglo XXI | K31: 57 | L31: Gestión Pública Local | M31: =IF(ISERROR(VLOOKUP(K31,Proposito_programa!$C$2:$E$59,3,FALSE))," ",VLOOKUP(K31,Proposito_programa!$C$2:$E$59,3,FALSE)) -> Propósito 5: Construir Bogotá - Región con gobierno abierto, transparente y ciudadanía consciente | N31: 1624 | O31: 0 | P31: 23629633 | Q31: BLANCA SOFIA HEREDIA MARTIN | R31: Persona Natural | Y31: 10350000 | AA31: 0 | AB31: 0 | AC31: 10350000 | AD31: 7206667 | AE31: 2021-08-27 | AF31: 2021-08-27 | AG31: 2022-01-11 | AH31: 136 | AI31: 0 | AJ31: 0 | AQ31: X | AS31: 0.6962963285
A32: 83880 | B32: 2021 | C32: CCE-GS-2014-1 | D32: https://colombiacompra.gov.co/tienda-virtual-del-estado-colombiano/ordenes-compra/83880 | E32: Suministro | F32: Selección abreviada | G32: Acuerdo marco de precios | H32: ADQUIRIR EQUIPOS TECNOLOGICOS (TELEVISORES) PARA LA ESTACION DECIMA DE POLICIA DE ENGATIVÁ. Se expide cdp con solicitud sipse 68013 y con memorando 20216020035633 del 28 de diciembre de 2021 y se recibe para trámite el 28 de diciembre de 2021. SE EXPIDE CRP POR SOLICITUD CON RAD. N° 20216020035873 DEL 29.12.2021 SE RECIBE PARA TRAMITE EL 30 .12.21. | I32: Inversión | J32: Un Nuevo Contrato Social y Ambiental para la Bogotá del Siglo XXI | K32: 48 | L32: Plataforma institucional para la seguridad y justicia | M32: =IF(ISERROR(VLOOKUP(K32,Proposito_programa!$C$2:$E$59,3,FALSE))," ",VLOOKUP(K32,Proposito_programa!$C$2:$E$59,3,FALSE)) -> Propósito 3: Inspirar confianza y legitimidad para vivir sin miedo y ser epicentro de cultura ciudadana, paz y reconciliación | N32: 1620 | O32: 0 | P32: 890900943 | Q32: COLOMBIANA DE COMERCIO SA | R32: Persona Jurídica | Y32: 11504500 | AA32: 0 | AB32: 0 | AC32: 11504500 | AD32: 0 | AE32: 2021-12-29 | AH32: 30 | AI32: 0 | AJ32: 0 | AO32: X | AP32: X | AS32: 0
A33: 338 | B33: 2021 | C33: FDLE-CD-338-2021 | D33: https://community.secop.gov.co/Public/Tendering/OpportunityDetail/Index?noticeUID=CO1.NTC.2038525&isFromPublicArea=True&isModal=False | E33: Contratos de prestación de servicios profesionales y de apoyo a la gestión | F33: Contratación directa | G33: Prestación de servicios profesionales y de apoyo a la gestión, o para la ejecución de trabajos artísticos que sólo puedan encomendarse a determinadas personas naturales; | H33: PRESTACIÓN DE SERVICIOS DE APOYO EN LA EJECUCIÓN DE ACTIVIDADES AUXILIARES DE OBRA CIVIL, QUE CONLLEVEN AL MEJORAMIENTO Y ADECUACIÓN DEL ESPACIO PÚBLICO Y MALLA VIAL DE LA LOCALIDAD DE ENGATIVÁ. Se expide cdp con certificado de no existencia personal 26377 del 28 abril 2021, solicitud sipse 58605, memorando con solicitud 20216020013663 con fecha del 28 de abril de 2021 y se recibe para trámite el 3 de mayo de 2021. SE EXPIDE CRP POR SOLICITUD CON RAD. N° 20216020017473 18-06-2021 SE RECIBE PARA TRAMITE EL 21 DE JUNIO 2021 VERIFICADO SECOP II. | I33: Inversión | J33: Un Nuevo Contrato Social y Ambiental para la Bogotá del Siglo XXI | K33: 49 | L33: Movilidad segura, sostenible y accesible | M33: =IF(ISERROR(VLOOKUP(K33,Proposito_programa!$C$2:$E$59,3,FALSE))," ",VLOOKUP(K33,Proposito_programa!$C$2:$E$59,3,FALSE)) -> Propósito 4: Hacer de Bogotá Región un modelo de movilidad multimodal, incluyente y sostenible | N33: 1621 | O33: 0 | P33: 79951815 | Q33: GERARDO MARTINEZ LEMUS | R33: Persona Natural | Y33: 12000000 | AA33: 0 | AB33: 0 | AC33: 12000000 | AD33: 10600000 | AE33: 2021-06-17 | AF33: 2021-06-23 | AG33: 2021-12-22 | AH33: 180 | AI33: 0 | AJ33: 0 | AQ33: X | AS33: 0.8833333333
A34: 339 | B34: 2021 | C34: FDLE-CD-339-2021 | D34: https://community.secop.gov.co/Public/Tendering/OpportunityDetail/Index?noticeUID=CO1.NTC.2033719&isFromPublicArea=True&isModal=False | E34: Contratos de prestación de servicios profesionales y de apoyo a la gestión | F34: Contratación directa | G34: Prestación de servicios profesionales y de apoyo a la gestión, o para la ejecución de trabajos artísticos que sólo puedan encomendarse a determinadas personas naturales; | H34: PRESTACIÓN DE SERVICIOS DE APOYO EN LA EJECUCIÓN DE ACTIVIDADES AUXILIARES DE OBRA CIVIL, QUE CONLLEVEN AL MEJORAMIENTO Y ADECUACIÓN DEL ESPACIO PÚBLICO Y MALLA VIAL DE LA LOCALIDAD DE ENGATIVÁ. Se expide cdp con certificado de no existencia personal 26377 del 28 abril 2021, solicitud sipse 58605, memorando con solicitud 20216020013653 con fecha del 28 de abril de 2021 y se recibe para trámite el 3 de mayo de 2021. SE EXPIDE CRP POR SOLICITUD CON RAD. N° 20216020017123 15-06-2021 SE RECIBE PARA TRAMITE EL 21 DE JUNIO DE 2021 VERIFICADO SECOP II. | I34: Inversión | J34: Un Nuevo Contrato Social y Ambiental para la Bogotá del Siglo XXI | K34: 49 | L34: Movilidad segura, sostenible y accesible | M34: =IF(ISERROR(VLOOKUP(K34,Proposito_programa!$C$2:$E$59,3,FALSE))," ",VLOOKUP(K34,Proposito_programa!$C$2:$E$59,3,FALSE)) -> Propósito 4: Hacer de Bogotá Región un modelo de movilidad multimodal, incluyente y sostenible | N34: 1621 | O34: 0 | P34: 80094343 | Q34: MEYER ERNESTO SILVA NAVARRETE | R34: Persona Natural | Y34: 12000000 | AA34: 0 | AB34: 0 | AC34: 12000000 | AD34: 10600000 | AE34: 2021-06-17 | AF34: 2021-06-22 | AG34: 2021-12-21 | AH34: 180 | AI34: 0 | AJ34: 0 | AQ34: X | AS34: 0.8833333333
A35: 340 | B35: 2021 | C35: FDLE-CD-340-2021 | D35: https://community.secop.gov.co/Public/Tendering/OpportunityDetail/Index?noticeUID=CO1.NTC.2038534&isFromPublicArea=True&isModal=False | E35: Contratos de prestación de servicios profesionales y de apoyo a la gestión | F35: Contratación directa | G35: Prestación de servicios profesionales y de apoyo a la gestión, o para la ejecución de trabajos artísticos que sólo puedan encomendarse a determinadas personas naturales; | H35: PRESTACIÓN DE SERVICIOS DE APOYO EN LA EJECUCIÓN DE ACTIVIDADES AUXILIARES DE OBRA CIVIL, QUE CONLLEVEN AL MEJORAMIENTO Y ADECUACIÓN DEL ESPACIO PÚBLICO Y MALLA VIAL DE LA LOCALIDAD DE ENGATIVÁ. Se expide cdp con certificado de no existencia personal 26377 del 28 abril 2021, solicitud sipse 58605, memorando con solicitud 20216020013633 con fecha del 28 de abril de 2021 y se recibe para trámite el 3 de mayo de 2021. SE EXPIDE CRP POR SOLICITUD CON RAD. N° 202160200174783 DE 18-06-2021 SE RECIBE PARA TRAMITE JUNIO 21 DE 2021 VERIFICADO SECOP II. | I35: Inversión | J35: Un Nuevo Contrato Social y Ambiental para la Bogotá del Siglo XXI | K35: 49 | L35: Movilidad segura, sostenible y accesible | M35: =IF(ISERROR(VLOOKUP(K35,Proposito_programa!$C$2:$E$59,3,FALSE))," ",VLOOKUP(K35,Proposito_programa!$C$2:$E$59,3,FALSE)) -> Propósito 4: Hacer de Bogotá Región un modelo de movilidad multimodal, incluyente y sostenible | N35: 1621 | O35: 0 | P35: 52477508 | Q35: BLANCA INES BELTRAN MUETE | R35: Persona Natural | Y35: 12000000 | AA35: 0 | AB35: 0 | AC35: 12000000 | AD35: 10600000 | AE35: 2021-06-18 | AF35: 2021-06-22 | AG35: 2021-12-21 | AH35: 180 | AI35: 0 | AJ35: 0 | AQ35: X | AS35: 0.8833333333
A36: 342 | B36: 2021 | C36: FDLE-CD-342-2021 | D36: https://community.secop.gov.co/Public/Tendering/OpportunityDetail/Index?noticeUID=CO1.NTC.2038528&isFromPublicArea=True&isModal=False | E36: Contratos de prestación de servicios profesionales y de apoyo a la gestión | F36: Contratación directa | G36: Prestación de servicios profesionales y de apoyo a la gestión, o para la ejecución de trabajos artísticos que sólo puedan encomendarse a determinadas personas naturales; | H36: PRESTACIÓN DE SERVICIOS DE APOYO EN LA EJECUCIÓN DE ACTIVIDADES AUXILIARES DE OBRA CIVIL, QUE CONLLEVEN AL MEJORAMIENTO Y ADECUACIÓN DEL ESPACIO PÚBLICO Y MALLA VIAL DE LA LOCALIDAD DE ENGATIVÁ. Se expide cdp con certificado de no existencia personal 26377 del 28 abril 2021, solicitud sipse 58605, memorando con solicitud 20216020013623 con fecha del 28 de abril de 2021 y se recibe para trámite el 3 de mayo de 2021. SE EXPIDE CRP POR SOLICITUD CON RAD. N°20216020017503 DE 18-06-2021 SE RECIBE PARA TRAMITE EL 21 DE JUNIO DE 2021 VERIFICADO SECOP II. | I36: Inversión | J36: Un Nuevo Contrato Social y Ambiental para la Bogotá del Siglo XXI | K36: 49 | L36: Movilidad segura, sostenible y accesible | M36: =IF(ISERROR(VLOOKUP(K36,Proposito_programa!$C$2:$E$59,3,FALSE))," ",VLOOKUP(K36,Proposito_programa!$C$2:$E$59,3,FALSE)) -> Propósito 4: Hacer de Bogotá Región un modelo de movilidad multimodal, incluyente y sostenible | N36: 1621 | O36: 0 | P36: 4266482 | Q36: HERMES SALAZAR SANDOVAL | R36: Persona Natural | Y36: 12000000 | AA36: 0 | AB36: 0 | AC36: 12000000 | AD36: 10600000 | AE36: 2021-06-18 | AF36: 2021-06-22 | AG36: 2021-12-21 | AH36: 180 | AI36: 0 | AJ36: 0 | AQ36: X | AS36: 0.8833333333
A37: 347 | B37: 2021 | C37: FDLE-CD-347-2021 | D37: https://community.secop.gov.co/Public/Tendering/OpportunityDetail/Index?noticeUID=CO1.NTC.2049470&isFromPublicArea=True&isModal=False | E37: Contratos de prestación de servicios profesionales y de apoyo a la gestión | F37: Contratación directa | G37: Prestación de servicios profesionales y de apoyo a la gestión, o para la ejecución de trabajos artísticos que sólo puedan encomendarse a determinadas personas naturales; | H37: PRESTACIÓN DE SERVICIOS DE APOYO EN LA EJECUCIÓN DE ACTIVIDADES AUXILIARES DE OBRA CIVIL, QUE CONLLEVEN AL MEJORAMIENTO Y ADECUACIÓN DEL ESPACIO PÚBLICO Y MALLA VIAL DE LA LOCALIDAD DE ENGATIVÁ. Se expide cdp con certificado de no existencia personal 26377 del 28 abril 2021, solicitud sipse 58605, memorando con solicitud 20216020013643 con fecha del 28 de abril de 2021 y se recibe para trámite el 3 de mayo de 2021. SE EXPIDE CRP POR SOLICITUD CON RAD. N°20216020018173 DE 25062021 SE RECIBE PARA TRÁMITE JUNIO 28 DE 2021. SIPSE PENDIENTE. | I37: Inversión | J37: Un Nuevo Contrato Social y Ambiental para la Bogotá del Siglo XXI | K37: 49 | L37: Movilidad segura, sostenible y accesible | M37: =IF(ISERROR(VLOOKUP(K37,Proposito_programa!$C$2:$E$59,3,FALSE))," ",VLOOKUP(K37,Proposito_programa!$C$2:$E$59,3,FALSE)) -> Propósito 4: Hacer de Bogotá Región un modelo de movilidad multimodal, incluyente y sostenible | N37: 1621 | O37: 0 | P37: 1014294290 | Q37: JOSE MANUEL SASTOQUE GONZALEZ | R37: Persona Natural | Y37: 12000000 | AA37: 0 | AB37: 0 | AC37: 12000000 | AD37: 10066667 | AE37: 2021-06-25 | AF37: 2021-06-30 | AG37: 2021-12-29 | AH37: 180 | AI37: 0 | AJ37: 0 | AQ37: X | AS37: 0.8388889167
A38: 82172 | B38: 2021 | C38: CCE-GS-2018-1 | D38: https://colombiacompra.gov.co/tienda-virtual-del-estado-colombiano/ordenes-compra/82640/1 | E38: Suministro | F38: Selección abreviada | G38: Acuerdo marco de precios | H38: ADQUIRIR EQUIPOS TECNOLOGICOS PARA LA ESTACION DECIMA DE POLICIA DE ENGATIVÁ. Se expide cdp con solicitud sipse 66361 con memorando 20216020033303 del 6 de diciembre de 2021 y se recibe para trámite el 7 de diciembre de 2021. SE EXPIDE CRP POR SOICITUD CON RAD. N° 20216020033693 DE DIC-10-2021 SE RECIBE PARA TRAMITE EL 13 DE DICIEMBRE 2021. | I38: Inversión | J38: Un Nuevo Contrato Social y Ambiental para la Bogotá del Siglo XXI | K38: 48 | L38: Plataforma institucional para la seguridad y justicia | M38: =IF(ISERROR(VLOOKUP(K38,Proposito_programa!$C$2:$E$59,3,FALSE))," ",VLOOKUP(K38,Proposito_programa!$C$2:$E$59,3,FALSE)) -> Propósito 3: Inspirar confianza y legitimidad para vivir sin miedo y ser epicentro de cultura ciudadana, paz y reconciliación | N38: 1620 | P38: 900741497 | Q38: TECNOPHONE COLOMBIA SAS | R38: Persona Jurídica | Y38: 12459314 | AA38: 0 | AB38: 0 | AC38: 12459314 | AD38: 0 | AE38: 2021-12-14 | AF38: 2021-12-14 | AG38: 2022-02-14 | AH38: 90 | AI38: 0 | AJ38: 0 | AP38: X | AS38: 0
A39: 424 | B39: 2020 | C39: FDLE-SAMC-404-2020 | D39: https://community.secop.gov.co/Public/Tendering/OpportunityDetail/Index?noticeUID=CO1.NTC.1430531&isFromPublicArea=True&isModal=False | E39: Contratos de prestación de servicios | F39: Selección abreviada | G39: Selección abreviada por menor cuantía | H39: REALIZAR A MONTO AGOTABLE EL MANTENIMIENTO PREVENTIVO Y CORRECTIVO CON SUMINISTRO DE REPUESTOS Y ACCESORIOS NUEVOS, GENUINOS Y ORIGINALES DE CADA UNA DE LAS MARCAS DE LOS VEHÍCULOS, LIVIANOS, PESADOS Y MAQUINARIA AMARILLA DEL FONDO DE DESARROLLO LOCAL DE ENGATIVÁ. Se expide cdp para la adición número 1 al contrato 424 de 2020, número sipse 59940, memorando con solicitud 20216020018353 del 29 de junio de 2021 y se recibe para trámite el 30 de junio. SE EXPIDE CRP POR SOLICITUD CON RAD. N° 20216020019453 DE JULIO 12 2021 VERIFICADO SIPSE. ADICIÓN N° 1 | I39: Inversión | J39: Un Nuevo Contrato Social y Ambiental para la Bogotá del Siglo XXI | K39: 49 | L39: Movilidad segura, sostenible y accesible | M39: =IF(ISERROR(VLOOKUP(K39,Proposito_programa!$C$2:$E$59,3,FALSE))," ",VLOOKUP(K39,Proposito_programa!$C$2:$E$59,3,FALSE)) -> Propósito 4: Hacer de Bogotá Región un modelo de movilidad multimodal, incluyente y sostenible | N39: 1621 | O39: 0 | P39: 830031296 | Q39: CENTRO INTEGRAL DE MANTENIMIENTO AUTOCAR S SAS | R39: Persona Jurídica | Y39: 12945298 | AA39: 0 | AB39: 0 | AC39: 12945298 | AD39: 12945298 | AE39: 2021-01-14 | AF39: 2021-01-14 | AG39: 2021-01-14 | AQ39: X | AS39: 1
A40: 332 | B40: 2021 | C40: FDLE-CD-332-2021 | D40: https://community.secop.gov.co/Public/Tendering/OpportunityDetail/Index?noticeUID=CO1.NTC.2053989&isFromPublicArea=True&isModal=False | E40: Contratos de prestación de servicios profesionales y de apoyo a la gestión | F40: Contratación directa | G40: Prestación de servicios profesionales y de apoyo a la gestión, o para la ejecución de trabajos artísticos que sólo puedan encomendarse a determinadas personas naturales; | H40: PRESTACIÓN DE SERVICIOS AUXILIARES EN LA CONDUCCIÓN DE LOS VEHÍCULOS DE CARGA PESADA, VOLQUETAS SENCILLA O DOBLE TROQUE, VEHÍCULO ARTICULADO, CAMIÓN Y VEHÍCULOS EN GENERAL DE PROPIEDAD Y/O TENENCIA DEL FONDO DE DESARROLLO LOCAL DE ENGATIVÁ. Se expide cdp con certificado de no existencia personal 26770 del 22 de junio de 2021, solicitud sipse 59396, memorando con solicitud 20216020017923 del 24 de junio de 2021 y se recibe para trámite el 24 de junio de 2021. SE EXPIDE CRP POR SOLICITUD CON RAD. N° 20216020020113 DE JULIO 27 2021 EN REEMPLAZO DEL CRP N° 852 DE JUNIO 28 DE 2021. | I40: Inversión | J40: Un Nuevo Contrato Social y Ambiental para la Bogotá del Siglo XXI | K40: 49 | L40: Movilidad segura, sostenible y accesible | M40: =IF(ISERROR(VLOOKUP(K40,Proposito_programa!$C$2:$E$59,3,FALSE))," ",VLOOKUP(K40,Proposito_programa!$C$2:$E$59,3,FALSE)) -> Propósito 4: Hacer de Bogotá Región un modelo de movilidad multimodal, incluyente y sostenible | N40: 1621 | O40: 0 | P40: 79714426 | Q40: YEZID ORLANDO MORENO GAMEZ | R40: Persona Natural | Y40: 11500000 | AA40: 1 | AB40: 2453333 | AC40: 13953333 | AD40: 11270000 | AE40: 2021-06-28 | AF40: 2021-06-29 | AG40: 2022-01-05 | AH40: 150 | AI40: 1 | AJ40: 32 | AQ40: X | AS40: 0.807692327
A41: 349 | B41: 2021 | C41: FDLE-CD-349-2021 | D41: https://community.secop.gov.co/Public/Tendering/OpportunityDetail/Index?noticeUID=CO1.NTC.2054301&isFromPublicArea=True&isModal=False | E41: Contratos de prestación de servicios profesionales y de apoyo a la gestión | F41: Contratación directa | G41: Prestación de servicios profesionales y de apoyo a la gestión, o para la ejecución de trabajos artísticos que sólo puedan encomendarse a determinadas personas naturales; | H41: PRESTACIÓN DE SERVICIOS AUXILIARES EN LA CONDUCCIÓN DE LOS VEHÍCULOS DE CARGA PESADA, VOLQUETAS SENCILLA O DOBLE TROQUE, VEHÍCULO ARTICULADO, CAMIÓN Y VEHÍCULOS EN GENERAL DE PROPIEDAD Y/O TENENCIA DEL FONDO DE DESARROLLO LOCAL DE ENGATIVÁ. Se expide cdp con certificado de no existencia personal 26770 del 22 de junio de 2021, solicitud sipse 59396, memorando con solicitud 20216020017933 del 24 de junio de 2021 y se recibe para trámite el 24 de junio de 2021. SE EXPIDE CRP POR SOLICITUD CON RAD. N° 20216020018233 DE 28-06-2021 PENDIENTE SIPSE. | I41: Inversión | J41: Un Nuevo Contrato Social y Ambiental para la Bogotá del Siglo XXI | K41: 49 | L41: Movilidad segura, sostenible y accesible | M41: =IF(ISERROR(VLOOKUP(K41,Proposito_programa!$C$2:$E$59,3,FALSE))," ",VLOOKUP(K41,Proposito_programa!$C$2:$E$59,3,FALSE)) -> Propósito 4: Hacer de Bogotá Región un modelo de movilidad multimodal, incluyente y sostenible | N41: 1621 | O41: 0 | P41: 5933603 | Q41: EFRAIN PEÑA | R41: Persona Natural | Y41: 11500000 | AA41: 1 | AB41: 2453333 | AC41: 13953333 | AD41: 11653333 | AE41: 2021-06-28 | AF41: 2021-06-29 | AG41: 2021-12-31 | AH41: 150 | AI41: 1 | AJ41: 33 | AQ41: X | AS41: 0.8351648312
A42: 358 | B42: 2021 | C42: FDLE-CD-358-2021 | D42: https://community.secop.gov.co/Public/Tendering/OpportunityDetail/Index?noticeUID=CO1.NTC.2182792&isFromPublicArea=True&isModal=False | E42: Contratos de prestación de servicios profesionales y de apoyo a la gestión | F42: Contratación directa | G42: Prestación de servicios profesionales y de apoyo a la gestión, o para la ejecución de trabajos artísticos que sólo puedan encomendarse a determinadas personas naturales; | H42: LA PRESTACIÓN DE SERVICIOS TÉCNICOS DE APOYO AL ÁREA DE GESTIÓN DE DESARROLLO LOCAL, EN LAS ACTIVIDADES ADMINISTRATIVAS DE LOS PROYECTOS RELACIONADOS CON EL SECTOR DE INTEGRACIÓN SOCIAL QUE LE SEAN ASIGNADOS. Se expide CDP con certificado de No existencia de personal 27074 del 13 de julio de 2021<(>,<)> solicitud SIPSE 59956<(>,<)> memorando con solicitud 20216020019883 con fecha del 21 de julio de 2021 y se recibe para trámite el 22 de julio de 2021. SE EXPIDE CRP POR SOLICTUD CON RAD. N° 20216020021683 DE AGO 19.2021 SE RECIBE PARA TRAMITE EL 20 DE AGOSTO VERIFICADO SIPSE. | I42: Inversión | J42: Un Nuevo Contrato Social y Ambiental para la Bogotá del Siglo XXI | K42: 1 | L42: Subsidios y transferencias para la equidad | M42: =IF(ISERROR(VLOOKUP(K42,Proposito_programa!$C$2:$E$59,3,FALSE))," ",VLOOKUP(K42,Proposito_programa!$C$2:$E$59,3,FALSE)) -> Propósito 1: Hacer un nuevo contrato social para incrementar la inclusión social, productiva y política | N42: 1584 | O42: 0 | P42: 1007161676 | Q42: JUAN CAMILO GONZALEZ BOLIVAR | R42: Persona Natural | Y42: 15000000 | AA42: 0 | AB42: 0 | AC42: 15000000 | AD42: 10100000 | AE42: 2021-08-19 | AF42: 2021-08-20 | AG42: 2022-01-19 | AH42: 150 | AI42: 0 | AJ42: 0 | AQ42: X | AS42: 0.6733333333
A43: 361 | B43: 2021 | C43: FDLE-CD-361-2021 | D43: https://community.secop.gov.co/Public/Tendering/ContractNoticePhases/View?PPI=CO1.PPI.14508877&isFromPublicArea=True&isModal=False | E43: Contratos de prestación de servicios profesionales y de apoyo a la gestión | F43: Contratación directa | G43: Prestación de servicios profesionales y de apoyo a la gestión, o para la ejecución de trabajos artísticos que sólo puedan encomendarse a determinadas personas naturales; | H43: PRESTACIÓN DE SERVICIOS DE APOYO TÉCNICO EN TOPOGRAFÍA EN LA EJECUCIÓN DE ACTIVIDADES DE OBRA CIVIL QUE CONLLEVEN AL MEJORAMIENTO Y ADECUACIÓN DEL ESPACIO PÚBLICO Y LA MALLA VIAL DE LA LOCALIDAD DE ENGATIVÁ. Se expide cdp con certificado de no existencia personal 26772 del 22 de junio de 2021, memorando con solicitud 20216020017943 del 24 de junio de 2021 y se recibe para trámite el 24 de junio de 2021. SE EXPIDE CRP POR SOLICITUD CON RAD.N°20216020021363 AGO.11.2021 SE RECIBE PARA TRÁMITE EL 13 DE AGO. 2021. | I43: Inversión | J43: Un Nuevo Contrato Social y Ambiental para la Bogotá del Siglo XXI | K43: 49 | L43: Movilidad segura, sostenible y accesible | M43: =IF(ISERROR(VLOOKUP(K43,Proposito_programa!$C$2:$E$59,3,FALSE))," ",VLOOKUP(K43,Proposito_programa!$C$2:$E$59,3,FALSE)) -> Propósito 4: Hacer de Bogotá Región un modelo de movilidad multimodal, incluyente y sostenible | N43: 1621 | O43: 0 | P43: 1012436195 | Q43: JORDAN BAQUERO ACEVEDO | R43: Persona Natural | Y43: 15000000 | AA43: 0 | AB43: 0 | AC43: 15000000 | AD43: 10300000 | AE43: 2021-08-12 | AF43: 2021-08-18 | AG43: 2022-01-17 | AH43: 150 | AI43: 0 | AJ43: 0 | AQ43: X | AS43: 0.6866666667
A44: 328 | B44: 2021 | C44: FDLE-CD-328-2021 | D44: https://community.secop.gov.co/Public/Tendering/OpportunityDetail/Index?noticeUID=CO1.NTC.1997200&isFromPublicArea=True&isModal=False | E44: Contratos de prestación de servicios profesionales y de apoyo a la gestión | F44: Contratación directa | G44: Prestación de servicios profesionales y de apoyo a la gestión, o para la ejecución de trabajos artísticos que sólo puedan encomendarse a determinadas personas naturales; | H44: APOYAR LA GESTIÓN DOCUMENTAL DE LA ALCALDÍA LOCAL EN LA IMPLEMENTACIÓN DE LOS PROCESOS DE CLASIFICACIÓN, ORDENACIÓN, SELECCIÓN NATURAL, FOLIACIÓN, IDENTIFICACIÓN, LEVANTAMIENTO DE INVENTARIOS, ALMACENAMIENTO Y APLICACIÓN DE PROTOCOLOS DE ELIMINACIÓN Y TRANSFERENCIAS DOCUMENTALES. Se expide cdp con certificado de no existencia personal 26141 del 06 de abril 2021, solicitud sipse 58216, memorando con solicitud 20216020012413 del 9 de abril de 2021 y se recibe para trámite el 12 de abril. SE EXPIDE CRP POR SOLICITUD CON RAD. N° 20216020015963 DE MAYO 31 2021 SE RECIBE VERIFICADO SECOP Y SIPSE. | I44: Inversión | J44: Un Nuevo Contrato Social y Ambiental para la Bogotá del Siglo XXI | K44: 57 | L44: Gestión Pública Local | M44: =IF(ISERROR(VLOOKUP(K44,Proposito_programa!$C$2:$E$59,3,FALSE))," ",VLOOKUP(K44,Proposito_programa!$C$2:$E$59,3,FALSE)) -> Propósito 5: Construir Bogotá - Región con gobierno abierto, transparente y ciudadanía consciente | N44: 1623 | O44: 0 | P44: 1102841503 | Q44: DANIEL GERMAN LAMBRAÑO MARQUEZ | R44: Persona Natural | Y44: 16100000 | AA44: 0 | AB44: 0 | AC44: 16100000 | AD44: 13800000 | AE44: 2021-05-28 | AF44: 2021-06-01 | AG44: 2021-12-31 | AH44: 210 | AI44: 0 | AJ44: 0 | AQ44: X | AS44: 0.8571428571
A45: 250 | B45: 2021 | C45: FDLE-CD-250-2021 | D45: https://community.secop.gov.co/Public/Tendering/OpportunityDetail/Index?noticeUID=CO1.NTC.1832519&isFromPublicArea=True&isModal=False | E45: Contratos de prestación de servicios profesionales y de apoyo a la gestión | F45: Contratación directa | G45: Prestación de servicios profesionales y de apoyo a la gestión, o para la ejecución de trabajos artísticos que sólo puedan encomendarse a determinadas personas naturales; | H45: PRESTACIÓN DE SERVICIOS DE APOYO EN LA EJECUCIÓN DE ACTIVIDADES AUXILIARES DE OBRA CIVIL, QUE CONLLEVEN AL MEJORAMIENTO Y ADECUACIÓN DEL ESPACIO PÚBLICO Y MALLA VIAL DE LA LOCALIDAD DE ENGATIVÁ, Se expide CDP con certificado de No existencia de personal 25150 del 15 de febrero de 2021, solicitud SIPSE 54603, memorando con solicitud 20216020005073 recibido para tramite de fecha Feb 24/2021. SE EXPIDE CRP POR SOLICITUD CON RAD. N° 20216020008863 DEL 12 MARZO-2021 SE RECIBE PARA TRAMITE EL 15 DE MARZO REVISADO SECOP II Y SIPSE. | I45: Inversión | J45: Un Nuevo Contrato Social y Ambiental para la Bogotá del Siglo XXI | K45: 49 | L45: Movilidad segura, sostenible y accesible | M45: =IF(ISERROR(VLOOKUP(K45,Proposito_programa!$C$2:$E$59,3,FALSE))," ",VLOOKUP(K45,Proposito_programa!$C$2:$E$59,3,FALSE)) -> Propósito 4: Hacer de Bogotá Región un modelo de movilidad multimodal, incluyente y sostenible | N45: 1621 | O45: 0 | P45: 85472640 | Q45: JOSE DOMINGO CASTAÑEDA LOPEZ | R45: Persona Natural | Y45: 18000000 | AA45: 0 | AB45: 0 | AC45: 18000000 | AD45: 17066667 | AE45: 2021-03-12 | AF45: 2021-03-16 | AG45: 2021-12-15 | AH45: 270 | AI45: 0 | AJ45: 0 | AQ45: X | AS45: 0.9481481667
A46: 162 | B46: 2021 | C46: FDLE-SASI-162-2021 | D46: https://community.secop.gov.co/Public/Tendering/OpportunityDetail/Index?noticeUID=CO1.NTC.1830047&isFromPublicArea=True&isModal=False | E46: Suministro | F46: Selección abreviada | G46: Subasta inversa | H46: SUMINISTRAR LOS ELEMENTOS DE PAPELERÍA Y ÚTILES DE OFICINA A MONTO AGOTABLE PARA LAS DIFERENTES ÁREAS DE GESTIÓN DE LA ALCALDIA LOCAL DE ENGATIVÁ, Se expide CDP con memorando 20216020003833 recibido para tramite de fecha Feb 19/2021.Sin sipse. Se expide CRP con solicitud memorando 20216020011893 del 8 de abril de 2021 y se recibe para trámite el 13 de abril de 2021, revisado SECOP II y sipse. | I46: Funcionamiento | J46: Un Nuevo Contrato Social y Ambiental para la Bogotá del Siglo XXI | M46: =IF(ISERROR(VLOOKUP(K46,Proposito_programa!$C$2:$E$59,3,FALSE))," ",VLOOKUP(K46,Proposito_programa!$C$2:$E$59,3,FALSE)) ->  | N46: FUNC | O46: 13 | P46: 830073623 | Q46: KEY MARKET SAS - EN REORGANIZACION | R46: Persona Jurídica | Y46: 60000 | AA46: 0 | AB46: 0 | AC46: =+Y46+Z46+AB46 -> 60000 | AD46: 0 | AE46: 2021-04-12 | AF46: 2021-04-13 | AG46: 2022-02-28 | AH46: 240 | AI46: 1 | AJ46: 11 | AP46: X | AS46: 0
A47: 272 | B47: 2021 | C47: FDLE-CD-272-2021 | D47: https://community.secop.gov.co/Public/Tendering/OpportunityDetail/Index?noticeUID=CO1.NTC.1871010&isFromPublicArea=True&isModal=False | E47: Contratos de prestación de servicios profesionales y de apoyo a la gestión | F47: Contratación directa | G47: Prestación de servicios profesionales y de apoyo a la gestión, o para la ejecución de trabajos artísticos que sólo puedan encomendarse a determinadas personas naturales; | H47: PRESTAR LOS SERVICIOS DE APOYO A LA GESTIÓN LOCAL Y TERRITORIAL DE LOS TEMAS DE CONVIVENCIA CIUDADANA, DE CONFORMIDAD CON EL MARCO NORMATIVO APLICABLE PARA LA MATERIA. Se expide cdp con certificado de no existencia personal 25768 del 5 de marzo de 2021, solicitud sipse 54657, memorando con solicitud 20216020008033 del 8 de marzo de 2021 y se recibe para trámite el 9 de marzo de 2021. SE EXPIDE CRP POR SOLICITUD CON RAD. N° 202160200010383 DEL 25 MAR.2021 SE RECIBE PARA TRAMITE EL 26 DE MARZO REVISADO SECOP II Y SIPSE. | I47: Inversión | J47: Un Nuevo Contrato Social y Ambiental para la Bogotá del Siglo XXI | K47: 43 | L47: Cultura ciudadana para la confianza, la convivencia y la participación desde la vida cotidiana | M47: =IF(ISERROR(VLOOKUP(K47,Proposito_programa!$C$2:$E$59,3,FALSE))," ",VLOOKUP(K47,Proposito_programa!$C$2:$E$59,3,FALSE)) -> Propósito 3: Inspirar confianza y legitimidad para vivir sin miedo y ser epicentro de cultura ciudadana, paz y reconciliación | N47: 1617 | O47: 0 | P47: 1014216852 | Q47: JUAN CAMILO BELLO MUNEVAR | R47: Persona Natural | Y47: 18000000 | AA47: 0 | AB47: 0 | AC47: 18000000 | AD47: 16133333 | AE47: 2021-03-25 | AF47: 2021-03-29 | AG47: 2021-12-28 | AH47: 270 | AI47: 0 | AJ47: 0 | AQ47: X | AS47: 0.8962962778
A48: 273 | B48: 2021 | C48: FDLE-CD-273-2021 | D48: https://community.secop.gov.co/Public/Tendering/OpportunityDetail/Index?noticeUID=CO1.NTC.1873615&isFromPublicArea=True&isModal=False | E48: Contratos de prestación de servicios profesionales y de apoyo a la gestión | F48: Contratación directa | G48: Prestación de servicios profesionales y de apoyo a la gestión, o para la ejecución de trabajos artísticos que sólo puedan encomendarse a determinadas personas naturales; | H48: PRESTAR LOS SERVICIOS DE APOYO A LA GESTIÓN LOCAL Y TERRITORIAL DE LOS TEMAS DE CONVIVENCIA CIUDADANA, DE CONFORMIDAD CON EL MARCO NORMATIVO APLICABLE PARA LA MATERIA. Se expide cdp con certificado de no existencia personal 25768 del 5 de marzo de 2021, solicitud sipse 54657, memorando con solicitud 20216020008043 del 8 de marzo de 2021 y se recibe para trámite el 9 de marzo de 2021. SE EXPIDE CRP POR SOLICITUD CON RAD. N° 2021602000111053 DEL 26 MAR.2021SE RECIBE PARA TRAMITE EL 29 DE MARZO REVISADO SECOP II Y SIPSE. | I48: Inversión | J48: Un Nuevo Contrato Social y Ambiental para la Bogotá del Siglo XXI | K48: 43 | L48: Cultura ciudadana para la confianza, la convivencia y la participación desde la vida cotidiana | M48: =IF(ISERROR(VLOOKUP(K48,Proposito_programa!$C$2:$E$59,3,FALSE))," ",VLOOKUP(K48,Proposito_programa!$C$2:$E$59,3,FALSE)) -> Propósito 3: Inspirar confianza y legitimidad para vivir sin miedo y ser epicentro de cultura ciudadana, paz y reconciliación | N48: 1617 | O48: 0 | P48: 1013610594 | Q48: OSCAR IVAN BRUGES ORTEGA | R48: Persona Natural | Y48: 18000000 | AA48: 0 | AB48: 0 | AC48: 18000000 | AD48: 16066667 | AE48: 2021-03-26 | AF48: 2021-03-30 | AG48: 2021-12-29 | AH48: 270 | AI48: 0 | AJ48: 0 | AQ48: X | AS48: 0.8925926111
A49: 274 | B49: 2021 | C49: FDLE-CD-274-2021 | D49: https://community.secop.gov.co/Public/Tendering/OpportunityDetail/Index?noticeUID=CO1.NTC.1868364&isFromPublicArea=True&isModal=False | E49: Contratos de prestación de servicios profesionales y de apoyo a la gestión | F49: Contratación directa | G49: Prestación de servicios profesionales y de apoyo a la gestión, o para la ejecución de trabajos artísticos que sólo puedan encomendarse a determinadas personas naturales; | H49: PRESTAR LOS SERVICIOS DE APOYO A LA GESTIÓN LOCAL Y TERRITORIAL DE LOS TEMAS DE CONVIVENCIA CIUDADANA, DE CONFORMIDAD CON EL MARCO NORMATIVO APLICABLE PARA LA MATERIA. Se expide cdp con certificado de no existencia personal 25768 del 5 de marzo de 2021, solicitud sipse 54657, memorando con solicitud 20216020008053 del 8 de marzo de 2021 y se recibe para trámite el 9 de marzo de 2021. SE EXPIDE CRP POR SOLICITUD CON RAD. N° 202160200010593 DEL 23 MAR.-2021SE RECIBE PARA TRAMITE EL 25 DE MARZO REVISADO SECOP II Y SIPSE. | I49: Inversión | J49: Un Nuevo Contrato Social y Ambiental para la Bogotá del Siglo XXI | K49: 43 | L49: Cultura ciudadana para la confianza, la convivencia y la participación desde la vida cotidiana | M49: =IF(ISERROR(VLOOKUP(K49,Proposito_programa!$C$2:$E$59,3,FALSE))," ",VLOOKUP(K49,Proposito_programa!$C$2:$E$59,3,FALSE)) -> Propósito 3: Inspirar confianza y legitimidad para vivir sin miedo y ser epicentro de cultura ciudadana, paz y reconciliación | N49: 1617 | O49: 0 | P49: 1024513449 | Q49: ELIANA ESTEFANIA HERNANDEZ CABALLERO | R49: Persona Natural | Y49: 18000000 | AA49: 0 | AB49: 0 | AC49: 18000000 | AD49: 16133333 | AE49: 2021-03-24 | AF49: 2021-03-29 | AG49: 2021-12-28 | AH49: 270 | AI49: 0 | AJ49: 0 | AQ49: X | AS49: 0.8962962778
A50: 281 | B50: 2021 | C50: FDLE-CD-281-2021 | D50: https://community.secop.gov.co/Public/Tendering/OpportunityDetail/Index?noticeUID=CO1.NTC.1870769&isFromPublicArea=True&isModal=False | E50: Contratos de prestación de servicios profesionales y de apoyo a la gestión | F50: Contratación directa | G50: Prestación de servicios profesionales y de apoyo a la gestión, o para la ejecución de trabajos artísticos que sólo puedan encomendarse a determinadas personas naturales; | H50: PRESTAR LOS SERVICIOS DE APOYO A LA GESTIÓN LOCAL Y TERRITORIAL DE LOS TEMAS DE CONVIVENCIA CIUDADANA, DE CONFORMIDAD CON EL MARCO NORMATIVO APLICABLE PARA LA MATERIA. Se expide cdp con certificado de no existencia personal 25767 del 5 de marzo de 2021, solicitud sipse 54655, memorando con solicitud 20216020007853 del 8 de marzo de 2021 y se recibe para trámite el 9 de marzo de 2021. SE EXPIDE CRP POR SOLICITUD CON RAD. N° 202160200010623 DEL 24 MAR.-2021 SE RECIBE PARA TRAMITE EL 26 DE MARZO REVISADO SECOP II Y SIPSE. | I50: Inversión | J50: Un Nuevo Contrato Social y Ambiental para la Bogotá del Siglo XXI | K50: 43 | L50: Cultura ciudadana para la confianza, la convivencia y la participación desde la vida cotidiana | M50: =IF(ISERROR(VLOOKUP(K50,Proposito_programa!$C$2:$E$59,3,FALSE))," ",VLOOKUP(K50,Proposito_programa!$C$2:$E$59,3,FALSE)) -> Propósito 3: Inspirar confianza y legitimidad para vivir sin miedo y ser epicentro de cultura ciudadana, paz y reconciliación | N50: 1617 | O50: 0 | P50: 1000805558 | Q50: YULI STEFANY FONSECA PEÑA | R50: Persona Natural | Y50: 18000000 | AA50: 0 | AB50: 0 | AC50: 18000000 | AD50: 15666667 | AE50: 2021-03-26 | AF50: 2021-04-06 | AG50: 2022-01-05 | AH50: 270 | AI50: 0 | AJ50: 0 | AQ50: X | AS50: 0.8703703889
A51: 299 | B51: 2021 | C51: FDLE-CD-275-2021 | D51: https://community.secop.gov.co/Public/Tendering/OpportunityDetail/Index?noticeUID=CO1.NTC.1876659&isFromPublicArea=True&isModal=False | E51: Contratos de prestación de servicios profesionales y de apoyo a la gestión | F51: Contratación directa | G51: Prestación de servicios profesionales y de apoyo a la gestión, o para la ejecución de trabajos artísticos que sólo puedan encomendarse a determinadas personas naturales; | H51: PRESTAR LOS SERVICIOS DE APOYO A LA GESTIÓN LOCAL Y TERRITORIAL DE LOS TEMAS DE CONVIVENCIA CIUDADANA, DE CONFORMIDAD CON EL MARCO NORMATIVO APLICABLE PARA LA MATERIA. Se expide cdp con certificado de no existencia personal 25767 del 5 de marzo de 2021, solicitud sipse 54655, memorando con solicitud 20216020007793 del 8 de marzo de 2021 y se recibe para trámite el 9 de marzo de 2021. SE EXPIDE CRP POR SOLICITUD CON RAD. N° 2021602000111243 DEL 29 MAR.2021SE RECIBE PARA TRAMITE EL 29 DE MARZO REVISADO SECOP II Y SIPSE. | I51: Inversión | J51: Un Nuevo Contrato Social y Ambiental para la Bogotá del Siglo XXI | K51: 43 | L51: Cultura ciudadana para la confianza, la convivencia y la participación desde la vida cotidiana | M51: =IF(ISERROR(VLOOKUP(K51,Proposito_programa!$C$2:$E$59,3,FALSE))," ",VLOOKUP(K51,Proposito_programa!$C$2:$E$59,3,FALSE)) -> Propósito 3: Inspirar confianza y legitimidad para vivir sin miedo y ser epicentro de cultura ciudadana, paz y reconciliación | N51: 1617 | O51: 0 | P51: 19322681 | Q51: FIDEL MORENO PARRA | R51: Persona Natural | Y51: 18000000 | AA51: 0 | AB51: 0 | AC51: 18000000 | AD51: 15600000 | AE51: 2021-03-29 | AF51: 2021-04-07 | AG51: 2022-01-06 | AH51: 270 | AI51: 0 | AJ51: 0 | AQ51: X | AS51: 0.8666666667
A52: 302 | B52: 2021 | C52: FDEL-CD-302-2021 | D52: https://community.secop.gov.co/Public/Tendering/OpportunityDetail/Index?noticeUID=CO1.NTC.1879221&isFromPublicArea=True&isModal=False | E52: Contratos de prestación de servicios profesionales y de apoyo a la gestión | F52: Contratación directa | G52: Prestación de servicios profesionales y de apoyo a la gestión, o para la ejecución de trabajos artísticos que sólo puedan encomendarse a determinadas personas naturales; | H52: PRESTACIÓN DE SERVICIOS DE APOYO EN LA EJECUCIÓN DE ACTIVIDADES AUXILIARES DE OBRA CIVIL, QUE CONLLEVEN AL MEJORAMIENTO Y ADECUACIÓN DEL ESPACIO PÚBLICO Y MALLA VIAL DE LA LOCALIDAD DE ENGATIVÁ, Se expide CDP con certificado de No existencia de personal 25150 del 15 de febrero de 2021, solicitud SIPSE 54603, memorando con solicitud 20216020005093 recibido para tramite de fecha Feb 24/2021. SE EXPIDE CRP POR SOLICITUD CON RAD. N° 20216020011293 MARZO 29 2021 SE RECIBE PARA TRIMITE EL 06 DE ABRIL 2021 REVISADO SECOP II. | I52: Inversión | J52: Un Nuevo Contrato Social y Ambiental para la Bogotá del Siglo XXI | K52: 49 | L52: Movilidad segura, sostenible y accesible | M52: =IF(ISERROR(VLOOKUP(K52,Proposito_programa!$C$2:$E$59,3,FALSE))," ",VLOOKUP(K52,Proposito_programa!$C$2:$E$59,3,FALSE)) -> Propósito 4: Hacer de Bogotá Región un modelo de movilidad multimodal, incluyente y sostenible | N52: 1621 | O52: 0 | P52: 1014186810 | Q52: RYAN JONATHAN GEIDER CAMACHO RODRIGUEZ | R52: Persona Natural | Y52: 18000000 | AA52: 0 | AB52: 0 | AC52: 18000000 | AD52: 15666667 | AE52: 2021-03-29 | AF52: 2021-04-06 | AG52: 2022-01-05 | AH52: 270 | AI52: 0 | AJ52: 0 | AQ52: X | AS52: 0.8703703889
A53: 304 | B53: 2021 | C53: FDLE-CD-304-2021 | D53: https://community.secop.gov.co/Public/Tendering/OpportunityDetail/Index?noticeUID=CO1.NTC.1879883&isFromPublicArea=True&isModal=False | E53: Contratos de prestación de servicios profesionales y de apoyo a la gestión | F53: Contratación directa | G53: Prestación de servicios profesionales y de apoyo a la gestión, o para la ejecución de trabajos artísticos que sólo puedan encomendarse a determinadas personas naturales; | H53: PRESTACIÓN DE SERVICIOS DE APOYO EN LA EJECUCIÓN DE ACTIVIDADES AUXILIARES DE OBRA CIVIL, QUE CONLLEVEN AL MEJORAMIENTO Y ADECUACIÓN DEL ESPACIO PÚBLICO Y MALLA VIAL DE LA LOCALIDAD DE ENGATIVÁ, Se expide CDP con certificado de No existencia de personal 25150 del 15 de febrero de 2021, solicitud SIPSE 54603, memorando con solicitud 20216020005083 recibido para tramite de fecha Feb 24/2021. SE EXPIDE CRP POR SOLICITUD CON RAD. N° 20216020011303 ABR 06 DE 2021 REVISADO SECOP II. | I53: Inversión | J53: Un Nuevo Contrato Social y Ambiental para la Bogotá del Siglo XXI | K53: 49 | L53: Movilidad segura, sostenible y accesible | M53: =IF(ISERROR(VLOOKUP(K53,Proposito_programa!$C$2:$E$59,3,FALSE))," ",VLOOKUP(K53,Proposito_programa!$C$2:$E$59,3,FALSE)) -> Propósito 4: Hacer de Bogotá Región un modelo de movilidad multimodal, incluyente y sostenible | N53: 1621 | O53: 0 | P53: 19462988 | Q53: OMAR JOSE MUÑOZ CORREDOR | R53: Persona Natural | Y53: 18000000 | AA53: 0 | AB53: 0 | AC53: 18000000 | AD53: 15466667 | AE53: 2021-04-05 | AF53: 2021-04-09 | AG53: 2022-01-08 | AH53: 270 | AI53: 0 | AJ53: 0 | AQ53: X | AS53: 0.8592592778
A54: 307 | B54: 2021 | C54: FDLE-CD-307-2021 | D54: https://community.secop.gov.co/Public/Tendering/OpportunityDetail/Index?noticeUID=CO1.NTC.1908274&isFromPublicArea=True&isModal=False | E54: Contratos de prestación de servicios profesionales y de apoyo a la gestión | F54: Contratación directa | G54: Prestación de servicios profesionales y de apoyo a la gestión, o para la ejecución de trabajos artísticos que sólo puedan encomendarse a determinadas personas naturales; | H54: PRESTACIÓN DE SERVICIOS DE APOYO EN LA EJECUCIÓN DE ACTIVIDADES AUXILIARES DE OBRA CIVIL, QUE CONLLEVEN AL MEJORAMIENTO Y ADECUACIÓN DEL ESPACIO PÚBLICO Y MALLA VIAL DE LA LOCALIDAD DE ENGATIVÁ, Se expide CDP con certificado de No existencia de personal 25150 del 15 de febrero de 2021, solicitud SIPSE 54603, memorando con solicitud 20216020005103 recibido para tramite de fecha Feb 24/2021. SE EXPIDE CRP POR SOICITUD CON RAD.N° 20216020012633 DE ABRIL 14 2021 SE RECIBE PARA TRAMITE EL 15 DE ABRIL DE 2021 REVISADO SECOP II Y SIPSE | I54: Inversión | J54: Un Nuevo Contrato Social y Ambiental para la Bogotá del Siglo XXI | K54: 49 | L54: Movilidad segura, sostenible y accesible | M54: =IF(ISERROR(VLOOKUP(K54,Proposito_programa!$C$2:$E$59,3,FALSE))," ",VLOOKUP(K54,Proposito_programa!$C$2:$E$59,3,FALSE)) -> Propósito 4: Hacer de Bogotá Región un modelo de movilidad multimodal, incluyente y sostenible | N54: 1621 | O54: 0 | P54: 1013611830 | Q54: ALVARO ENRIQUE GOMEZ SUPELANO | R54: Persona Natural | Y54: 18000000 | AA54: 0 | AB54: 0 | AC54: 18000000 | AD54: 15066667 | AE54: 2021-04-14 | AF54: 2021-04-15 | AG54: 2022-01-14 | AH54: 270 | AI54: 0 | AJ54: 0 | AQ54: X | AS54: 0.8370370556
A55: 314 | B55: 2021 | C55: FDLE-CD-314-2021 | D55: https://community.secop.gov.co/Public/Tendering/OpportunityDetail/Index?noticeUID=CO1.NTC.1946302&isFromPublicArea=True&isModal=False | E55: Contratos de prestación de servicios profesionales y de apoyo a la gestión | F55: Contratación directa | G55: Prestación de servicios profesionales y de apoyo a la gestión, o para la ejecución de trabajos artísticos que sólo puedan encomendarse a determinadas personas naturales; | H55: PRESTAR LOS SERVICIOS DE APOYO A LA GESTIÓN LOCAL Y TERRITORIAL DE LOS TEMAS DE CONVIVENCIA CIUDADANA, DE CONFORMIDAD CON EL MARCO NORMATIVO APLICABLE PARA LA MATERIA. Se expide cdp con certificado de no existencia personal 25767 del 5 de marzo de 2021, solicitud sipse 54655, memorando con solicitud 20216020007833 del 8 de marzo de 2021 y se recibe para trámite el 9 de marzo de 2021. SE EXPIDE CRP POR SOLICITUD CON RAD.N° 20216020013873 DE ABRIL 30 2021 SE RECIBE PARA TRAMITE EL 03 DE MAYO 2021 VERIFICADO SECOP II Y SIPSE. | I55: Inversión | J55: Un Nuevo Contrato Social y Ambiental para la Bogotá del Siglo XXI | K55: 43 | L55: Cultura ciudadana para la confianza, la convivencia y la participación desde la vida cotidiana | M55: =IF(ISERROR(VLOOKUP(K55,Proposito_programa!$C$2:$E$59,3,FALSE))," ",VLOOKUP(K55,Proposito_programa!$C$2:$E$59,3,FALSE)) -> Propósito 3: Inspirar confianza y legitimidad para vivir sin miedo y ser epicentro de cultura ciudadana, paz y reconciliación | N55: 1617 | O55: 0 | P55: 1014191294 | Q55: JUAN MANUEL SALAMANCA MARTINEZ | R55: Persona Natural | Y55: 18000000 | AA55: 0 | AB55: 0 | AC55: 18000000 | AD55: 13866667 | AE55: 2021-04-30 | AF55: 2021-05-04 | AG55: 2022-01-24 | AH55: 270 | AI55: 0 | AJ55: 0 | AK55: 1103122178 | AL55: MARIA STEFANIS BALDOVINO BALDOVINO | AM55: 2021-10-13 | AN55: 7400000 | AQ55: X | AS55: 0.7703703889
A56: 315 | B56: 2021 | C56: FDLE-CD-315-2021 | D56: https://community.secop.gov.co/Public/Tendering/OpportunityDetail/Index?noticeUID=CO1.NTC.1945854&isFromPublicArea=True&isModal=False | E56: Contratos de prestación de servicios profesionales y de apoyo a la gestión | F56: Contratación directa | G56: Prestación de servicios profesionales y de apoyo a la gestión, o para la ejecución de trabajos artísticos que sólo puedan encomendarse a determinadas personas naturales; | H56: PRESTAR LOS SERVICIOS DE APOYO A LA GESTIÓN LOCAL Y TERRITORIAL DE LOS TEMAS DE CONVIVENCIA CIUDADANA, DE CONFORMIDAD CON EL MARCO NORMATIVO APLICABLE PARA LA MATERIA. Se expide cdp con certificado de no existencia personal 25768 del 5 de marzo de 2021, solicitud sipse 54657, memorando con solicitud 20216020008003 del 8 de marzo de 2021 y se recibe para trámite el 9 de marzo de 2021. SE EXPIDE CRP POR SOLICITUD CON RAD.N° 20216020013883 DE ABRIL 30 2021 SE RECIBE PARA TRAMITE EL 03 DE MAYO 2021. VERIFICADO SECOP II Y SIPSE. | I56: Inversión | J56: Un Nuevo Contrato Social y Ambiental para la Bogotá del Siglo XXI | K56: 43 | L56: Cultura ciudadana para la confianza, la convivencia y la participación desde la vida cotidiana | M56: =IF(ISERROR(VLOOKUP(K56,Proposito_programa!$C$2:$E$59,3,FALSE))," ",VLOOKUP(K56,Proposito_programa!$C$2:$E$59,3,FALSE)) -> Propósito 3: Inspirar confianza y legitimidad para vivir sin miedo y ser epicentro de cultura ciudadana, paz y reconciliación | N56: 1617 | O56: 0 | P56: 1071915044 | Q56: HECTOR JAVIER RODRIGUEZ ESPITIA | R56: Persona Natural | Y56: 18000000 | AA56: 0 | AB56: 0 | AC56: 18000000 | AD56: 13733333 | AE56: 2021-05-03 | AF56: 2021-05-05 | AG56: 2022-01-26 | AH56: 270 | AI56: 0 | AJ56: 0 | AQ56: X | AS56: 0.7629629444
A57: 269 | B57: 2021 | C57: FDLE-CD-269-2021 | D57: https://community.secop.gov.co/Public/Tendering/OpportunityDetail/Index?noticeUID=CO1.NTC.1859622&isFromPublicArea=True&isModal=False | E57: Contratos de prestación de servicios profesionales y de apoyo a la gestión | F57: Contratación directa | G57: Prestación de servicios profesionales y de apoyo a la gestión, o para la ejecución de trabajos artísticos que sólo puedan encomendarse a determinadas personas naturales; | H57: PRESTAR LOS SERVICIOS DE APOYO A LA GESTIÓN LOCAL Y TERRITORIAL DE LOS TEMAS DE CONVIVENCIA CIUDADANA, DE CONFORMIDAD CON EL MARCO NORMATIVO APLICABLE PARA LA MATERIA. Se expide cdp con certificado de no existencia personal 25768 del 5 de marzo de 2021<(>,<)> solicitud sipse 54657, memorando con solicitud 20216020007983 del 8 de marzo de 2021 y se recibe para trámite el 9 de marzo de 2021. SE EXPIDE CRP POR SOLICITUD CON RAD. N° 20216020009933 DEL 19 MARZO-2021SE RECIBE PARA TRAMITE EL 23 DE MARZO REVISADO SECOP II Y SIPSE. | I57: Inversión | J57: Un Nuevo Contrato Social y Ambiental para la Bogotá del Siglo XXI | K57: 43 | L57: Cultura ciudadana para la confianza, la convivencia y la participación desde la vida cotidiana | M57: =IF(ISERROR(VLOOKUP(K57,Proposito_programa!$C$2:$E$59,3,FALSE))," ",VLOOKUP(K57,Proposito_programa!$C$2:$E$59,3,FALSE)) -> Propósito 3: Inspirar confianza y legitimidad para vivir sin miedo y ser epicentro de cultura ciudadana, paz y reconciliación | N57: 1617 | O57: 0 | P57: 1072466895 | Q57: HUGO ALFREDO CIFUENTES CASALLAS | R57: Persona Natural | Y57: 18000000 | AA57: 1 | AB57: 466667 | AC57: 18466667 | AD57: 16466667 | AE57: 2021-03-19 | AF57: 2021-03-24 | AG57: 2021-12-31 | AH57: 270 | AI57: 1 | AJ57: 8 | AQ57: X | AS57: 0.8916967529
A58: 270 | B58: 2021 | C58: FDLE-CD-270-2021 | D58: https://community.secop.gov.co/Public/Tendering/OpportunityDetail/Index?noticeUID=CO1.NTC.1857690&isFromPublicArea=True&isModal=False | E58: Contratos de prestación de servicios profesionales y de apoyo a la gestión | F58: Contratación directa | G58: Prestación de servicios profesionales y de apoyo a la gestión, o para la ejecución de trabajos artísticos que sólo puedan encomendarse a determinadas personas naturales; | H58: PRESTAR LOS SERVICIOS DE APOYO A LA GESTIÓN LOCAL Y TERRITORIAL DE LOS TEMAS DE CONVIVENCIA CIUDADANA, DE CONFORMIDAD CON EL MARCO NORMATIVO APLICABLE PARA LA MATERIA. Se expide cdp con certificado de no existencia personal 25768 del 5 de marzo de 2021, solicitud sipse 54657, memorando con solicitud 20216020007993 del 8 de marzo de 2021 y se recibe para trámite el 9 de marzo de 2021. SE EXPIDE CRP POR SOLICITUD CON RAD. N° 20216020009923 DEL 19 MARZO-2021SE RECIBE PARA TRAMITE EL 23 DE MARZO REVISADO SECOP II Y SIPSE. | I58: Inversión | J58: Un Nuevo Contrato Social y Ambiental para la Bogotá del Siglo XXI | K58: 43 | L58: Cultura ciudadana para la confianza, la convivencia y la participación desde la vida cotidiana | M58: =IF(ISERROR(VLOOKUP(K58,Proposito_programa!$C$2:$E$59,3,FALSE))," ",VLOOKUP(K58,Proposito_programa!$C$2:$E$59,3,FALSE)) -> Propósito 3: Inspirar confianza y legitimidad para vivir sin miedo y ser epicentro de cultura ciudadana, paz y reconciliación | N58: 1617 | O58: 0 | P58: 80168988 | Q58: JOHAN ALEXANDER RAMIREZ RINCON | R58: Persona Natural | Y58: 18000000 | AA58: 1 | AB58: 466667 | AC58: 18466667 | AD58: 16466667 | AE58: 2021-03-19 | AF58: 2021-03-24 | AG58: 2021-12-31 | AH58: 270 | AI58: 1 | AJ58: 8 | AQ58: X | AS58: 0.8916967529
A59: 271 | B59: 2021 | C59: FDLE-CD-271-2021 | D59: https://community.secop.gov.co/Public/Tendering/OpportunityDetail/Index?noticeUID=CO1.NTC.1848520&isFromPublicArea=True&isModal=False | E59: Contratos de prestación de servicios profesionales y de apoyo a la gestión | F59: Contratación directa | G59: Prestación de servicios profesionales y de apoyo a la gestión, o para la ejecución de trabajos artísticos que sólo puedan encomendarse a determinadas personas naturales; | H59: PRESTAR LOS SERVICIOS DE APOYO A LA GESTIÓN LOCAL Y TERRITORIAL DE LOS TEMAS DE CONVIVENCIA CIUDADANA, DE CONFORMIDAD CON EL MARCO NORMATIVO APLICABLE PARA LA MATERIA. Se expide cdp con certificado de no existencia personal 25768 del 5 de marzo de 2021, solicitud sipse 54657, memorando con solicitud 20216020008023 del 8 de marzo de 2021 y se recibe para trámite el 9 de marzo de 2021. SE EXPIDE CRP POR SOLICITUD CON RAD. N° 20216020009913 DEL 19 MARZO-2021SE RECIBE PARA TRAMITE EL 23 DE MARZO REVISADO SECOP II Y SIPSE. | I59: Inversión | J59: Un Nuevo Contrato Social y Ambiental para la Bogotá del Siglo XXI | K59: 43 | L59: Cultura ciudadana para la confianza, la convivencia y la participación desde la vida cotidiana | M59: =IF(ISERROR(VLOOKUP(K59,Proposito_programa!$C$2:$E$59,3,FALSE))," ",VLOOKUP(K59,Proposito_programa!$C$2:$E$59,3,FALSE)) -> Propósito 3: Inspirar confianza y legitimidad para vivir sin miedo y ser epicentro de cultura ciudadana, paz y reconciliación | N59: 1617 | O59: 0 | P59: 80793784 | Q59: LUIS CARLOS PEÑUELA VARGAS | R59: Persona Natural | Y59: 18000000 | AA59: 1 | AB59: 466667 | AC59: 18466667 | AD59: 16466667 | AE59: 2021-03-19 | AF59: 2021-03-24 | AG59: 2021-12-31 | AH59: 270 | AI59: 1 | AJ59: 8 | AQ59: X | AS59: 0.8916967529
A60: 276 | B60: 2021 | C60: FDLE-CD-276-2021 | D60: https://community.secop.gov.co/Public/Tendering/OpportunityDetail/Index?noticeUID=CO1.NTC.1859425&isFromPublicArea=True&isModal=False | E60: Contratos de prestación de servicios profesionales y de apoyo a la gestión | F60: Contratación directa | G60: Prestación de servicios profesionales y de apoyo a la gestión, o para la ejecución de trabajos artísticos que sólo puedan encomendarse a determinadas personas naturales; | H60: PRESTAR LOS SERVICIOS DE APOYO A LA GESTIÓN LOCAL Y TERRITORIAL DE LOS TEMAS DE CONVIVENCIA CIUDADANA, DE CONFORMIDAD CON EL MARCO NORMATIVO APLICABLE PARA LA MATERIA. Se expide cdp con certificado de no existencia personal 25767 del 5 de marzo de 2021, solicitud sipse 54655, memorando con solicitud 20216020007803 del 8 de marzo de 2021 y se recibe para trámite el 9 de marzo de 2021. SE EXPIDE CRP POR SOLICITUD CON RAD. N° 20216020009903 DEL 19 MARZO-2021SE RECIBE PARA TRAMITE EL 23 DE MARZO REVISADO SECOP II Y SIPSE. | I60: Inversión | J60: Un Nuevo Contrato Social y Ambiental para la Bogotá del Siglo XXI | K60: 43 | L60: Cultura ciudadana para la confianza, la convivencia y la participación desde la vida cotidiana | M60: =IF(ISERROR(VLOOKUP(K60,Proposito_programa!$C$2:$E$59,3,FALSE))," ",VLOOKUP(K60,Proposito_programa!$C$2:$E$59,3,FALSE)) -> Propósito 3: Inspirar confianza y legitimidad para vivir sin miedo y ser epicentro de cultura ciudadana, paz y reconciliación | N60: 1617 | O60: 0 | P60: 79048954 | Q60: JOSE MANUEL OROZCO MARTINEZ | R60: Persona Natural | Y60: 18000000 | AA60: 1 | AB60: 466667 | AC60: 18466667 | AD60: 16466667 | AE60: 2021-03-19 | AF60: 2021-03-24 | AG60: 2021-12-31 | AH60: 270 | AI60: 1 | AJ60: 8 | AQ60: X | AS60: 0.8916967529
A61: 277 | B61: 2021 | C61: FDLE-CD-277-2021 | D61: https://community.secop.gov.co/Public/Tendering/OpportunityDetail/Index?noticeUID=CO1.NTC.1849166&isFromPublicArea=True&isModal=False | E61: Contratos de prestación de servicios profesionales y de apoyo a la gestión | F61: Contratación directa | G61: Prestación de servicios profesionales y de apoyo a la gestión, o para la ejecución de trabajos artísticos que sólo puedan encomendarse a determinadas personas naturales; | H61: PRESTAR LOS SERVICIOS DE APOYO A LA GESTIÓN LOCAL Y TERRITORIAL DE LOS TEMAS DE CONVIVENCIA CIUDADANA, DE CONFORMIDAD CON EL MARCO NORMATIVO APLICABLE PARA LA MATERIA. Se expide cdp con certificado de no existencia personal 25767 del 5 de marzo de 2021, solicitud sipse 54655, memorando con solicitud 20216020007813 del 8 de marzo de 2021 y se recibe para trámite el 9 de marzo de 2021. SE EXPIDE CRP POR SOLICITUD CON RAD. N° 20216020009893 DEL 19 MARZO-2021SE RECIBE PARA TRAMITE EL 23 DE MARZO REVISADO SECOP II Y SIPSE. | I61: Inversión | J61: Un Nuevo Contrato Social y Ambiental para la Bogotá del Siglo XXI | K61: 43 | L61: Cultura ciudadana para la confianza, la convivencia y la participación desde la vida cotidiana | M61: =IF(ISERROR(VLOOKUP(K61,Proposito_programa!$C$2:$E$59,3,FALSE))," ",VLOOKUP(K61,Proposito_programa!$C$2:$E$59,3,FALSE)) -> Propósito 3: Inspirar confianza y legitimidad para vivir sin miedo y ser epicentro de cultura ciudadana, paz y reconciliación | N61: 1617 | O61: 0 | P61: 1015442096 | Q61: CAMILO ANDRES VARGAS VILLALOBOS | R61: Persona Natural | Y61: 18000000 | AA61: 1 | AB61: 466667 | AC61: 18466667 | AD61: 16466667 | AE61: 2021-03-19 | AF61: 2021-03-24 | AG61: 2021-12-31 | AH61: 270 | AI61: 1 | AJ61: 8 | AQ61: X | AS61: 0.8916967529
A62: 278 | B62: 2021 | C62: FDLE-CD-278-2021 | D62: https://community.secop.gov.co/Public/Tendering/OpportunityDetail/Index?noticeUID=CO1.NTC.1859959&isFromPublicArea=True&isModal=False | E62: Contratos de prestación de servicios profesionales y de apoyo a la gestión | F62: Contratación directa | G62: Prestación de servicios profesionales y de apoyo a la gestión, o para la ejecución de trabajos artísticos que sólo puedan encomendarse a determinadas personas naturales; | H62: PRESTAR LOS SERVICIOS DE APOYO A LA GESTIÓN LOCAL Y TERRITORIAL DE LOS TEMAS DE CONVIVENCIA CIUDADANA, DE CONFORMIDAD CON EL MARCO NORMATIVO APLICABLE PARA LA MATERIA. Se expide cdp con certificado de no existencia personal 25767 del 5 de marzo de 2021, solicitud sipse 54655, memorando con solicitud 20216020007823 del 8 de marzo de 2021 y se recibe para trámite el 9 de marzo de 2021. SE EXPIDE CRP POR SOLICITUD CON RAD. N° 202160200010373 DEL 23 MARZO-202SE RECIBE PARA TRAMITE EL 24 DE MARZO REVISADO SECOP II Y SIPSE. | I62: Inversión | J62: Un Nuevo Contrato Social y Ambiental para la Bogotá del Siglo XXI | K62: 43 | L62: Cultura ciudadana para la confianza, la convivencia y la participación desde la vida cotidiana | M62: =IF(ISERROR(VLOOKUP(K62,Proposito_programa!$C$2:$E$59,3,FALSE))," ",VLOOKUP(K62,Proposito_programa!$C$2:$E$59,3,FALSE)) -> Propósito 3: Inspirar confianza y legitimidad para vivir sin miedo y ser epicentro de cultura ciudadana, paz y reconciliación | N62: 1617 | O62: 0 | P62: 79040060 | Q62: HENRY SANCHEZ | R62: Persona Natural | Y62: 18000000 | AA62: 1 | AB62: 466667 | AC62: 18466667 | AD62: 16466667 | AE62: 2021-03-19 | AF62: 2021-03-24 | AG62: 2021-12-31 | AH62: 270 | AI62: 1 | AJ62: 8 | AQ62: X | AS62: 0.8916967529
A63: 280 | B63: 2021 | C63: FDLE-CD-280-2021 | D63: https://community.secop.gov.co/Public/Tendering/OpportunityDetail/Index?noticeUID=CO1.NTC.1858892&isFromPublicArea=True&isModal=False | E63: Contratos de prestación de servicios profesionales y de apoyo a la gestión | F63: Contratación directa | G63: Prestación de servicios profesionales y de apoyo a la gestión, o para la ejecución de trabajos artísticos que sólo puedan encomendarse a determinadas personas naturales; | H63: PRESTAR LOS SERVICIOS DE APOYO A LA GESTIÓN LOCAL Y TERRITORIAL DE LOS TEMAS DE CONVIVENCIA CIUDADANA, DE CONFORMIDAD CON EL MARCO NORMATIVO APLICABLE PARA LA MATERIA. Se expide cdp con certificado de no existencia personal 25767 del 5 de marzo de 2021, solicitud sipse 54655, memorando con solicitud 20216020007843 del 8 de marzo de 2021 y se recibe para trámite el 9 de marzo de 2021. SE EXPIDE CRP POR SOLICITUD CON RAD. N° 20216020009883 DEL 19 MARZO-2021SE RECIBE PARA TRAMITE EL 23 DE MARZO REVISADO SECOP II Y SIPSE. | I63: Inversión | J63: Un Nuevo Contrato Social y Ambiental para la Bogotá del Siglo XXI | K63: 43 | L63: Cultura ciudadana para la confianza, la convivencia y la participación desde la vida cotidiana | M63: =IF(ISERROR(VLOOKUP(K63,Proposito_programa!$C$2:$E$59,3,FALSE))," ",VLOOKUP(K63,Proposito_programa!$C$2:$E$59,3,FALSE)) -> Propósito 3: Inspirar confianza y legitimidad para vivir sin miedo y ser epicentro de cultura ciudadana, paz y reconciliación | N63: 1617 | O63: 0 | P63: 80188460 | Q63: JEFFERSON ORLANDO MARQUEZ SILVA | R63: Persona Natural | Y63: 18000000 | AA63: 1 | AB63: 466667 | AC63: 18466667 | AD63: 16466667 | AE63: 2021-03-19 | AF63: 2021-03-24 | AG63: 2021-12-31 | AH63: 270 | AI63: 1 | AJ63: 8 | AQ63: X | AS63: 0.8916967529
A64: 399 | B64: 2021 | C64: FDLE-CMA-399-2021 | D64: https://community.secop.gov.co/Public/Tendering/OpportunityDetail/Index?noticeUID=CO1.NTC.2429324&isFromPublicArea=True&isModal=False | E64: Interventoría | F64: Concurso de méritos | G64: No aplica | H64: Realizar la interventoría técnica, jurídica, administrativa, financiera y ambiental al contrato que tiene por objeto: realizar a monto agotable el mantenimiento, sembrado de árboles, labores de jardinería y restauración ecológica en la localidad de Engativá. Se expide cdp con solicitud SIPSE 64743, memorando con solicitud 20216020032533 del 12 de noviembre de 2021 y se recibe para trámite el 16 de noviembre de 2021. SE EXPIDE CRP POR SOLICITUD CON RAD N° 20216020035153 DE DIC 23-2021 SE RECIBE PARA TRAMITE EL 23 DE DIC 2021. | I64: Inversión | J64: Un Nuevo Contrato Social y Ambiental para la Bogotá del Siglo XXI | K64: 33 | L64: Más árboles y más y mejor espacio público | M64: =IF(ISERROR(VLOOKUP(K64,Proposito_programa!$C$2:$E$59,3,FALSE))," ",VLOOKUP(K64,Proposito_programa!$C$2:$E$59,3,FALSE)) -> Propósito 2 : Cambiar Nuestros Hábitos de Vida para Reverdecer a Bogotá y Adaptarnos y Mitigar la Crisis Climática | N64: 1610 | O64: 1 | P64: 900070729 | Q64: CORPORACION METAMORFOSIS | R64: Persona Jurídica | Y64: 18574636 | AA64: 0 | AB64: 0 | AC64: 18574636 | AD64: 0 | AE64: 2021-12-23 | AH64: 210 | AI64: 0 | AJ64: 0 | AO64: X | AP64: X | AS64: 0
A65: 10 | B65: 2021 | C65: FDLE-CD-010-2021 | D65: https://community.secop.gov.co/Public/Tendering/OpportunityDetail/Index?noticeUID=CO1.NTC.1792770&isFromPublicArea=True&isModal=False | E65: Contratos de prestación de servicios profesionales y de apoyo a la gestión | F65: Contratación directa | G65: Prestación de servicios profesionales y de apoyo a la gestión, o para la ejecución de trabajos artísticos que sólo puedan encomendarse a determinadas personas naturales; | H65: LA PRESTACIÓN DE SERVICIOS AL ÁREA DE GESTIÓN POLICIVA JURÍDICA Y AL DE GESTIÓN DE DESARROLLO LOCAL EN LA CONDUCCIÓN DE LOS VEHÍCULOS DE PROPIEDAD Y/O TENENCIA DEL FONDO DE DESARROLLO LOCAL DE ENGATIVÁ. Se expide CDP con certificado de no existencia personal 23811 del 28 de enero de 2021, solicitud sipse 54404, memorando con solicitud 20216020001233 y fecha que se expide Febrero 2/2021. SE EXPIDE CRP POR SOLICITUD CON RADICADO N° 20216020005883 FEB. 24 2021 SE RECIBE PARA TRAMITE EL 24 DE FEB-2021 REVISADO SECOP II Y SIPSE. | I65: Inversión | J65: Un Nuevo Contrato Social y Ambiental para la Bogotá del Siglo XXI | K65: 57 | L65: Gestión Pública Local | M65: =IF(ISERROR(VLOOKUP(K65,Proposito_programa!$C$2:$E$59,3,FALSE))," ",VLOOKUP(K65,Proposito_programa!$C$2:$E$59,3,FALSE)) -> Propósito 5: Construir Bogotá - Región con gobierno abierto, transparente y ciudadanía consciente | N65: 1623 | O65: 0 | P65: 79431088 | Q65: WILLIAM FERNANDO VEGA NEME | R65: Persona Natural | Y65: 20000000 | AA65: 0 | AB65: 0 | AC65: 20000000 | AD65: 20000000 | AE65: 2021-02-23 | AF65: 2021-02-24 | AG65: 2021-10-23 | AH65: 240 | AI65: 0 | AJ65: 0 | AQ65: X | AS65: 1
A66: 353A | B66: 2021 | C66: FDLE-CD-353-2021 | D66: https://www.contratos.gov.co/consultas/detalleProceso.do?numConstancia=21-22-27456&g-recaptcha-response=03AGdBq248b8lYBmBYgo092C4CKl7j8iBWGoqzi_npQQOv0ypvoFtAgmMlAmvO0vbJ6z0V9gTKcAQgZcoP4pK4cgDHIR9_U_ | E66: Contratos interadministrativos | F66: Contratación directa | G66: Contratos interadministrativos | H66: Aunar esfuerzos técnicos, administrativos y financieros con el fin de desarrollar acciones articuladas entre las partes orientadas a fomentar la generación y circulación de bienes y servicios culturales, artísticos y patrimoniales, así como al fortalecimiento de los agentes de estos sectores en las localidades del Distrito Capital de acuerdo con los Proyectos presentados al Fondo de Desarrollo Local de Engativá y el cual forma parte del convenio en el marco del programa "Es Cultura Local 2021". Se expide cdp con solicitud sipse 59632 y memorando con solicitud 20216020017533 del 18 de junio de 2021 y se recibe para trámite el 18 de junio de 2021. Se expide crp por solicitud con radicado número 20216020018663 del 30 de junio de 2021 y se recibe para trámite el 30 de junio de 2021. | I66: Inversión | J66: Un Nuevo Contrato Social y Ambiental para la Bogotá del Siglo XXI | K66: 6 | L66: Sistema Distrital del Cuidado | M66: =IF(ISERROR(VLOOKUP(K66,Proposito_programa!$C$2:$E$59,3,FALSE))," ",VLOOKUP(K66,Proposito_programa!$C$2:$E$59,3,FALSE)) -> Propósito 1: Hacer un nuevo contrato social para incrementar la inclusión social, productiva y política | N66: 1598 | O66: 2 | P66: 899999061 | Q66: SECRETARIA DISTRITAL DE CULTURA RECREACI ON Y DEPORTE | R66: Persona Jurídica | Y66: 20000000 | AA66: 0 | AB66: 0 | AC66: 20000000 | AD66: 20000000 | AE66: 2021-06-30 | AF66: 2021-07-07 | AG66: 2022-06-30 | AH66: 175 | AI66: 1 | AJ66: 180 | AP66: X | AS66: 1
A67: 364 | B67: 2021 | C67: FDLE-CD-364-2021 | D67: https://community.secop.gov.co/Public/Tendering/OpportunityDetail/Index?noticeUID=CO1.NTC.2173926&isFromPublicArea=True&isModal=False | E67: Contratos de prestación de servicios profesionales y de apoyo a la gestión | F67: Contratación directa | G67: Prestación de servicios profesionales y de apoyo a la gestión, o para la ejecución de trabajos artísticos que sólo puedan encomendarse a determinadas personas naturales; | H67: PRESTAR LOS SERVICIOS PROFESIONALES PARA APOYAR JURÍDICAMENTE LAS RESPUESTAS A LAS SOLICITUDES RADICADAS POR LOS ENTES DE CONTROL Y TEMAS RELACIONADOS CON PLANES DE MEJORAMIENTO. Se expide cdp con certificado de no existencia personal 27436 del 10 de agosto 2021, solicitud sipse 60844, memorando con solicitud 20216020021293 del 11 de agosto de 2021 y se recibe para trámite el 11 de agosto de 2021. SE EXPIDE CRP POR SOLICITUD CON RAD. N°20216020021513 AGO.13.2021 SE RECIBE PARA TRAMITE EL 18 DE AGOSTO VERIFICADO SIPSE. | I67: Inversión | J67: Un Nuevo Contrato Social y Ambiental para la Bogotá del Siglo XXI | K67: 57 | L67: Gestión Pública Local | M67: =IF(ISERROR(VLOOKUP(K67,Proposito_programa!$C$2:$E$59,3,FALSE))," ",VLOOKUP(K67,Proposito_programa!$C$2:$E$59,3,FALSE)) -> Propósito 5: Construir Bogotá - Región con gobierno abierto, transparente y ciudadanía consciente | N67: 1623 | O67: 0 | P67: 1014264025 | Q67: DANIELA GUTIERREZ RODRIGUEZ | R67: Persona Natural | Y67: 20250000 | AA67: 0 | AB67: 0 | AC67: 20250000 | AD67: 15450000 | AE67: 2021-08-13 | AF67: 2021-08-18 | AG67: 2022-01-01 | AH67: 135 | AI67: 0 | AJ67: 0 | AQ67: X | AS67: 0.762962963
A68: 83 | B68: 2021 | C68: FDLE-CD-83-2021 | D68: https://community.secop.gov.co/Public/Tendering/OpportunityDetail/Index?noticeUID=CO1.NTC.1867932&isFromPublicArea=True&isModal=False | E68: Contratos de prestación de servicios profesionales y de apoyo a la gestión | F68: Contratación directa | G68: Prestación de servicios profesionales y de apoyo a la gestión, o para la ejecución de trabajos artísticos que sólo puedan encomendarse a determinadas personas naturales; | H68: APOYAR LA GESTIÓN DOCUMENTAL DE LA ALCALDÍA LOCAL EN LA IMPLEMENTACIÓN DE LOS PROCESOS DE CLASIFICACIÓN, ORDENACIÓN, SELECCIÓN NATURAL, FOLIACIÓN, IDENTIFICACIÓN, LEVANTAMIENTO DE INVENTARIOS, ALMACENAMIENTO Y APLICACIÓN DE PROTOCOLOS DE ELIMINACIÓN Y TRANSFERENCIAS DOCUMENTALES, Se expide CDP con certificado de No existencia de personal 23876 de fecha 29 de enero de 2021, solicitud SIPSE 55030, memorando con solicitud 20216020001723 recibido para tramite de fecha Feb 03/2021. SE EXPIDE CRP POR SOLICITUD CON RAD. N° 202160200010543 DEL 23 MAR.-2021SE RECIBE PARA TRAMITE EL 25 DE MARZO REVISADO SECOP II Y SIPSE. | I68: Inversión | J68: Un Nuevo Contrato Social y Ambiental para la Bogotá del Siglo XXI | K68: 57 | L68: Gestión Pública Local | M68: =IF(ISERROR(VLOOKUP(K68,Proposito_programa!$C$2:$E$59,3,FALSE))," ",VLOOKUP(K68,Proposito_programa!$C$2:$E$59,3,FALSE)) -> Propósito 5: Construir Bogotá - Región con gobierno abierto, transparente y ciudadanía consciente | N68: 1623 | O68: 0 | P68: 1032455117 | Q68: DAYAAN TATIANA JIMENEZ QUEVEDO | R68: Persona Natural | Y68: 20700000 | AA68: 0 | AB68: 0 | AC68: 20700000 | AD68: 18783333 | AE68: 2021-03-24 | AF68: 2021-03-26 | AG68: 2021-12-25 | AH68: 270 | AI68: 0 | AJ68: 0 | AQ68: X | AS68: 0.9074073913
A69: 84 | B69: 2021 | C69: FDLE-CD-84-2021 | D69: https://community.secop.gov.co/Public/Tendering/OpportunityDetail/Index?noticeUID=CO1.NTC.1827794&isFromPublicArea=True&isModal=False | E69: Contratos de prestación de servicios profesionales y de apoyo a la gestión | F69: Contratación directa | G69: Prestación de servicios profesionales y de apoyo a la gestión, o para la ejecución de trabajos artísticos que sólo puedan encomendarse a determinadas personas naturales; | H69: APOYAR LA GESTIÓN DOCUMENTAL DE LA ALCALDÍA LOCAL EN LA IMPLEMENTACIÓN DE LOS PROCESOS DE CLASIFICACIÓN, ORDENACIÓN, SELECCIÓN NATURAL, FOLIACIÓN, IDENTIFICACIÓN, LEVANTAMIENTO DE INVENTARIOS, ALMACENAMIENTO Y APLICACIÓN DE PROTOCOLOS DE ELIMINACIÓN Y TRANSFERENCIAS DOCUMENTALES, Se expide CDP con certificado de No existencia de personal 23876 de fecha 29 de enero de 2021, solicitud SIPSE 55030, memorando con solicitud 20216020001733 recibido para tramite de fecha Feb 03/2021. SE EXPIDDE CRP POR SOLICITUD CON RAD. N° 20216020007753 08. MAR.2021 SE RECIBE PARA TRAMITE EL 09 DE MARZ.2021 REVISADO SECOPII Y SIPSE. | I69: Inversión | J69: Un Nuevo Contrato Social y Ambiental para la Bogotá del Siglo XXI | K69: 57 | L69: Gestión Pública Local | M69: =IF(ISERROR(VLOOKUP(K69,Proposito_programa!$C$2:$E$59,3,FALSE))," ",VLOOKUP(K69,Proposito_programa!$C$2:$E$59,3,FALSE)) -> Propósito 5: Construir Bogotá - Región con gobierno abierto, transparente y ciudadanía consciente | N69: 1623 | O69: 0 | P69: 1014260298 | Q69: JUAN PABLO DURAN GOMEZ | R69: Persona Natural | Y69: 20700000 | AA69: 0 | AB69: 0 | AC69: 20700000 | AD69: 20086667 | AE69: 2021-03-09 | AF69: 2021-03-09 | AG69: 2021-12-08 | AH69: 270 | AI69: 0 | AJ69: 0 | AQ69: X | AS69: 0.9703703865
A70: 87 | B70: 2021 | C70: FDLE-CD-87-2021 | D70: https://community.secop.gov.co/Public/Tendering/OpportunityDetail/Index?noticeUID=CO1.NTC.1867939&isFromPublicArea=True&isModal=False | E70: Contratos de prestación de servicios profesionales y de apoyo a la gestión | F70: Contratación directa | G70: Prestación de servicios profesionales y de apoyo a la gestión, o para la ejecución de trabajos artísticos que sólo puedan encomendarse a determinadas personas naturales; | H70: APOYAR LA GESTIÓN DOCUMENTAL DE LA ALCALDÍA LOCAL EN LA IMPLEMENTACIÓN DE LOS PROCESOS DE CLASIFICACIÓN, ORDENACIÓN, SELECCIÓN NATURAL, FOLIACIÓN, IDENTIFICACIÓN, LEVANTAMIENTO DE INVENTARIOS, ALMACENAMIENTO Y APLICACIÓN DE PROTOCOLOS DE ELIMINACIÓN Y TRANSFERENCIAS DOCUMENTALES, Se expide CDP con certificado de No existencia de personal 23876 de fecha 29 de enero de 2021, solicitud SIPSE 55030, memorando con solicitud 20216020001763 recibido para tramite de fecha Feb 03/2021. SE EXPIDE CRP POR SOLICITUD CON RAD. N° 202160200010563 DEL 23 MAR.-2021SE RECIBE PARA TRAMITE EL 25 DE MARZO REVISADO SECOP II Y SIPSE. | I70: Inversión | J70: Un Nuevo Contrato Social y Ambiental para la Bogotá del Siglo XXI | K70: 57 | L70: Gestión Pública Local | M70: =IF(ISERROR(VLOOKUP(K70,Proposito_programa!$C$2:$E$59,3,FALSE))," ",VLOOKUP(K70,Proposito_programa!$C$2:$E$59,3,FALSE)) -> Propósito 5: Construir Bogotá - Región con gobierno abierto, transparente y ciudadanía consciente | N70: 1623 | O70: 0 | P70: 1014258999 | Q70: JUAN SEBASTIAN LOPEZ BERNAL | R70: Persona Natural | Y70: 20700000 | AA70: 0 | AB70: 0 | AC70: 20700000 | AD70: 18476666 | AE70: 2021-03-24 | AF70: 2021-03-26 | AG70: 2021-12-29 | AH70: 270 | AI70: 0 | AJ70: 0 | AQ70: X | AS70: 0.8925925604
A71: 202 | B71: 2021 | C71: FDLE-CD-202-2021 | D71: https://community.secop.gov.co/Public/Tendering/OpportunityDetail/Index?noticeUID=CO1.NTC.1890581&isFromPublicArea=True&isModal=False | E71: Contratos de prestación de servicios profesionales y de apoyo a la gestión | F71: Contratación directa | G71: Prestación de servicios profesionales y de apoyo a la gestión, o para la ejecución de trabajos artísticos que sólo puedan encomendarse a determinadas personas naturales; | H71: APOYAR ADMINISTRATIVA Y ASISTENCIALMENTE A LAS INSPECCIONES DE POLICÍA DE LA LOCALIDAD. Se expide cdp con certificado de no existencia personal 25353 del 19 de febrero de 2021, solicitud sipse 57173, memorando con solicitud 20216020005413 del 22 de febrero de 2021 y se recibe para trámite el 24 de febrero de 2021. SE EXPIDE CRP PPOR SOLICITUD CON RAD. N° 20216020011773 DE ABR.06.2021 REVISADO SECOP II. | I71: Inversión | J71: Un Nuevo Contrato Social y Ambiental para la Bogotá del Siglo XXI | K71: 57 | L71: Gestión Pública Local | M71: =IF(ISERROR(VLOOKUP(K71,Proposito_programa!$C$2:$E$59,3,FALSE))," ",VLOOKUP(K71,Proposito_programa!$C$2:$E$59,3,FALSE)) -> Propósito 5: Construir Bogotá - Región con gobierno abierto, transparente y ciudadanía consciente | N71: 1624 | O71: 0 | P71: 1023931044 | Q71: MARIA LUCEY GUEVARA SUPELANO | R71: Persona Natural | Y71: 20700000 | AA71: 0 | AB71: 0 | AC71: 20700000 | AD71: 17940000 | AE71: 2021-04-05 | AF71: 2021-04-07 | AG71: 2022-01-06 | AH71: 270 | AI71: 0 | AJ71: 0 | AQ71: X | AS71: 0.8666666667
A72: 203 | B72: 2021 | C72: FDLE-CD-203-2021 | D72: https://community.secop.gov.co/Public/Tendering/OpportunityDetail/Index?noticeUID=CO1.NTC.1840311&isFromPublicArea=True&isModal=False | E72: Contratos de prestación de servicios profesionales y de apoyo a la gestión | F72: Contratación directa | G72: Prestación de servicios profesionales y de apoyo a la gestión, o para la ejecución de trabajos artísticos que sólo puedan encomendarse a determinadas personas naturales; | H72: APOYAR ADMINISTRATIVA Y ASISTENCIALMENTE A LAS INSPECCIONES DE POLICÍA DE LA LOCALIDAD. Se expide cdp con certificado de no existencia personal 25353 del 19 de febrero de 2021, solicitud sipse 57173, memorando con solicitud 20216020005423 del 22 de febrero de 2021 y se recibe para trámite el 24 de febrero de 2021. SE EXPIDE CRP POR SOLICITUD CON RAD. N° 20216020009053 DEL 12 MARZO-2021SE RECIBE PARA TRAMITE EL 17 DE MARZO REVISADO SECOP II Y SIPSE. | I72: Inversión | J72: Un Nuevo Contrato Social y Ambiental para la Bogotá del Siglo XXI | K72: 57 | L72: Gestión Pública Local | M72: =IF(ISERROR(VLOOKUP(K72,Proposito_programa!$C$2:$E$59,3,FALSE))," ",VLOOKUP(K72,Proposito_programa!$C$2:$E$59,3,FALSE)) -> Propósito 5: Construir Bogotá - Región con gobierno abierto, transparente y ciudadanía consciente | N72: 1624 | O72: 0 | P72: 80799453 | Q72: ROYER HENRY VELOZA DIAZ | R72: Persona Natural | Y72: 20700000 | AA72: 0 | AB72: 0 | AC72: 20700000 | AD72: 17480000 | AE72: 2021-03-12 | AF72: 2021-03-17 | AG72: 2021-12-16 | AH72: 270 | AI72: 0 | AJ72: 0 | AK72: 1014300219 | AL72: VALENTINA DIAZ PEÑA | AM72: 2021-09-27 | AN72: 6133333 | AQ72: X | AS72: 0.8444444444
A73: 204 | B73: 2021 | C73: FDLE-CD-204-2021 | D73: https://community.secop.gov.co/Public/Tendering/OpportunityDetail/Index?noticeUID=CO1.NTC.1840121&isFromPublicArea=True&isModal=False | E73: Contratos de prestación de servicios profesionales y de apoyo a la gestión | F73: Contratación directa | G73: Prestación de servicios profesionales y de apoyo a la gestión, o para la ejecución de trabajos artísticos que sólo puedan encomendarse a determinadas personas naturales; | H73: APOYAR ADMINISTRATIVA Y ASISTENCIALMENTE A LAS INSPECCIONES DE POLICÍA DE LA LOCALIDAD. Se expide cdp con certificado de no existencia personal 25353 del 19 de febrero de 2021, solicitud sipse 57173, memorando con solicitud 20216020005443 del 22 de febrero de 2021 y se recibe para trámite el 24 de febrero de 2021. SE EXPIDE CRP POR SOLICITUD CON RAD. N° 20216020009023 DEL 12 MARZO-2021SE RECIBE PARA TRAMITE EL 17 DE MARZO REVISADO SECOP II Y SIPSE. | I73: Inversión | J73: Un Nuevo Contrato Social y Ambiental para la Bogotá del Siglo XXI | K73: 57 | L73: Gestión Pública Local | M73: =IF(ISERROR(VLOOKUP(K73,Proposito_programa!$C$2:$E$59,3,FALSE))," ",VLOOKUP(K73,Proposito_programa!$C$2:$E$59,3,FALSE)) -> Propósito 5: Construir Bogotá - Región con gobierno abierto, transparente y ciudadanía consciente | N73: 1624 | O73: 0 | P73: 52482153 | Q73: KRIS YADDY SANCHEZ LOPEZ | R73: Persona Natural | Y73: 20700000 | AA73: 0 | AB73: 0 | AC73: 20700000 | AD73: 19013333 | AE73: 2021-03-12 | AF73: 2021-03-23 | AG73: 2021-12-22 | AH73: 270 | AI73: 0 | AJ73: 0 | AQ73: X | AS73: 0.9185185024
A74: 207 | B74: 2021 | C74: FDLE-CD-207-2021 | D74: https://community.secop.gov.co/Public/Tendering/OpportunityDetail/Index?noticeUID=CO1.NTC.1850774&isFromPublicArea=True&isModal=False | E74: Contratos de prestación de servicios profesionales y de apoyo a la gestión | F74: Contratación directa | G74: Prestación de servicios profesionales y de apoyo a la gestión, o para la ejecución de trabajos artísticos que sólo puedan encomendarse a determinadas personas naturales; | H74: APOYAR ADMINISTRATIVA Y ASISTENCIALMENTE A LAS INSPECCIONES DE POLICÍA DE LA LOCALIDAD. Se expide cdp con certificado de no existencia personal 25353 del 19 de febrero de 2021, solicitud sipse 57173, memorando con solicitud 20216020005473 del 22 de febrero de 2021 y se recibe para trámite el 24 de febrero de 2021. SE EXPIDE CRP POR SOLICITUD CON RAD. N° 202160200010473 DEL 23 MARZO-202SE RECIBE PARA TRAMITE EL 24 DE MARZO REVISADO SECOP II Y SIPSE. | I74: Inversión | J74: Un Nuevo Contrato Social y Ambiental para la Bogotá del Siglo XXI | K74: 57 | L74: Gestión Pública Local | M74: =IF(ISERROR(VLOOKUP(K74,Proposito_programa!$C$2:$E$59,3,FALSE))," ",VLOOKUP(K74,Proposito_programa!$C$2:$E$59,3,FALSE)) -> Propósito 5: Construir Bogotá - Región con gobierno abierto, transparente y ciudadanía consciente | N74: 1624 | O74: 0 | P74: 20739617 | Q74: ANDREA FUENTES MURCIA | R74: Persona Natural | Y74: 20700000 | AA74: 0 | AB74: 0 | AC74: 20700000 | AD74: 18936667 | AE74: 2021-03-19 | AF74: 2021-03-24 | AG74: 2021-12-23 | AH74: 270 | AI74: 0 | AJ74: 0 | AQ74: X | AS74: 0.9148148309
A75: 209 | B75: 2021 | C75: FDLE-CD-209-2021 | D75: https://community.secop.gov.co/Public/Tendering/OpportunityDetail/Index?noticeUID=CO1.NTC.1890648&isFromPublicArea=True&isModal=False | E75: Contratos de prestación de servicios profesionales y de apoyo a la gestión | F75: Contratación directa | G75: Prestación de servicios profesionales y de apoyo a la gestión, o para la ejecución de trabajos artísticos que sólo puedan encomendarse a determinadas personas naturales; | H75: APOYAR ADMINISTRATIVA Y ASISTENCIALMENTE A LAS INSPECCIONES DE POLICÍA DE LA LOCALIDAD. Se expide cdp con certificado de no existencia personal 25353 del 19 de febrero de 2021, solicitud sipse 57173, memorando con solicitud 20216020005493 del 22 de febrero de 2021 y se recibe para trámite el 24 de febrero de 2021. SE EXPIDE CRP POR SOLICITUD CON RAD. N° 20216020011813 ABR.07.2021 SE RECIBE PARA TRAMITE EL 08 DE ABRIL 2021 REVISADO SECOP II Y SIPSE. | I75: Inversión | J75: Un Nuevo Contrato Social y Ambiental para la Bogotá del Siglo XXI | K75: 57 | L75: Gestión Pública Local | M75: =IF(ISERROR(VLOOKUP(K75,Proposito_programa!$C$2:$E$59,3,FALSE))," ",VLOOKUP(K75,Proposito_programa!$C$2:$E$59,3,FALSE)) -> Propósito 5: Construir Bogotá - Región con gobierno abierto, transparente y ciudadanía consciente | N75: 1624 | O75: 0 | P75: 24040547 | Q75: REMIGIA CEPEDA GAMBOA | R75: Persona Natural | Y75: 20700000 | AA75: 0 | AB75: 0 | AC75: 20700000 | AD75: 17863333 | AE75: 2021-04-06 | AF75: 2021-04-08 | AG75: 2022-01-07 | AH75: 270 | AI75: 0 | AJ75: 0 | AQ75: X | AS75: 0.8629629469
A76: 210 | B76: 2021 | C76: FDLE-CD-210-2021 | D76: https://community.secop.gov.co/Public/Tendering/OpportunityDetail/Index?noticeUID=CO1.NTC.1841103&isFromPublicArea=True&isModal=False | E76: Contratos de prestación de servicios profesionales y de apoyo a la gestión | F76: Contratación directa | G76: Prestación de servicios profesionales y de apoyo a la gestión, o para la ejecución de trabajos artísticos que sólo puedan encomendarse a determinadas personas naturales; | H76: APOYAR LAS LABORES DE ENTREGA Y RECIBO DE LAS COMUNICACIONES EMITIDAS O RECIBIDAS POR LAS INSPECCIONES DE POLICÍA DE LA LOCALIDAD. Se expide cdp con certificado de no existencia personal 25352 del 19 de febrero de 2021, solicitud sipse 57175, memorando con solicitud 20216020005343 del 22 de febrero de 2021 y se recibe para trámite el 24 de febrero 2021. SE EXPIDE CRP POR SOLICITUD CON RAD. N° 20216020010833 DEL 26 MAR.2021 SE RECIBE PARA TRAMITE EL 30 DE MARZO REVISADO SECOP II Y SIPSE. | I76: Inversión | J76: Un Nuevo Contrato Social y Ambiental para la Bogotá del Siglo XXI | K76: 57 | L76: Gestión Pública Local | M76: =IF(ISERROR(VLOOKUP(K76,Proposito_programa!$C$2:$E$59,3,FALSE))," ",VLOOKUP(K76,Proposito_programa!$C$2:$E$59,3,FALSE)) -> Propósito 5: Construir Bogotá - Región con gobierno abierto, transparente y ciudadanía consciente | N76: 1624 | O76: 0 | P76: 1024597859 | Q76: JOHAN SEBASTIAN FORERO ACERO | R76: Persona Natural | Y76: 20700000 | AA76: 0 | AB76: 0 | AC76: 20700000 | AD76: 18093333 | AE76: 2021-03-24 | AF76: 2021-04-05 | AG76: 2022-01-04 | AH76: 270 | AI76: 0 | AJ76: 0 | AQ76: X | AS76: 0.874074058
A77: 211 | B77: 2021 | C77: FDLE-CD-211-2021 | D77: https://community.secop.gov.co/Public/Tendering/OpportunityDetail/Index?noticeUID=CO1.NTC.1860007&isFromPublicArea=True&isModal=False | E77: Contratos de prestación de servicios profesionales y de apoyo a la gestión | F77: Contratación directa | G77: Prestación de servicios profesionales y de apoyo a la gestión, o para la ejecución de trabajos artísticos que sólo puedan encomendarse a determinadas personas naturales; | H77: APOYAR LAS LABORES DE ENTREGA Y RECIBO DE LAS COMUNICACIONES EMITIDAS O RECIBIDAS POR LAS INSPECCIONES DE POLICÍA DE LA LOCALIDAD. Se expide cdp con certificado de no existencia personal 25352 del 19 de febrero de 2021, solicitud sipse 57175, memorando con solicitud 20216020005353 del 22 de febrero de 2021 y se recibe para trámite el 24 de febrero 2021. SE EXPIDE CRP POR SOLICITUD CON RAD. N° 202160200010403 DEL 23 MARZO-202SE RECIBE PARA TRAMITE EL 24 DE MARZO REVISADO SECOP II Y SIPSE. | I77: Inversión | J77: Un Nuevo Contrato Social y Ambiental para la Bogotá del Siglo XXI | K77: 57 | L77: Gestión Pública Local | M77: =IF(ISERROR(VLOOKUP(K77,Proposito_programa!$C$2:$E$59,3,FALSE))," ",VLOOKUP(K77,Proposito_programa!$C$2:$E$59,3,FALSE)) -> Propósito 5: Construir Bogotá - Región con gobierno abierto, transparente y ciudadanía consciente | N77: 1624 | O77: 0 | P77: 1018426339 | Q77: JUAN SEBASTIAN RODRIGUEZ BOLAÑOS | R77: Persona Natural | Y77: 20700000 | AA77: 0 | AB77: 0 | AC77: 20700000 | AD77: 18936667 | AE77: 2021-03-23 | AF77: 2021-03-24 | AG77: 2021-12-23 | AH77: 270 | AI77: 0 | AJ77: 0 | AQ77: X | AS77: 0.9148148309
A78: 251 | B78: 2021 | C78: FDLE-CD-251-2021 | D78: https://community.secop.gov.co/Public/Tendering/OpportunityDetail/Index?noticeUID=CO1.NTC.1832610&isFromPublicArea=True&isModal=False | E78: Contratos de prestación de servicios profesionales y de apoyo a la gestión | F78: Contratación directa | G78: Prestación de servicios profesionales y de apoyo a la gestión, o para la ejecución de trabajos artísticos que sólo puedan encomendarse a determinadas personas naturales; | H78: PRESTACIÓN DE SERVICIOS DE APOYO AUXILIAR-LOGÍSTICO EN LA EJECUCIÓN DE ACTIVIDADES DE OBRA CIVIL QUE CONLLEVEN AL MEJORAMIENTO Y ADECUACIÓN DEL ESPACIO PÚBLICO Y LA MALLA VIAL DE LA LOCALIDAD DE ENGATIVÁ. Se expide CDP con certificado de No existencia de personal 25152 de fecha 15 de febrero de 2020, solicitud SIPSE 54605, memorando con solicitud 20216020005053 recibido para tramite de fecha Feb 24 de 2021. SE EXPIDE CRP POR SOLICITUD CON RAD. N° 20216020008733 DEL 12 MARZO-2021SE RECIBE PARA TRAMITE EL 15 DE MARZO REVISADO SECOP II Y SIPSE. | I78: Inversión | J78: Un Nuevo Contrato Social y Ambiental para la Bogotá del Siglo XXI | K78: 49 | L78: Movilidad segura, sostenible y accesible | M78: =IF(ISERROR(VLOOKUP(K78,Proposito_programa!$C$2:$E$59,3,FALSE))," ",VLOOKUP(K78,Proposito_programa!$C$2:$E$59,3,FALSE)) -> Propósito 4: Hacer de Bogotá Región un modelo de movilidad multimodal, incluyente y sostenible | N78: 1621 | O78: 0 | P78: 1069402338 | Q78: OMAR ADOLFO GONZALEZ RAMIREZ | R78: Persona Natural | Y78: 20700000 | AA78: 0 | AB78: 0 | AC78: =+Y78+Z78+AB78 -> 20700000 | AD78: 17863333 | AE78: 2021-03-11 | AF78: 2021-03-15 | AG78: 2022-01-07 | AH78: 270 | AI78: 0 | AJ78: 0 | AQ78: X | AS78: =IF(ISERROR(AD78/AC78),"-",(AD78/AC78)) -> 0.8629629469
A79: 256 | B79: 2021 | C79: FDEL-CD-256-2021 | D79: https://community.secop.gov.co/Public/Tendering/OpportunityDetail/Index?noticeUID=CO1.NTC.1833996&isFromPublicArea=True&isModal=False | E79: Contratos de prestación de servicios profesionales y de apoyo a la gestión | F79: Contratación directa | G79: Prestación de servicios profesionales y de apoyo a la gestión, o para la ejecución de trabajos artísticos que sólo puedan encomendarse a determinadas personas naturales; | H79: PRESTACIÓN DE SERVICIOS AUXILIARES EN LA CONDUCCIÓN DE LOS VEHÍCULOS DE CARGA PESADA, VOLQUETAS SENCILLA O DOBLE TROQUE, VEHÍCULO ARTICULADO, CAMIÓN Y VEHÍCULOS EN GENERAL DE PROPIEDAD Y/O TENENCIA DEL FONDO DE DESARROLLO LOCAL DE ENGATIVÁ. Se expide cdp con certificado de no existencia personal 23912 del 29 de enero 2021, solicitud sipse 54600, memorando con solicitud 20216020003333 con fecha del 10 de febrero 2021 y se recibe para trámiteel 11 de febrero de 2021. SE EXPIDE CRP POR SOLICITUD CON RAD. N° 20216020008763 DEL 12 MARZO-2021SE RECIBE PARA TRAMITE EL 15 DE MARZO REVISADO SECOP II Y SIPSE. | I79: Inversión | J79: Un Nuevo Contrato Social y Ambiental para la Bogotá del Siglo XXI | K79: 49 | L79: Movilidad segura, sostenible y accesible | M79: =IF(ISERROR(VLOOKUP(K79,Proposito_programa!$C$2:$E$59,3,FALSE))," ",VLOOKUP(K79,Proposito_programa!$C$2:$E$59,3,FALSE)) -> Propósito 4: Hacer de Bogotá Región un modelo de movilidad multimodal, incluyente y sostenible | N79: 1621 | O79: 0 | P79: 1016011037 | Q79: WILMAR ARCENIO GOMEZ VANEGAS | R79: Persona Natural | Y79: 20700000 | AA79: 0 | AB79: 0 | AC79: 20700000 | AD79: 10426667 | AE79: 2021-03-11 | AF79: 2021-03-15 | AG79: 2021-08-04 | AH79: 270 | AI79: 1 | AJ79: 1 | AQ79: X | AS79: 0.5037037198
A80: 259 | B80: 2021 | C80: FDLE-CD-259-2021 | D80: https://community.secop.gov.co/Public/Tendering/OpportunityDetail/Index?noticeUID=CO1.NTC.1835192&isFromPublicArea=True&isModal=False | E80: Contratos de prestación de servicios profesionales y de apoyo a la gestión | F80: Contratación directa | G80: Prestación de servicios profesionales y de apoyo a la gestión, o para la ejecución de trabajos artísticos que sólo puedan encomendarse a determinadas personas naturales; | H80: PRESTACIÓN DE SERVICIOS DE APOYO AUXILIAR-LOGÍSTICO EN LA EJECUCIÓN DE ACTIVIDADES DE OBRA CIVIL QUE CONLLEVEN AL MEJORAMIENTO Y ADECUACIÓN DEL ESPACIO PÚBLICO Y LA MALLA VIAL DE LA LOCALIDAD DE ENGATIVÁ. Se expide CDP con certificado de No existencia de personal 25152 de fecha 15 de febrero de 2020, solicitud SIPSE 54605, memorando con solicitud 20216020005043 recibido para tramite de fecha Feb 24 de 2021. SE EXPIDE CRP POR SOLICITUD CON RAD. N° 20216020009713 DEL 18 MARZO-2021SE RECIBE PARA TRAMITE EL 18 DE MARZO REVISADO SECOP II Y SIPSE. | I80: Inversión | J80: Un Nuevo Contrato Social y Ambiental para la Bogotá del Siglo XXI | K80: 49 | L80: Movilidad segura, sostenible y accesible | M80: =IF(ISERROR(VLOOKUP(K80,Proposito_programa!$C$2:$E$59,3,FALSE))," ",VLOOKUP(K80,Proposito_programa!$C$2:$E$59,3,FALSE)) -> Propósito 4: Hacer de Bogotá Región un modelo de movilidad multimodal, incluyente y sostenible | N80: 1621 | O80: 0 | P80: 79325159 | Q80: JUAN FERNANDO BOHORQUEZ PEDRAZA | R80: Persona Natural | Y80: 20700000 | AA80: 0 | AB80: 0 | AC80: 20700000 | AD80: 19396667 | AE80: 2021-03-17 | AF80: 2021-03-18 | AG80: 2021-12-17 | AH80: 270 | AI80: 0 | AJ80: 0 | AQ80: X | AS80: 0.9370370531
A81: 275 | B81: 2021 | C81: FDLE-CD-299-2021 | D81: https://community.secop.gov.co/Public/Tendering/OpportunityDetail/Index?noticeUID=CO1.NTC.1876402&isFromPublicArea=True&isModal=False | E81: Contratos de prestación de servicios profesionales y de apoyo a la gestión | F81: Contratación directa | G81: Prestación de servicios profesionales y de apoyo a la gestión, o para la ejecución de trabajos artísticos que sólo puedan encomendarse a determinadas personas naturales; | H81: APOYAR LA GESTIÓN DOCUMENTAL DE LA ALCALDÍA LOCAL EN LA IMPLEMENTACIÓN DE LOS PROCESOS DE CLASIFICACIÓN, ORDENACIÓN, SELECCIÓN NATURAL, FOLIACIÓN, IDENTIFICACIÓN, LEVANTAMIENTO DE INVENTARIOS, ALMACENAMIENTO Y APLICACIÓN DE PROTOCOLOS DE ELIMINACIÓN Y TRANSFERENCIAS DOCUMENTALES. Se expide cdp con certificado de no existencia personal 24250 del 2 de febrero de 2021, solicitud sipse 54398, memorando con solicitud 20216020002473 se expide en Febrero 8/2021. SE EXPIDE CRP POR SOLICITUD CON RAD. N° 202016020011253 MAR.29.2021 SE RECIBE PARA TRAMITE EL 30 DE MARZO 2021. | I81: Inversión | J81: Un Nuevo Contrato Social y Ambiental para la Bogotá del Siglo XXI | K81: 57 | L81: Gestión Pública Local | M81: =IF(ISERROR(VLOOKUP(K81,Proposito_programa!$C$2:$E$59,3,FALSE))," ",VLOOKUP(K81,Proposito_programa!$C$2:$E$59,3,FALSE)) -> Propósito 5: Construir Bogotá - Región con gobierno abierto, transparente y ciudadanía consciente | N81: 1623 | O81: 0 | P81: 1104934230 | Q81: ANDRES FELIPE DIAZ SALAZAR | R81: Persona Natural | Y81: 20700000 | AA81: 0 | AB81: 0 | AC81: 20700000 | AD81: 18016667 | AE81: 2021-03-29 | AF81: 2021-04-06 | AG81: 2022-01-05 | AH81: 270 | AI81: 0 | AJ81: 0 | AQ81: X | AS81: 0.8703703865
A82: 285 | B82: 2021 | C82: FDLE-CD-285-2021 | D82: https://community.secop.gov.co/Public/Tendering/OpportunityDetail/Index?noticeUID=CO1.NTC.1855508&isFromPublicArea=True&isModal=False | E82: Contratos de prestación de servicios profesionales y de apoyo a la gestión | F82: Contratación directa | G82: Prestación de servicios profesionales y de apoyo a la gestión, o para la ejecución de trabajos artísticos que sólo puedan encomendarse a determinadas personas naturales; | H82: PRESTAR SERVICIOS COMO AUXILIAR DE APOYO EN EL TRÁMITE Y DESARROLLO DE LOS DESPACHOS COMISORIOS QUE POR COMPETENCIA CORRESPONDEN A LA ALCALDÍA LOCAL DE ENGATIVA, Se expide CDP con certificado de NO existencia de personal 23878 del 29 de enero de 2021,solicitud SIPSE 55025, memorando con solicitud 20216020001643 recibido para tramite de fecha Feb 03/2021. SE EXPIDE CRP POR SOLICITUD CON RAD. N° 20216020009733 DEL 18 MARZO-2021SE RECIBE PARA TRAMITE EL 19 DE MARZO REVISADO SECOP II Y SIPSE. | I82: Inversión | J82: Un Nuevo Contrato Social y Ambiental para la Bogotá del Siglo XXI | K82: 57 | L82: Gestión Pública Local | M82: =IF(ISERROR(VLOOKUP(K82,Proposito_programa!$C$2:$E$59,3,FALSE))," ",VLOOKUP(K82,Proposito_programa!$C$2:$E$59,3,FALSE)) -> Propósito 5: Construir Bogotá - Región con gobierno abierto, transparente y ciudadanía consciente | N82: 1624 | O82: 0 | P82: 1014217260 | Q82: MANUEL ALEJANDRO ESTEVEZ SANCHEZ | R82: Persona Natural | Y82: 20700000 | AA82: 0 | AB82: 0 | AC82: 20700000 | AD82: 19013333 | AE82: 2021-03-19 | AF82: 2021-03-23 | AG82: 2021-12-22 | AH82: 270 | AI82: 0 | AJ82: 0 | AQ82: X | AS82: 0.9185185024
A83: 296 | B83: 2021 | C83: FDLE-CD-296-2021 | D83: https://community.secop.gov.co/Public/Tendering/OpportunityDetail/Index?noticeUID=CO1.NTC.1875102&isFromPublicArea=True&isModal=False | E83: Contratos de prestación de servicios profesionales y de apoyo a la gestión | F83: Contratación directa | G83: Prestación de servicios profesionales y de apoyo a la gestión, o para la ejecución de trabajos artísticos que sólo puedan encomendarse a determinadas personas naturales; | H83: LA PRESTACIÓN DE SERVICIOS AUXILIARES, AL ÁREA DE GESTIÓN DE DESARROLLO LOCAL, EN LAS ACTIVIDADES RELACIONADAS CON COMUNICACIÓN ESTRATEGICA Y DIFUSION DE LOS PROYECTOS DEL PLAN DE DESARROLLO LOCAL 2021 - 2024. Se expide cdp con certificado de no existencia personal 25234 del 17 de febrero de 2021, solicitud sipse 54443, memorando con solicitud 20216020004873 con fecha del 22 de febrero y se recibe para trámite el 24 de febrero de 2021. | I83: Inversión | J83: Un Nuevo Contrato Social y Ambiental para la Bogotá del Siglo XXI | K83: 57 | L83: Gestión Pública Local | M83: =IF(ISERROR(VLOOKUP(K83,Proposito_programa!$C$2:$E$59,3,FALSE))," ",VLOOKUP(K83,Proposito_programa!$C$2:$E$59,3,FALSE)) -> Propósito 5: Construir Bogotá - Región con gobierno abierto, transparente y ciudadanía consciente | N83: 1623 | O83: 0 | P83: 52269754 | Q83: ERICA MILENA ZAMBRANO CAÑON | R83: Persona Natural | Y83: 20700000 | AA83: 0 | AB83: 0 | AC83: 20700000 | AD83: 18553333 | AE83: 2021-03-26 | AF83: 2021-03-29 | AG83: 2021-12-28 | AH83: 270 | AI83: 0 | AJ83: 0 | AQ83: X | AS83: 0.8962962802
A84: 300 | B84: 2021 | C84: FDLE-CD-300-2021 | D84: https://community.secop.gov.co/Public/Tendering/OpportunityDetail/Index?noticeUID=CO1.NTC.1876324&isFromPublicArea=True&isModal=False | E84: Contratos de prestación de servicios profesionales y de apoyo a la gestión | F84: Contratación directa | G84: Prestación de servicios profesionales y de apoyo a la gestión, o para la ejecución de trabajos artísticos que sólo puedan encomendarse a determinadas personas naturales; | H84: APOYAR LA GESTIÓN DOCUMENTAL DE LA ALCALDÍA LOCAL EN LA IMPLEMENTACIÓN DE LOS PROCESOS DE CLASIFICACIÓN, ORDENACIÓN, SELECCIÓN NATURAL, FOLIACIÓN, IDENTIFICACIÓN, LEVANTAMIENTO DE INVENTARIOS, ALMACENAMIENTO Y APLICACIÓN DE PROTOCOLOS DE ELIMINACIÓN Y TRANSFERENCIAS DOCUMENTALES. Se expide cdp con certificado de no existencia personal 24250 del 2 de febrero de 2021, solicitud sipse 54398, memorando con solicitud 20216020002493 se expide en Febrero 8/2021. SE EXPIDE CRP POR SOLICITUD CON RAD. N° 2021602000111063 DEL 26 MAR.2021SE RECIBE PARA TRAMITE EL 29 DE MARZO REVISADO SECOP II Y SIPSE. | I84: Inversión | J84: Un Nuevo Contrato Social y Ambiental para la Bogotá del Siglo XXI | K84: 57 | L84: Gestión Pública Local | M84: =IF(ISERROR(VLOOKUP(K84,Proposito_programa!$C$2:$E$59,3,FALSE))," ",VLOOKUP(K84,Proposito_programa!$C$2:$E$59,3,FALSE)) -> Propósito 5: Construir Bogotá - Región con gobierno abierto, transparente y ciudadanía consciente | N84: 1623 | O84: 0 | P84: 80775248 | Q84: HENRY FABIAN BEJARANO HERRERA | R84: Persona Natural | Y84: 20700000 | AA84: 0 | AB84: 0 | AC84: 20700000 | AD84: 18016667 | AE84: 2021-03-26 | AF84: 2021-04-06 | AG84: 2022-01-05 | AH84: 270 | AI84: 0 | AJ84: 0 | AQ84: X | AS84: 0.8703703865
A85: 301 | B85: 2021 | C85: FDLE-CD-301-2021 | D85: https://community.secop.gov.co/Public/Tendering/OpportunityDetail/Index?noticeUID=CO1.NTC.1913326&isFromPublicArea=True&isModal=False | E85: Contratos de prestación de servicios profesionales y de apoyo a la gestión | F85: Contratación directa | G85: Prestación de servicios profesionales y de apoyo a la gestión, o para la ejecución de trabajos artísticos que sólo puedan encomendarse a determinadas personas naturales; | H85: APOYAR ADMINISTRATIVA Y ASISTENCIALMENTE A LAS INSPECCIONES DE POLICÍA DE LA LOCALIDAD. Se expide cdp con certificado de no existencia personal 25353 del 19 de febrero de 2021, solicitud sipse 57173, memorando con solicitud 20216020005483 del 22 de febrero de 2021 y se recibe para trámite el 24 de febrero de 2021. SE EXPIDE CRP POR SOLICITUD RAD.N° 20216020013123 DE ABRIL 21 2021 SE RECIBE PARA TRAMITE EN ABRIL 22 REVISADO SECOP II Y SIPSE. | I85: Inversión | J85: Un Nuevo Contrato Social y Ambiental para la Bogotá del Siglo XXI | K85: 57 | L85: Gestión Pública Local | M85: =IF(ISERROR(VLOOKUP(K85,Proposito_programa!$C$2:$E$59,3,FALSE))," ",VLOOKUP(K85,Proposito_programa!$C$2:$E$59,3,FALSE)) -> Propósito 5: Construir Bogotá - Región con gobierno abierto, transparente y ciudadanía consciente | N85: 1624 | O85: 0 | P85: 52354140 | Q85: SANDRA MILENA GOMEZ BELTRAN | R85: Persona Natural | Y85: 20700000 | AA85: 0 | AB85: 0 | AC85: 20700000 | AD85: 16790000 | AE85: 2021-04-16 | AF85: 2021-04-22 | AG85: 2022-01-21 | AH85: 270 | AI85: 0 | AJ85: 0 | AQ85: X | AS85: 0.8111111111
A86: 333 | B86: 2021 | C86: FDLE-CD-333-2021 | D86: https://community.secop.gov.co/Public/Tendering/OpportunityDetail/Index?noticeUID=CO1.NTC.2015115&isFromPublicArea=True&isModal=False | E86: Contratos de prestación de servicios profesionales y de apoyo a la gestión | F86: Contratación directa | G86: Prestación de servicios profesionales y de apoyo a la gestión, o para la ejecución de trabajos artísticos que sólo puedan encomendarse a determinadas personas naturales; | H86: LA PRESTACIÓN DE SERVICIOS TÉCNICOS DE APOYO LOGÍSTICO AL ÁREA DE GESTIÓN DE DESARROLLO LOCAL, EN LAS ACTIVIDADES CULTURALES QUE SE REQUIERAN EN LA LOCALIDAD DE ENGATIVÁ. Se expide cdp con certificado de no existencia personal 26202 del 13 abril 2021, solicitud sipse 58218, memorando con solicitud 20216020012683 del 14 de abril de 2021 y se recibe para trámite el 20 de abril de 2021. SE EXPIDE CRP POR SOLICITUD CON RAD. N° 20216020016573 DE 09062021 SE RECIBE PARA TRAMITE EL 11 DE JUNIO 2021. | I86: Inversión | J86: Un Nuevo Contrato Social y Ambiental para la Bogotá del Siglo XXI | K86: 21 | L86: Creación y vida cotidiana: Apropiación ciudadana del arte, la cultura y el patrimonio, para la democracia cultural | M86: =IF(ISERROR(VLOOKUP(K86,Proposito_programa!$C$2:$E$59,3,FALSE))," ",VLOOKUP(K86,Proposito_programa!$C$2:$E$59,3,FALSE)) -> Propósito 1: Hacer un nuevo contrato social para incrementar la inclusión social, productiva y política | N86: 1595 | O86: 0 | P86: 79852283 | Q86: CARLOS ALBERTO OCHOA CALDERON | R86: Persona Natural | Y86: 21000000 | AA86: 0 | AB86: 0 | AC86: 21000000 | AD86: 5000000 | AE86: 2021-06-08 | AF86: 2021-06-11 | AG86: 2021-08-26 | AH86: 210 | AI86: 0 | AJ86: 0 | AQ86: X | AS86: 0.2380952381
A87: 378 | B87: 2021 | C87: FDLE-CD- 378-2021 | D87: https://community.secop.gov.co/Public/Tendering/OpportunityDetail/Index?noticeUID=CO1.NTC.2292901&isFromPublicArea=True&isModal=False | E87: Contratos de prestación de servicios profesionales y de apoyo a la gestión | F87: Contratación directa | G87: Prestación de servicios profesionales y de apoyo a la gestión, o para la ejecución de trabajos artísticos que sólo puedan encomendarse a determinadas personas naturales; | H87: LA PRESTACIÓN DE SERVICIOS PROFESIONALES ESPECIALIZADOS DE APOYO AL DESPACHO DE LA ALCALDESA LOCAL EN TEMAS JURÍDICOS, RENDICIÓN DE CONCEPTOS JURÍDICOS, PROYECCIÓN, ELABORACIÓN Y REVISIÓN DE ACTOS ADMINISTRATIVOS Y DOCUMENTOS RELACIONADOS CON LAS ACTUACIONES ADMINISTRATIVAS QUE SE GENERAN Y QUE LE SEAN REQUERIDOS. Se expide cdp con certificado de no existencia personal 27956 del 10 de septiembre de 2021, solicitud sipse 61955, memorando con solicitud 20216020023013 del 13 de septiembre de 2021 y se recibe para trámite el 14 de septiembre de 2021. SE EXPIDE CRP POR SOLICITUD CON RAD. N° 20216020026583 DE 04-10-2021 SE RECIBE PARA TRAMITE EL 05-10-2021 VERIFICADO SECOP II Y SIPSE. | I87: Inversión | J87: Un Nuevo Contrato Social y Ambiental para la Bogotá del Siglo XXI | K87: 57 | L87: Gestión Pública Local | M87: =IF(ISERROR(VLOOKUP(K87,Proposito_programa!$C$2:$E$59,3,FALSE))," ",VLOOKUP(K87,Proposito_programa!$C$2:$E$59,3,FALSE)) -> Propósito 5: Construir Bogotá - Región con gobierno abierto, transparente y ciudadanía consciente | N87: 1623 | O87: 0 | P87: 19482007 | Q87: PABLO ENRIQUE CORTES RODRIGUEZ | R87: Persona Natural | Y87: 21000000 | AA87: 0 | AB87: 0 | AC87: 21000000 | AD87: 12600000 | AE87: 2021-10-04 | AF87: 2021-10-07 | AG87: 2022-01-06 | AH87: 90 | AI87: 0 | AJ87: 0 | AQ87: X | AS87: 0.6
A88: 212 | B88: 2021 | C88: FDLE-CD-212-2021 | D88: https://community.secop.gov.co/Public/Tendering/OpportunityDetail/Index?noticeUID=CO1.NTC.1850541&isFromPublicArea=True&isModal=False | E88: Contratos de prestación de servicios profesionales y de apoyo a la gestión | F88: Contratación directa | G88: Prestación de servicios profesionales y de apoyo a la gestión, o para la ejecución de trabajos artísticos que sólo puedan encomendarse a determinadas personas naturales; | H88: APOYAR LAS LABORES DE ENTREGA Y RECIBO DE LAS COMUNICACIONES EMITIDAS O RECIBIDAS POR LAS INSPECCIONES DE POLICÍA DE LA LOCALIDAD. Se expide cdp con certificado de no existencia personal 25352 del 19 de febrero de 2021, solicitud sipse 57175, memorando con solicitud 20216020005363 del 22 de febrero de 2021 y se recibe para trámite el 24 de febrero 2021. SE EXPIDE CRP POR SOLICITUD CON RAD. N° 20216020008513 DEL 17 MARZO-2021SE RECIBE PARA TRAMITE EL 17 DE MARZO REVISADO SECOP II Y SIPSE. | I88: Inversión | J88: Un Nuevo Contrato Social y Ambiental para la Bogotá del Siglo XXI | K88: 57 | L88: Gestión Pública Local | M88: =IF(ISERROR(VLOOKUP(K88,Proposito_programa!$C$2:$E$59,3,FALSE))," ",VLOOKUP(K88,Proposito_programa!$C$2:$E$59,3,FALSE)) -> Propósito 5: Construir Bogotá - Región con gobierno abierto, transparente y ciudadanía consciente | N88: 1624 | O88: 0 | P88: 19438849 | Q88: OSWALDO MAXIMILIANO CIFUENTES | R88: Persona Natural | Y88: 20700000 | AA88: 1 | AB88: 613333 | AC88: 21313333 | AD88: 19013333 | AE88: 2021-03-17 | AF88: 2021-03-23 | AG88: 2021-12-31 | AH88: 270 | AI88: 1 | AJ88: 9 | AQ88: X | AS88: 0.8920863292
A89: 213 | B89: 2021 | C89: FDLE-CD-213-2021 | D89: https://community.secop.gov.co/Public/Tendering/OpportunityDetail/Index?noticeUID=CO1.NTC.1851123&isFromPublicArea=True&isModal=False | E89: Contratos de prestación de servicios profesionales y de apoyo a la gestión | F89: Contratación directa | G89: Prestación de servicios profesionales y de apoyo a la gestión, o para la ejecución de trabajos artísticos que sólo puedan encomendarse a determinadas personas naturales; | H89: APOYAR LAS LABORES DE ENTREGA Y RECIBO DE LAS COMUNICACIONES EMITIDAS O RECIBIDAS POR LAS INSPECCIONES DE POLICÍA DE LA LOCALIDAD. Se expide cdp con certificado de no existencia personal 25352 del 19 de febrero de 2021, solicitud sipse 57175, memorando con solicitud 20216020005373 del 22 de febrero de 2021 y se recibe para trámite el 24 de febrero 2021. SE EXPIDE CRP POR SOLICITUD CON RAD. N° 20216020009653 DEL 17 MARZO-2021SE RECIBE PARA TRAMITE EL 19 DE MARZO REVISADO SECOP II Y SIPSE. | I89: Inversión | J89: Un Nuevo Contrato Social y Ambiental para la Bogotá del Siglo XXI | K89: 57 | L89: Gestión Pública Local | M89: =IF(ISERROR(VLOOKUP(K89,Proposito_programa!$C$2:$E$59,3,FALSE))," ",VLOOKUP(K89,Proposito_programa!$C$2:$E$59,3,FALSE)) -> Propósito 5: Construir Bogotá - Región con gobierno abierto, transparente y ciudadanía consciente | N89: 1624 | O89: 0 | P89: 1014211396 | Q89: EDWIN ALBERTO VELASQUEZ BOTIVA | R89: Persona Natural | Y89: 20700000 | AA89: 1 | AB89: 613333 | AC89: 21313333 | AD89: 19013333 | AE89: 2021-03-17 | AF89: 2021-03-23 | AG89: 2021-12-31 | AH89: 270 | AI89: 1 | AJ89: 8 | AQ89: X | AS89: 0.8920863292
A90: 215 | B90: 2021 | C90: FDLE-CD-215-2021 | D90: https://community.secop.gov.co/Public/Tendering/OpportunityDetail/Index?noticeUID=CO1.NTC.1851124&isFromPublicArea=True&isModal=False | E90: Contratos de prestación de servicios profesionales y de apoyo a la gestión | F90: Contratación directa | G90: Prestación de servicios profesionales y de apoyo a la gestión, o para la ejecución de trabajos artísticos que sólo puedan encomendarse a determinadas personas naturales; | H90: APOYAR LAS LABORES DE ENTREGA Y RECIBO DE LAS COMUNICACIONES EMITIDAS O RECIBIDAS POR LAS INSPECCIONES DE POLICÍA DE LA LOCALIDAD. Se expide cdp con certificado de no existencia personal 25352 del 19 de febrero de 2021, solicitud sipse 57175, memorando con solicitud 20216020005393 del 22 de febrero de 2021 y se recibe para trámite el 24 de febrero 2021. SE EXPIDE CRP POR SOLICITUD CON RAD. N° 20216020009643 DEL 17 MARZO-2021SE RECIBE PARA TRAMITE EL 19 DE MARZO REVISADO SECOP II Y SIPSE. | I90: Inversión | J90: Un Nuevo Contrato Social y Ambiental para la Bogotá del Siglo XXI | K90: 57 | L90: Gestión Pública Local | M90: =IF(ISERROR(VLOOKUP(K90,Proposito_programa!$C$2:$E$59,3,FALSE))," ",VLOOKUP(K90,Proposito_programa!$C$2:$E$59,3,FALSE)) -> Propósito 5: Construir Bogotá - Región con gobierno abierto, transparente y ciudadanía consciente | N90: 1624 | O90: 0 | P90: 79901307 | Q90: ALEXANDER ROMERO CASTRILLON | R90: Persona Natural | Y90: 20700000 | AA90: 1 | AB90: 613333 | AC90: 21313333 | AD90: 19013333 | AE90: 2021-03-17 | AF90: 2021-03-23 | AG90: 2021-12-31 | AH90: 270 | AI90: 1 | AJ90: 8 | AQ90: X | AS90: 0.8920863292
A91: 266 | B91: 2021 | C91: FDLE-CD-266-2021 | D91: https://community.secop.gov.co/Public/Tendering/OpportunityDetail/Index?noticeUID=CO1.NTC.1851402&isFromPublicArea=True&isModal=False | E91: Contratos de prestación de servicios profesionales y de apoyo a la gestión | F91: Contratación directa | G91: Prestación de servicios profesionales y de apoyo a la gestión, o para la ejecución de trabajos artísticos que sólo puedan encomendarse a determinadas personas naturales; | H91: APOYAR ADMINISTRATIVA Y ASISTENCIALMENTE A LAS INSPECCIONES DE POLICÍA DE LA LOCALIDAD. Se expide cdp con certificado de no existencia personal 25353 del 19 de febrero de 2021, solicitud sipse 57173, memorando con solicitud 20216020005433 del 22 de febrero de 2021 y se recibe para trámite el 24 de febrero de 2021. SE EXPIDE CRP POR SOLICITUD CON RAD. N° 20216020009663 DEL 17 MARZO-2021SE RECIBE PARA TRAMITE EL 19 DE MARZO REVISADO SECOP II Y SIPSE. | I91: Inversión | J91: Un Nuevo Contrato Social y Ambiental para la Bogotá del Siglo XXI | K91: 57 | L91: Gestión Pública Local | M91: =IF(ISERROR(VLOOKUP(K91,Proposito_programa!$C$2:$E$59,3,FALSE))," ",VLOOKUP(K91,Proposito_programa!$C$2:$E$59,3,FALSE)) -> Propósito 5: Construir Bogotá - Región con gobierno abierto, transparente y ciudadanía consciente | N91: 1624 | O91: 0 | P91: 1020730555 | Q91: FLOR MARINA MEDRANO BLANCO | R91: Persona Natural | Y91: 20700000 | AA91: 1 | AB91: 613333 | AC91: 21313333 | AD91: 17250000 | AE91: 2021-03-17 | AF91: 2021-03-23 | AG91: 2021-12-31 | AH91: 270 | AI91: 1 | AJ91: 8 | AK91: 51915460 | AL91: flor marina medrano blanco | AM91: 2021-09-24 | AN91: 6823333 | AQ91: X | AS91: 0.8093525306
A92: 9 | B92: 2021 | C92: FDLE-CD-009-2021 | D92: https://community.secop.gov.co/Public/Tendering/ContractNoticePhases/View?PPI=CO1.PPI.11952329&isFromPublicArea=True&isModal=False | E92: Contratos de prestación de servicios profesionales y de apoyo a la gestión | F92: Contratación directa | G92: Prestación de servicios profesionales y de apoyo a la gestión, o para la ejecución de trabajos artísticos que sólo puedan encomendarse a determinadas personas naturales; | H92: LA PRESTACIÓN DE SERVICIOS AL ÁREA DE GESTIÓN POLICIVA JURÍDICA Y AL ÁREA DE GESTIÓN DE DESARROLLO LOCAL EN LA CONDUCCIÓN DE LOS VEHÍCULOS DE PROPIEDAD Y/O TENENCIA DEL FONDO DE DESARROLLO LOCAL DE ENGATIVÁ. Se expide CDP con certificado de no existencia personal 23811 del 28 de enero de 2021, solicitud de sipse 54404, memorando con solicitud 20216020001223 y fecha que se expide Febrero 2/2021. SE EXPIDE CRP POR SOLICITUD CON RAD. N° 20216020007743 DEL 08 MARZO-2021SE RECIBE PARA TRAMITE EL 09 DE MARZO REVISADO SECOP II Y SIPSE. | I92: Inversión | J92: Un Nuevo Contrato Social y Ambiental para la Bogotá del Siglo XXI | K92: 57 | L92: Gestión Pública Local | M92: =IF(ISERROR(VLOOKUP(K92,Proposito_programa!$C$2:$E$59,3,FALSE))," ",VLOOKUP(K92,Proposito_programa!$C$2:$E$59,3,FALSE)) -> Propósito 5: Construir Bogotá - Región con gobierno abierto, transparente y ciudadanía consciente | N92: 1623 | O92: 0 | P92: 12189437 | Q92: HELIBERTO CAÑAS MONTENEGRO | R92: Persona Natural | Y92: 20000000 | AA92: 1 | AB92: 1333333 | AC92: 21333333 | AD92: 18583333 | AE92: 2021-03-05 | AF92: 2021-03-10 | AG92: 2021-12-31 | AH92: 240 | AI92: 1 | AJ92: 17 | AK92: 5908991 | AL92: ALBERTO BARRETO ORTEGON | AM92: 2021-09-09 | AN92: 8083333 | AQ92: X | AS92: 0.871093748
A93: 205 | B93: 2021 | C93: FDLE-CD-205-2021 | D93: https://community.secop.gov.co/Public/Tendering/OpportunityDetail/Index?noticeUID=CO1.NTC.1850661&isFromPublicArea=True&isModal=False | E93: Contratos de prestación de servicios profesionales y de apoyo a la gestión | F93: Contratación directa | G93: Prestación de servicios profesionales y de apoyo a la gestión, o para la ejecución de trabajos artísticos que sólo puedan encomendarse a determinadas personas naturales; | H93: APOYAR ADMINISTRATIVA Y ASISTENCIALMENTE A LAS INSPECCIONES DE POLICÍA DE LA LOCALIDAD. Se expide cdp con certificado de no existencia personal 25353 del 19 de febrero de 2021, solicitud sipse 57173, memorando con solicitud 20216020005453 del 22 de febrero de 2021 y se recibe para trámite el 24 de febrero de 2021. SE EXPIDE CRP POR SOLICITUD CON RAD. N° 20216020009673 DEL 17 MARZO-2021SE RECIBE PARA TRAMITE EL 18 DE MARZO REVISADO SECOP II Y SIPSE. | I93: Inversión | J93: Un Nuevo Contrato Social y Ambiental para la Bogotá del Siglo XXI | K93: 57 | L93: Gestión Pública Local | M93: =IF(ISERROR(VLOOKUP(K93,Proposito_programa!$C$2:$E$59,3,FALSE))," ",VLOOKUP(K93,Proposito_programa!$C$2:$E$59,3,FALSE)) -> Propósito 5: Construir Bogotá - Región con gobierno abierto, transparente y ciudadanía consciente | N93: 1624 | O93: 0 | P93: 1014288129 | Q93: ZULMA PATRICIA MATEUS GRANADOS | R93: Persona Natural | Y93: 20700000 | AA93: 1 | AB93: 920000 | AC93: 21620000 | AD93: 19320000 | AE93: 2021-03-17 | AF93: 2021-03-19 | AG93: 2021-12-31 | AH93: 270 | AI93: 1 | AJ93: 12 | AQ93: X | AS93: 0.8936170213
A94: 283 | B94: 2021 | C94: FDLE-CD-283-2021 | D94: https://community.secop.gov.co/Public/Tendering/OpportunityDetail/Index?noticeUID=CO1.NTC.1855556&isFromPublicArea=True&isModal=False | E94: Contratos de prestación de servicios profesionales y de apoyo a la gestión | F94: Contratación directa | G94: Prestación de servicios profesionales y de apoyo a la gestión, o para la ejecución de trabajos artísticos que sólo puedan encomendarse a determinadas personas naturales; | H94: LA PRESTACIÓN DE SERVICIOS AUXILIARES DE APOYO A LA GESTIÓN AL ÁREA DE GESTIÓN DE DESARROLLO LOCAL EN LA EJECUCIÓN DEL PROCESO DE CORRESPONDENCIA QUE SE GENERA EN CDI DE LA ALCALDÍA LOCAL DE ENGATIVÁ. SE EXPIDE CDP CON CERTIFICADO DE NO EXISTENCIA PERSONAL 23347 DEL 20 DE ENERO DE 2021, SOLICITUD SIPSE 54402, MEMORANDO CON SOLICITUD 20216020000773 Y FECHA QUE SE EXPIDE ENERO 26/2021. SE EXPIDE CRP POR SOLICITUD CON RAD. N° 20216020009753 DEL 18 MARZO-2021SE RECIBE PARA TRAMITE EL 19 DE MARZO REVISADO SECOP II Y SIPSE. | I94: Inversión | J94: Un Nuevo Contrato Social y Ambiental para la Bogotá del Siglo XXI | K94: 57 | L94: Gestión Pública Local | M94: =IF(ISERROR(VLOOKUP(K94,Proposito_programa!$C$2:$E$59,3,FALSE))," ",VLOOKUP(K94,Proposito_programa!$C$2:$E$59,3,FALSE)) -> Propósito 5: Construir Bogotá - Región con gobierno abierto, transparente y ciudadanía consciente | N94: 1623 | O94: 0 | P94: 1233489484 | Q94: ANDRES MAURICIO MARTINEZ CABALLERO | R94: Persona Natural | Y94: 20700000 | AA94: 1 | AB94: 920000 | AC94: 21620000 | AD94: 19320000 | AE94: 2021-03-18 | AF94: 2021-03-19 | AG94: 2021-12-31 | AH94: 270 | AI94: 1 | AJ94: 13 | AQ94: X | AS94: 0.8936170213
A95: 129 | B95: 2021 | C95: FDLE-CD-129-2021 | D95: https://community.secop.gov.co/Public/Tendering/OpportunityDetail/Index?noticeUID=CO1.NTC.1847562&isFromPublicArea=True&isModal=False | E95: Contratos de prestación de servicios profesionales y de apoyo a la gestión | F95: Contratación directa | G95: Prestación de servicios profesionales y de apoyo a la gestión, o para la ejecución de trabajos artísticos que sólo puedan encomendarse a determinadas personas naturales; | H95: LA PRESTACIÓN DE SERVICIOS COMO AUXILIAR ADMINISTRATIVO EN TODO LO RELACIONADO CON LA ATENCIÓN DE LAS INSTANCIAS DE COORDINACIÓN INTERINSTITUCIONALES Y LAS INSTANCIAS DE PARTICIPACIÓN LOCALES, ASÍ COMO LOS PROCESOS COMUNITARIOS EN LA LOCALIDAD. Se expide cdp con certificado de no existencia personal 25070 del 12 de febrero de 2021, solicitud sipse 54617, memorando con solicitud 20216020004083 del 16 de febrero de 2021 y se recibe para trámite el 17 de febrero de 2021. SE EXPIDE CRP POR SOLICITUD CON RAD. N° 20216020009553 DEL 17 MARZO-2021SE RECIBE PARA TRAMITE EL 17 DE MARZO REVISADO SECOP II Y SIPSE. | I95: Inversión | J95: Un Nuevo Contrato Social y Ambiental para la Bogotá del Siglo XXI | K95: 55 | L95: Fortalecimiento de Cultura Ciudadana y su institucionalidad | M95: =IF(ISERROR(VLOOKUP(K95,Proposito_programa!$C$2:$E$59,3,FALSE))," ",VLOOKUP(K95,Proposito_programa!$C$2:$E$59,3,FALSE)) -> Propósito 5: Construir Bogotá - Región con gobierno abierto, transparente y ciudadanía consciente | N95: 1622 | O95: 0 | P95: 1018440185 | Q95: IVAN ALBERTO GOMEZ PEÑA | R95: Persona Natural | Y95: 20700000 | AA95: 1 | AB95: 1073333 | AC95: 21773333 | AD95: 19473333 | AE95: 2021-03-16 | AF95: 2021-03-17 | AG95: 2021-12-31 | AH95: 270 | AI95: 1 | AJ95: 15 | AQ95: X | AS95: 0.8943661956
A96: 214 | B96: 2021 | C96: FDLE-CD-214-2021 | D96: https://community.secop.gov.co/Public/Tendering/OpportunityDetail/Index?noticeUID=CO1.NTC.1840671&isFromPublicArea=True&isModal=False | E96: Contratos de prestación de servicios profesionales y de apoyo a la gestión | F96: Contratación directa | G96: Prestación de servicios profesionales y de apoyo a la gestión, o para la ejecución de trabajos artísticos que sólo puedan encomendarse a determinadas personas naturales; | H96: APOYAR LAS LABORES DE ENTREGA Y RECIBO DE LAS COMUNICACIONES EMITIDAS O RECIBIDAS POR LAS INSPECCIONES DE POLICÍA DE LA LOCALIDAD. Se expide cdp con certificado de no existencia personal 25352 del 19 de febrero de 2021, solicitud sipse 57175, memorando con solicitud 20216020005383 del 22 de febrero de 2021 y se recibe para trámite el 24 de febrero 2021. SE EXPIDE CRP POR SOLICITUD CON RAD. N° 20216020008933 DEL 12 MARZO-2021SE RECIBE PARA TRAMITE EL 17 DE MARZO REVISADO SECOP II Y SIPSE. | I96: Inversión | J96: Un Nuevo Contrato Social y Ambiental para la Bogotá del Siglo XXI | K96: 57 | L96: Gestión Pública Local | M96: =IF(ISERROR(VLOOKUP(K96,Proposito_programa!$C$2:$E$59,3,FALSE))," ",VLOOKUP(K96,Proposito_programa!$C$2:$E$59,3,FALSE)) -> Propósito 5: Construir Bogotá - Región con gobierno abierto, transparente y ciudadanía consciente | N96: 1624 | O96: 0 | P96: 79826672 | Q96: REYNALDO ROJAS LEIVA | R96: Persona Natural | Y96: 20700000 | AA96: 1 | AB96: 1073333 | AC96: 21773333 | AD96: 19473333 | AE96: 2021-03-12 | AF96: 2021-03-17 | AG96: 2021-12-31 | AH96: 270 | AI96: 1 | AJ96: 15 | AQ96: X | AS96: 0.8943661956
A97: 235 | B97: 2021 | C97: FDLE-CD-235-2021 | D97: https://community.secop.gov.co/Public/Tendering/OpportunityDetail/Index?noticeUID=CO1.NTC.1845264&isFromPublicArea=True&isModal=False | E97: Contratos de prestación de servicios profesionales y de apoyo a la gestión | F97: Contratación directa | G97: Prestación de servicios profesionales y de apoyo a la gestión, o para la ejecución de trabajos artísticos que sólo puedan encomendarse a determinadas personas naturales; | H97: APOYAR LA GESTIÓN DOCUMENTAL DE LA ALCALDÍA LOCAL EN LA IMPLEMENTACIÓN DE LOS PROCESOS DE CLASIFICACIÓN, ORDENACIÓN, SELECCIÓN NATURAL, FOLIACIÓN, IDENTIFICACIÓN, LEVANTAMIENTO DE INVENTARIOS, ALMACENAMIENTO Y APLICACIÓN DE PROTOCOLOS DE ELIMINACIÓN Y TRANSFERENCIAS DOCUMENTALES, Se expide CDP con certificado de No existencia de personal 23876 de fecha 29 de enero de 2021, solicitud SIPSE 55030, memorando con solicitud 20216020001773 recibido para tramite de fecha Feb 03/2021. SE EXPIDE CRP POR SOLICITUD CON RAD. N° 20216020009343 DEL 15 MARZO-2021 SE RECIBE PARA TRAMITE EL 17 DE MARZO REVISADO SECOP II Y SIPSE. | I97: Inversión | J97: Un Nuevo Contrato Social y Ambiental para la Bogotá del Siglo XXI | K97: 57 | L97: Gestión Pública Local | M97: =IF(ISERROR(VLOOKUP(K97,Proposito_programa!$C$2:$E$59,3,FALSE))," ",VLOOKUP(K97,Proposito_programa!$C$2:$E$59,3,FALSE)) -> Propósito 5: Construir Bogotá - Región con gobierno abierto, transparente y ciudadanía consciente | N97: 1623 | O97: 0 | P97: 1030570374 | Q97: GENY PAOLA BELTRAN PALACIOS | R97: Persona Natural | Y97: 20700000 | AA97: 1 | AB97: 1073333 | AC97: 21773333 | AD97: 19473333 | AE97: 2021-03-16 | AF97: 2021-03-17 | AG97: 2021-12-31 | AH97: 270 | AI97: 1 | AJ97: 15 | AQ97: X | AS97: 0.8943661956
A98: 175 | B98: 2021 | C98: FDLE-CD-175-2021 | D98: https://community.secop.gov.co/Public/Tendering/OpportunityDetail/Index?noticeUID=CO1.NTC.1829289&isFromPublicArea=True&isModal=False | E98: Contratos de prestación de servicios profesionales y de apoyo a la gestión | F98: Contratación directa | G98: Prestación de servicios profesionales y de apoyo a la gestión, o para la ejecución de trabajos artísticos que sólo puedan encomendarse a determinadas personas naturales; | H98: LA PRESTACIÓN DE SERVICIOS AUXILIARES DE APOYO A LA GESTIÓN AL ÁREA DE GESTIÓN DE DESARROLLO LOCAL EN LA EJECUCIÓN DEL PROCESO DE CORRESPONDENCIA QUE SE GENERA EN CDI DE LA ALCALDÍA LOCAL DE ENGATIVÁ. SE EXPIDE CDP CON CERTIFICADO DE NO EXISTENCIA PERSONAL 23347 DEL 20 DE ENERO DE 2021, SOLICITUD SIPSE 54402, MEMORANDO CON SOLICITUD 20216020000733 Y FECHA QUE SE EXPIDE ENERO 26/2021. SE EXPIDE CRP POR SOLICITUD CON RAD. N° 20216020008813 DEL 12 MARZO-2021SE RECIBE PARA TRAMITE EL 15 DE MARZO REVISADO SECOP II Y SIPSE. | I98: Inversión | J98: Un Nuevo Contrato Social y Ambiental para la Bogotá del Siglo XXI | K98: 57 | L98: Gestión Pública Local | M98: =IF(ISERROR(VLOOKUP(K98,Proposito_programa!$C$2:$E$59,3,FALSE))," ",VLOOKUP(K98,Proposito_programa!$C$2:$E$59,3,FALSE)) -> Propósito 5: Construir Bogotá - Región con gobierno abierto, transparente y ciudadanía consciente | N98: 1623 | O98: 0 | P98: 1014196840 | Q98: MAYERLI CAROLINA MARTINEZ ROMERO | R98: Persona Natural | Y98: 20700000 | AA98: 1 | AB98: 1226667 | AC98: 21926667 | AD98: 19626667 | AE98: 2021-03-12 | AF98: 2021-03-15 | AG98: 2021-12-31 | AH98: 270 | AI98: 1 | AJ98: 17 | AQ98: X | AS98: 0.8951048967
A99: 261 | B99: 2021 | C99: FDLE-CD-261-2021 | D99: https://community.secop.gov.co/Public/Tendering/OpportunityDetail/Index?noticeUID=CO1.NTC.1840207&isFromPublicArea=True&isModal=False | E99: Contratos de prestación de servicios profesionales y de apoyo a la gestión | F99: Contratación directa | G99: Prestación de servicios profesionales y de apoyo a la gestión, o para la ejecución de trabajos artísticos que sólo puedan encomendarse a determinadas personas naturales; | H99: LA PRESTACIÓN DE SERVICIOS AUXILIARES DE APOYO A LA GESTIÓN AL ÁREA DE GESTIÓN DE DESARROLLO LOCAL EN LA EJECUCIÓN DEL PROCESO DE CORRESPONDENCIA QUE SE GENERA EN CDI DE LA ALCALDÍA LOCAL DE ENGATIVÁ. SE EXPIDE CDP CON CERTIFICADO DE NO EXISTENCIA PERSONAL 23347 DEL 20 DE ENERO DE 2021, SOLICITUD SIPSE 54402, MEMORANDO CON SOLICITUD 20216020000723 Y FECHA QUE SE EXPIDE ENERO 26/2021. SE EXPIDE CRP POR SOLICITUD CON RAD. N° 20216020008713 DEL 12 MARZO-2021SE RECIBE PARA TRAMITE EL 15 DE MARZO REVISADO SECOP II Y SIPSE. | I99: Inversión | J99: Un Nuevo Contrato Social y Ambiental para la Bogotá del Siglo XXI | K99: 57 | L99: Gestión Pública Local | M99: =IF(ISERROR(VLOOKUP(K99,Proposito_programa!$C$2:$E$59,3,FALSE))," ",VLOOKUP(K99,Proposito_programa!$C$2:$E$59,3,FALSE)) -> Propósito 5: Construir Bogotá - Región con gobierno abierto, transparente y ciudadanía consciente | N99: 1623 | O99: 0 | P99: 80190340 | Q99: GABRIEL ERNESTO PEREZ VERA | R99: Persona Natural | Y99: 20700000 | AA99: 1 | AB99: 1226667 | AC99: 21926667 | AD99: 19626667 | AE99: 2021-03-12 | AF99: 2021-03-15 | AG99: 2021-12-31 | AH99: 270 | AI99: 1 | AJ99: 17 | AQ99: X | AS99: 0.8951048967
A100: 262 | B100: 2021 | C100: FDLE-CD-262-2021 | D100: https://community.secop.gov.co/Public/Tendering/OpportunityDetail/Index?noticeUID=CO1.NTC.1839945&isFromPublicArea=True&isModal=False | E100: Contratos de prestación de servicios profesionales y de apoyo a la gestión | F100: Contratación directa | G100: Prestación de servicios profesionales y de apoyo a la gestión, o para la ejecución de trabajos artísticos que sólo puedan encomendarse a determinadas personas naturales; | H100: LA PRESTACIÓN DE SERVICIOS AUXILIARES DE APOYO A LA GESTIÓN AL ÁREA DE GESTIÓN DE DESARROLLO LOCAL EN LA EJECUCIÓN DEL PROCESO DE CORRESPONDENCIA QUE SE GENERA EN CDI DE LA ALCALDÍA LOCAL DE ENGATIVÁ. SE EXPIDE CDP CON CERTIFICADO DE NO EXISTENCIA PERSONAL 23347 DEL 20 DE ENERO DE 2021, SOLICITUD SIPSE 54402, MEMORANDO CON SOLICITUD 20216020000753 Y FECHA QUE SE EXPIDE ENERO 26/2021. SE EXPIDE CRP POR SOLICITUD CON RAD. N° 20216020008723 DEL 12 MARZO-2021SE RECIBE PARA TRAMITE EL 15 DE MARZO REVISADO SECOP II Y SIPSE. | I100: Inversión | J100: Un Nuevo Contrato Social y Ambiental para la Bogotá del Siglo XXI | K100: 57 | L100: Gestión Pública Local | M100: =IF(ISERROR(VLOOKUP(K100,Proposito_programa!$C$2:$E$59,3,FALSE))," ",VLOOKUP(K100,Proposito_programa!$C$2:$E$59,3,FALSE)) -> Propósito 5: Construir Bogotá - Región con gobierno abierto, transparente y ciudadanía consciente | N100: 1623 | O100: 0 | P100: 1026299042 | Q100: JEFFREY ESTEVEN GONZALEZ BOHORQUEZ | R100: Persona Natural | Y100: 20700000 | AA100: 1 | AB100: 1226667 | AC100: 21926667 | AD100: 19626667 | AE100: 2021-03-12 | AF100: 2021-03-15 | AG100: 2021-12-31 | AH100: 270 | AI100: 1 | AJ100: 17 | AQ100: X | AS100: 0.8951048967
A101: 265 | B101: 2021 | C101: FDLE-CD-265-2021 | D101: https://community.secop.gov.co/Public/Tendering/OpportunityDetail/Index?noticeUID=CO1.NTC.1839790&isFromPublicArea=True&isModal=False | E101: Contratos de prestación de servicios profesionales y de apoyo a la gestión | F101: Contratación directa | G101: Prestación de servicios profesionales y de apoyo a la gestión, o para la ejecución de trabajos artísticos que sólo puedan encomendarse a determinadas personas naturales; | H101: LA PRESTACIÓN DE SERVICIOS AUXILIARES DE APOYO A LA GESTIÓN AL ÁREA DE GESTIÓN DE DESARROLLO LOCAL EN LA EJECUCIÓN DEL PROCESO DE CORRESPONDENCIA QUE SE GENERA EN CDI DE LA ALCALDÍA LOCAL DE ENGATIVÁ. SE EXPIDE CDP CON CERTIFICADO DE NO EXISTENCIA PERSONAL 23347 DEL 20 DE ENERO DE 2021, SOLICITUD SIPSE 54402, MEMORANDO CON SOLICITUD 20216020000743 Y FECHA QUE SE EXPIDE ENERO 26/2021. SE EXPIDE CRP POR SOLICITUD CON RAD. N° 20216020008803 DEL 12 MARZO-2021SE RECIBE PARA TRAMITE EL 15 DE MARZO REVISADO SECOP II Y SIPSE. | I101: Inversión | J101: Un Nuevo Contrato Social y Ambiental para la Bogotá del Siglo XXI | K101: 57 | L101: Gestión Pública Local | M101: =IF(ISERROR(VLOOKUP(K101,Proposito_programa!$C$2:$E$59,3,FALSE))," ",VLOOKUP(K101,Proposito_programa!$C$2:$E$59,3,FALSE)) -> Propósito 5: Construir Bogotá - Región con gobierno abierto, transparente y ciudadanía consciente | N101: 1623 | O101: 0 | P101: 1094267461 | Q101: OSCAR DAVID MENDOZA FLOREZ | R101: Persona Natural | Y101: 20700000 | AA101: 1 | AB101: 1226667 | AC101: 21926667 | AD101: 19626667 | AE101: 2021-03-12 | AF101: 2021-03-15 | AG101: 2021-12-31 | AH101: 270 | AI101: 1 | AJ101: 17 | AQ101: X | AS101: 0.8951048967
A102: 229 | B102: 2021 | C102: FDLE-CD-229-2021 | D102: https://community.secop.gov.co/Public/Tendering/OpportunityDetail/Index?noticeUID=CO1.NTC.1829470&isFromPublicArea=True&isModal=False | E102: Contratos de prestación de servicios profesionales y de apoyo a la gestión | F102: Contratación directa | G102: Prestación de servicios profesionales y de apoyo a la gestión, o para la ejecución de trabajos artísticos que sólo puedan encomendarse a determinadas personas naturales; | H102: LA PRESTACIÓN DE SERVICIOS AUXILIARES DE APOYO A LA GESTIÓN AL ÁREA DE GESTIÓN DE DESARROLLO LOCAL EN LA EJECUCIÓN DEL PROCESO DE CORRESPONDENCIA QUE SE GENERA EN CDI DE LA ALCALDÍA LOCAL DE ENGATIVÁ. SE EXPIDE CDP CON CERTIFICADO DE NO EXISTENCIA PERSONAL 23347 DEL 20 DE ENERO DE 2021, SOLICITUD SIPSE 54402, MEMORANDO CON SOLICITUD 20216020000713 Y FECHA QUE SE EXPIDE ENERO 26/2021. SE EXPIDE CRP POR SOLICITUD CON RAD. N° 20216020008383 DEL 09 MARZO-2021SE RECIBE PARA TRAMITE EL 09 DE MARZO REVISADO SECOP II Y SIPSE. | I102: Inversión | J102: Un Nuevo Contrato Social y Ambiental para la Bogotá del Siglo XXI | K102: 57 | L102: Gestión Pública Local | M102: =IF(ISERROR(VLOOKUP(K102,Proposito_programa!$C$2:$E$59,3,FALSE))," ",VLOOKUP(K102,Proposito_programa!$C$2:$E$59,3,FALSE)) -> Propósito 5: Construir Bogotá - Región con gobierno abierto, transparente y ciudadanía consciente | N102: 1623 | O102: 0 | P102: 80814494 | Q102: EBER YECID CUEVAS RINCON | R102: Persona Natural | Y102: 20700000 | AA102: 1 | AB102: 1533333 | AC102: 22233333 | AD102: 19933333 | AE102: 2021-03-09 | AF102: 2021-03-11 | AG102: 2021-12-31 | AH102: 270 | AI102: 1 | AJ102: 21 | AQ102: X | AS102: 0.8965517226
A103: 81 | B103: 2021 | C103: FDLE-CD-81-2021 | D103: https://community.secop.gov.co/Public/Tendering/OpportunityDetail/Index?noticeUID=CO1.NTC.1830829&isFromPublicArea=True&isModal=False | E103: Contratos de prestación de servicios profesionales y de apoyo a la gestión | F103: Contratación directa | G103: Prestación de servicios profesionales y de apoyo a la gestión, o para la ejecución de trabajos artísticos que sólo puedan encomendarse a determinadas personas naturales; | H103: APOYAR LA GESTIÓN DOCUMENTAL DE LA ALCALDÍA LOCAL EN LA IMPLEMENTACIÓN DE LOS PROCESOS DE CLASIFICACIÓN, ORDENACIÓN, SELECCIÓN NATURAL, FOLIACIÓN, IDENTIFICACIÓN, LEVANTAMIENTO DE INVENTARIOS, ALMACENAMIENTO Y APLICACIÓN DE PROTOCOLOS DE ELIMINACIÓN Y TRANSFERENCIAS DOCUMENTALES, Se expide CDP con certificado de No existencia de personal 23876 de fecha 29 de enero de 2021, solicitud SIPSE 55030, memorando con solicitud 20216020001703 recibido para tramite de fecha Feb 03/2021. SE EXPIDE CRP POR SOLICITUD CON RAD. N° 20216020008243 DEL 09 MARZO-2021SE RECIBE PARA TRAMITE EL 10 DE MARZO REVISADO SECOP II Y SIPSE. | I103: Inversión | J103: Un Nuevo Contrato Social y Ambiental para la Bogotá del Siglo XXI | K103: 57 | L103: Gestión Pública Local | M103: =IF(ISERROR(VLOOKUP(K103,Proposito_programa!$C$2:$E$59,3,FALSE))," ",VLOOKUP(K103,Proposito_programa!$C$2:$E$59,3,FALSE)) -> Propósito 5: Construir Bogotá - Región con gobierno abierto, transparente y ciudadanía consciente | N103: 1623 | O103: 0 | P103: 52833699 | Q103: LINA MARIA CASTILLO AFANADOR | R103: Persona Natural | Y103: 20700000 | AA103: 1 | AB103: 1610000 | AC103: 22310000 | AD103: 20010000 | AE103: 2021-03-09 | AF103: 2021-03-10 | AG103: 2021-12-31 | AH103: 270 | AI103: 1 | AJ103: 22 | AQ103: X | AS103: 0.8969072165
A104: 82 | B104: 2021 | C104: FDLE-CD-82-2021 | D104: https://community.secop.gov.co/Public/Tendering/OpportunityDetail/Index?noticeUID=CO1.NTC.1831026&isFromPublicArea=True&isModal=False | E104: Contratos de prestación de servicios profesionales y de apoyo a la gestión | F104: Contratación directa | G104: Prestación de servicios profesionales y de apoyo a la gestión, o para la ejecución de trabajos artísticos que sólo puedan encomendarse a determinadas personas naturales; | H104: APOYAR LA GESTIÓN DOCUMENTAL DE LA ALCALDÍA LOCAL EN LA IMPLEMENTACIÓN DE LOS PROCESOS DE CLASIFICACIÓN, ORDENACIÓN, SELECCIÓN NATURAL, FOLIACIÓN, IDENTIFICACIÓN, LEVANTAMIENTO DE INVENTARIOS, ALMACENAMIENTO Y APLICACIÓN DE PROTOCOLOS DE ELIMINACIÓN Y TRANSFERENCIAS DOCUMENTALES, Se expide CDP con certificado de No existencia de personal 23876 de fecha 29 de enero de 2021, solicitud SIPSE 55030, memorando con solicitud 20216020001713 recibido para tramite de fecha Feb 03/2021. SE EXPIDE CRP POR SOLICITUD CON RAD. N° 20216020008233 DEL 09 MARZO-2021SE RECIBE PARA TRAMITE EL 10 DE MARZO REVISADO SECOP II Y SIPSE. | I104: Inversión | J104: Un Nuevo Contrato Social y Ambiental para la Bogotá del Siglo XXI | K104: 57 | L104: Gestión Pública Local | M104: =IF(ISERROR(VLOOKUP(K104,Proposito_programa!$C$2:$E$59,3,FALSE))," ",VLOOKUP(K104,Proposito_programa!$C$2:$E$59,3,FALSE)) -> Propósito 5: Construir Bogotá - Región con gobierno abierto, transparente y ciudadanía consciente | N104: 1623 | O104: 0 | P104: 1014211634 | Q104: ANA MARIA CASTAÑEDA VALLEJO | R104: Persona Natural | Y104: 20700000 | AA104: 1 | AB104: 1610000 | AC104: 22310000 | AD104: 20010000 | AE104: 2021-03-09 | AF104: 2021-03-10 | AG104: 2021-12-31 | AH104: 270 | AI104: 1 | AJ104: 22 | AQ104: X | AS104: 0.8969072165
A105: 86 | B105: 2021 | C105: FDLE-CD-86-2021 | D105: https://community.secop.gov.co/Public/Tendering/OpportunityDetail/Index?noticeUID=CO1.NTC.1831127&isFromPublicArea=True&isModal=False | E105: Contratos de prestación de servicios profesionales y de apoyo a la gestión | F105: Contratación directa | G105: Prestación de servicios profesionales y de apoyo a la gestión, o para la ejecución de trabajos artísticos que sólo puedan encomendarse a determinadas personas naturales; | H105: APOYAR LA GESTIÓN DOCUMENTAL DE LA ALCALDÍA LOCAL EN LA IMPLEMENTACIÓN DE LOS PROCESOS DE CLASIFICACIÓN, ORDENACIÓN, SELECCIÓN NATURAL, FOLIACIÓN, IDENTIFICACIÓN, LEVANTAMIENTO DE INVENTARIOS, ALMACENAMIENTO Y APLICACIÓN DE PROTOCOLOS DE ELIMINACIÓN Y TRANSFERENCIAS DOCUMENTALES, Se expide CDP con certificado de No existencia de personal 23876 de fecha 29 de enero de 2021, solicitud SIPSE 55030, memorando con solicitud 20216020001753 recibido para tramite de fecha Feb 03/2021. SE EXPIDE CRP POR SOLICITUD CON RAD. N° 20216020008223 DEL 09 MARZO-2021SE RECIBE PARA TRAMITE EL 10 DE MARZO REVISADO SECOP II Y SIPSE. | I105: Inversión | J105: Un Nuevo Contrato Social y Ambiental para la Bogotá del Siglo XXI | K105: 57 | L105: Gestión Pública Local | M105: =IF(ISERROR(VLOOKUP(K105,Proposito_programa!$C$2:$E$59,3,FALSE))," ",VLOOKUP(K105,Proposito_programa!$C$2:$E$59,3,FALSE)) -> Propósito 5: Construir Bogotá - Región con gobierno abierto, transparente y ciudadanía consciente | N105: 1623 | O105: 0 | P105: 1015473193 | Q105: LAURA CAMILA CARDENAS GUEVARA | R105: Persona Natural | Y105: 20700000 | AA105: 1 | AB105: 1610000 | AC105: 22310000 | AD105: 20010000 | AE105: 2021-03-09 | AF105: 2021-03-10 | AG105: 2021-12-31 | AH105: 270 | AI105: 1 | AJ105: 22 | AQ105: X | AS105: 0.8969072165
A106: 115 | B106: 2021 | C106: FDLE-CD-115-2021 | D106: https://community.secop.gov.co/Public/Tendering/OpportunityDetail/Index?noticeUID=CO1.NTC.1829472&isFromPublicArea=True&isModal=False | E106: Contratos de prestación de servicios profesionales y de apoyo a la gestión | F106: Contratación directa | G106: Prestación de servicios profesionales y de apoyo a la gestión, o para la ejecución de trabajos artísticos que sólo puedan encomendarse a determinadas personas naturales; | H106: LA PRESTACIÓN DE SERVICIOS AUXILIARES DE APOYO AL ÁREA DE GESTIÓN DE DESARROLLO LOCAL, EN EL ALMACÉN, EN LAS LABORES ADMINISTRATIVAS U OPERATIVAS QUE ALLÍ SE REQUIERAN. Se expide CDP con certificado de no existencia personal 24251 del 2 de febrero de 2021, solicitud sipse 54399, memorando con solicitud 20216020002783 con fecha de 5 de febrero 2021, y se recibe para trámite en Febrero 9/2021. SE EXPIDE CRP POR SOLICITUD CON RAD. N° 20216020007583 DEL 04 MARZO-2021SE RECIBE PARA TRAMITE EL 09 DE MARZO REVISADO SECOP II Y SIPSE. | I106: Inversión | J106: Un Nuevo Contrato Social y Ambiental para la Bogotá del Siglo XXI | K106: 57 | L106: Gestión Pública Local | M106: =IF(ISERROR(VLOOKUP(K106,Proposito_programa!$C$2:$E$59,3,FALSE))," ",VLOOKUP(K106,Proposito_programa!$C$2:$E$59,3,FALSE)) -> Propósito 5: Construir Bogotá - Región con gobierno abierto, transparente y ciudadanía consciente | N106: 1623 | O106: 0 | P106: 80254495 | Q106: RICHARD FERNANDO CORONADO CORONADO | R106: Persona Natural | Y106: 20700000 | AA106: 1 | AB106: 1610000 | AC106: 22310000 | AD106: 20010000 | AE106: 2021-03-08 | AF106: 2021-03-10 | AG106: 2021-12-31 | AH106: 270 | AI106: 1 | AJ106: 22 | AQ106: X | AS106: 0.8969072165
A107: 119 | B107: 2021 | C107: FDLEC-CD-119-2021 | D107: https://community.secop.gov.co/Public/Tendering/OpportunityDetail/Index?noticeUID=CO1.NTC.1829614&isFromPublicArea=True&isModal=False | E107: Contratos de prestación de servicios profesionales y de apoyo a la gestión | F107: Contratación directa | G107: Prestación de servicios profesionales y de apoyo a la gestión, o para la ejecución de trabajos artísticos que sólo puedan encomendarse a determinadas personas naturales; | H107: APOYAR LA GESTIÓN DOCUMENTAL DE LA ALCALDÍA LOCAL EN LA IMPLEMENTACIÓN DE LOS PROCESOS DE CLASIFICACIÓN, ORDENACIÓN, SELECCIÓN NATURAL, FOLIACIÓN, IDENTIFICACIÓN, LEVANTAMIENTO DE INVENTARIOS, ALMACENAMIENTO Y APLICACIÓN DE PROTOCOLOS DE ELIMINACIÓN Y TRANSFERENCIAS DOCUMENTALES.Se expide cdp con certificado de no existencia personal 24250 del 2 de febrero de 2021, solicitud sipse 54398, memorando con solicitud 20216020002463 y se expide en Febrero 8/2021. SE EXPIDE CRP POR SOLICITUD CON RAD. N° 20216020007903 DEL 08 MARZO-2021SE RECIBE PARA TRAMITE EL 09 DE MARZO REVISADO SECOP II Y SIPSE. | I107: Inversión | J107: Un Nuevo Contrato Social y Ambiental para la Bogotá del Siglo XXI | K107: 57 | L107: Gestión Pública Local | M107: =IF(ISERROR(VLOOKUP(K107,Proposito_programa!$C$2:$E$59,3,FALSE))," ",VLOOKUP(K107,Proposito_programa!$C$2:$E$59,3,FALSE)) -> Propósito 5: Construir Bogotá - Región con gobierno abierto, transparente y ciudadanía consciente | N107: 1623 | O107: 0 | P107: 79351679 | Q107: HECTOR RICARDO AZA | R107: Persona Natural | Y107: 20700000 | AA107: 1 | AB107: 1610000 | AC107: 22310000 | AD107: 20010000 | AE107: 2021-03-09 | AF107: 2021-03-10 | AG107: 2021-12-31 | AH107: 270 | AI107: 1 | AJ107: 22 | AQ107: X | AS107: 0.8969072165
A108: 85 | B108: 2021 | C108: FDLE-CD-85-2021 | D108: https://community.secop.gov.co/Public/Tendering/OpportunityDetail/Index?noticeUID=CO1.NTC.1828062&isFromPublicArea=True&isModal=False | E108: Contratos de prestación de servicios profesionales y de apoyo a la gestión | F108: Contratación directa | G108: Prestación de servicios profesionales y de apoyo a la gestión, o para la ejecución de trabajos artísticos que sólo puedan encomendarse a determinadas personas naturales; | H108: APOYAR LA GESTIÓN DOCUMENTAL DE LA ALCALDÍA LOCAL EN LA IMPLEMENTACIÓN DE LOS PROCESOS DE CLASIFICACIÓN, ORDENACIÓN, SELECCIÓN NATURAL, FOLIACIÓN, IDENTIFICACIÓN, LEVANTAMIENTO DE INVENTARIOS, ALMACENAMIENTO Y APLICACIÓN DE PROTOCOLOS DE ELIMINACIÓN Y TRANSFERENCIAS DOCUMENTALES, Se expide CDP con certificado de No existencia de personal 23876 de fecha 29 de enero de 2021, solicitud SIPSE 55030, memorando con solicitud 20216020001743 recibido para tramite de fecha Feb 03/2021. SE EXPIDE CRP POR SOLICITUD CON RAD. N° 20216020007763 DE 08 MAR. 2021 SE RECIBE PARA TRAMITE EL 09 DE MAR.2021 VERIFICADO SECOP II Y SIPSE. | I108: Inversión | J108: Un Nuevo Contrato Social y Ambiental para la Bogotá del Siglo XXI | K108: 57 | L108: Gestión Pública Local | M108: =IF(ISERROR(VLOOKUP(K108,Proposito_programa!$C$2:$E$59,3,FALSE))," ",VLOOKUP(K108,Proposito_programa!$C$2:$E$59,3,FALSE)) -> Propósito 5: Construir Bogotá - Región con gobierno abierto, transparente y ciudadanía consciente | N108: 1623 | O108: 0 | P108: 1018462040 | Q108: ANA MARIA DUQUE DELGADO | R108: Persona Natural | Y108: 20700000 | AA108: 1 | AB108: 1686667 | AC108: 22386667 | AD108: 20086667 | AE108: 2021-03-09 | AF108: 2021-03-09 | AG108: 2021-12-31 | AH108: 270 | AI108: 1 | AJ108: 23 | AQ108: X | AS108: 0.8972602755
A109: 130 | B109: 2021 | C109: FDLE-CD-130-2021 | D109: https://community.secop.gov.co/Public/Tendering/OpportunityDetail/Index?noticeUID=CO1.NTC.1826308&isFromPublicArea=True&isModal=False | E109: Contratos de prestación de servicios profesionales y de apoyo a la gestión | F109: Contratación directa | G109: Prestación de servicios profesionales y de apoyo a la gestión, o para la ejecución de trabajos artísticos que sólo puedan encomendarse a determinadas personas naturales; | H109: LA PRESTACIÓN DE SERVICIOS AUXILIARES DE APOYO EN ACTIVIDADES RELACIONADAS CON LA GESTIÓN Y MITIGACIÓN DE RIESGOS EN LA LOCALIDAD DE ENGATIVÁ, DE CONFORMIDAD CON LOS ESTUDIOS PREVIOS, Se expide CDP con certificado de No existencia de Personal 23906 de fecha 29 de enero de 2021, solicitud SIPSE 55219, memorando 20216020001413 recibido para tramite de fecha Feb 01/2021. SE EXPIDE CRP POR SOLICITUD CON RAD. N° 20216020007879 DE 08.MAR.2021 SE RECIBE PARA TRAMITE 09 DE MAR 2021 VERIFICADO SECOP II Y SIPSE. | I109: Inversión | J109: Un Nuevo Contrato Social y Ambiental para la Bogotá del Siglo XXI | K109: 30 | L109: Eficiencia en la atención de emergencias | M109: =IF(ISERROR(VLOOKUP(K109,Proposito_programa!$C$2:$E$59,3,FALSE))," ",VLOOKUP(K109,Proposito_programa!$C$2:$E$59,3,FALSE)) -> Propósito 2 : Cambiar Nuestros Hábitos de Vida para Reverdecer a Bogotá y Adaptarnos y Mitigar la Crisis Climática | N109: 1604 | O109: 0 | P109: 19498006 | Q109: EFRAIN AMORTEGUI TRIANA | R109: Persona Natural | Y109: 20700000 | AA109: 1 | AB109: 1686667 | AC109: 22386667 | AD109: 20086667 | AE109: 2021-03-08 | AF109: 2021-03-09 | AG109: 2021-12-31 | AH109: 270 | AI109: 1 | AJ109: 23 | AQ109: X | AS109: 0.8972602755
A110: 232 | B110: 2021 | C110: FDLE-CD-232-2021 | D110: https://community.secop.gov.co/Public/Tendering/OpportunityDetail/Index?noticeUID=CO1.NTC.1829826&isFromPublicArea=True&isModal=False | E110: Contratos de prestación de servicios profesionales y de apoyo a la gestión | F110: Contratación directa | G110: Prestación de servicios profesionales y de apoyo a la gestión, o para la ejecución de trabajos artísticos que sólo puedan encomendarse a determinadas personas naturales; | H110: LA PRESTACIÓN DE SERVICIOS AUXILIARES DE APOYO A LA GESTIÓN AL ÁREA DE GESTIÓN DE DESARROLLO LOCAL EN LA EJECUCIÓN DEL PROCESO DE CORRESPONDENCIA QUE SE GENERA EN CDI DE LA ALCALDÍA LOCAL DE ENGATIVÁ. SE EXPIDE CDP CON CERTIFICADO DE NO EXISTENCIA PERSONAL 23347 DEL 20 DE ENERO DE 2021, SOLICITUD SIPSE 54402, MEMORANDO CON SOLICITUD 20216020000703 Y FECHA QUE SE EXPIDE ENERO 26/2021. SE EXPIDE CRP POR SOLICITUD CON RAD. N° 20216020008323 DEL 09 MARZO-2021SE RECIBE PARA TRAMITE EL 09 DE MARZO REVISADO SECOP II Y SIPSE. | I110: Inversión | J110: Un Nuevo Contrato Social y Ambiental para la Bogotá del Siglo XXI | K110: 57 | L110: Gestión Pública Local | M110: =IF(ISERROR(VLOOKUP(K110,Proposito_programa!$C$2:$E$59,3,FALSE))," ",VLOOKUP(K110,Proposito_programa!$C$2:$E$59,3,FALSE)) -> Propósito 5: Construir Bogotá - Región con gobierno abierto, transparente y ciudadanía consciente | N110: 1623 | O110: 0 | P110: 52904267 | Q110: DAYANA ASTRID RINCON VELA | R110: Persona Natural | Y110: 20700000 | AA110: 1 | AB110: 1686667 | AC110: =+Y110+Z110+AB110 -> 22386667 | AD110: 20086667 | AE110: 2021-03-09 | AF110: 2021-03-09 | AG110: 2021-12-31 | AH110: 270 | AI110: 1 | AJ110: 23 | AK110: 1014205772 | AL110: DAYANA ASTRID RINCON VELA | AM110: 2021-05-11 | AN110: 15946667 | AQ110: X | AS110: 0.8972602755
A111: 161 | B111: 2021 | C111: FDLE-CD-161-2021 | D111: https://community.secop.gov.co/Public/Tendering/OpportunityDetail/Index?noticeUID=CO1.NTC.1805611&isFromPublicArea=True&isModal=False | E111: Contratos de prestación de servicios profesionales y de apoyo a la gestión | F111: Contratación directa | G111: Prestación de servicios profesionales y de apoyo a la gestión, o para la ejecución de trabajos artísticos que sólo puedan encomendarse a determinadas personas naturales; | H111: PRESTACIÓN DE SERVICIOS AUXILIARES EN LA CONDUCCIÓN DE LOS VEHÍCULOS DE CARGA PESADA, VOLQUETAS SENCILLA O DOBLE TROQUE, VEHÍCULO ARTICULADO, CAMIÓN Y VEHÍCULOS EN GENERAL DE PROPIEDAD Y/O TENENCIA DEL FONDO DE DESARROLLO LOCAL DE ENGATIVÁ. Se expide cdp con certificado de no existencia personal 23912 del 29 de enero 2021, solicitud sipse 54600, memorando con solicitud 20216020003323 con fecha del 10 de febrero 2021 y se recibe para trámite el 11 de febrero de 2021. SE EXPIDE CRP POR SOLICITUD C0N RADICADO N° 20216020006713 01032021 | I111: Inversión | J111: Un Nuevo Contrato Social y Ambiental para la Bogotá del Siglo XXI | K111: 49 | L111: Movilidad segura, sostenible y accesible | M111: =IF(ISERROR(VLOOKUP(K111,Proposito_programa!$C$2:$E$59,3,FALSE))," ",VLOOKUP(K111,Proposito_programa!$C$2:$E$59,3,FALSE)) -> Propósito 4: Hacer de Bogotá Región un modelo de movilidad multimodal, incluyente y sostenible | N111: 1621 | O111: 0 | P111: 19439102 | Q111: ARMANDO CORONADO LEZAMA | R111: Persona Natural | Y111: 20700000 | AA111: 1 | AB111: 1763333 | AC111: 22463333 | AD111: 20163333 | AE111: 2021-03-03 | AF111: 2021-03-08 | AG111: 2021-12-31 | AH111: 270 | AI111: 1 | AJ111: 23 | AQ111: X | AS111: 0.89761092
A112: 366 | B112: 2021 | C112: FDLE-CD-366-2021 | D112: https://community.secop.gov.co/Public/Tendering/OpportunityDetail/Index?noticeUID=CO1.NTC.2187823&isFromPublicArea=True&isModal=False | E112: Contratos de prestación de servicios profesionales y de apoyo a la gestión | F112: Contratación directa | G112: Prestación de servicios profesionales y de apoyo a la gestión, o para la ejecución de trabajos artísticos que sólo puedan encomendarse a determinadas personas naturales; | H112: LA PRESTACIÓN DE SERVICIOS PROFESIONALES, AL ÁREA DE GESTIÓN DE DESARROLLO LOCAL, REALIZANDO SEGUIMIENTO A LAS ACTIVIDADES RELACIONADAS CON LA SUPERVISIÓN Y/O LIQUIDACION DE CONTRATOS Y/O CONVENIOS QUE LE SEAN DESIGNADOS Y DEMÁS ACTIVIDADES QUE SE REQUIERAN. Se expide cdp con certificado de no existencia personal 27437 del 10 de agosto de 2021, solicitud sipse 60922, memorando con solicitud 20216020021283 del 11 de agosto de 2021 y se recibe para trámite el 11 de agosto de 2021. SE EXPIDE CRP POR SOLICITUD CON RAD. N°20216020021913 AGO.24-2021 CASO HOLA PARA SIPSE. | I112: Inversión | J112: Un Nuevo Contrato Social y Ambiental para la Bogotá del Siglo XXI | K112: 57 | L112: Gestión Pública Local | M112: =IF(ISERROR(VLOOKUP(K112,Proposito_programa!$C$2:$E$59,3,FALSE))," ",VLOOKUP(K112,Proposito_programa!$C$2:$E$59,3,FALSE)) -> Propósito 5: Construir Bogotá - Región con gobierno abierto, transparente y ciudadanía consciente | N112: 1623 | O112: 0 | P112: 1069432814 | Q112: NOHORA ROCIO SILVA MARTINEZ | R112: Persona Natural | Y112: 22500000 | AA112: 0 | AB112: 0 | AC112: 22500000 | AD112: 16000000 | AE112: 2021-08-24 | AF112: 2021-08-25 | AG112: 2022-01-09 | AH112: 136 | AI112: 0 | AJ112: 0 | AQ112: X | AS112: 0.7111111111
A113: 80 | B113: 2021 | C113: FDLE-CD-80-2021 | D113: https://community.secop.gov.co/Public/Tendering/OpportunityDetail/Index?noticeUID=CO1.NTC.1815496&isFromPublicArea=True&isModal=False | E113: Contratos de prestación de servicios profesionales y de apoyo a la gestión | F113: Contratación directa | G113: Prestación de servicios profesionales y de apoyo a la gestión, o para la ejecución de trabajos artísticos que sólo puedan encomendarse a determinadas personas naturales; | H113: APOYAR LA GESTIÓN DOCUMENTAL DE LA ALCALDÍA LOCAL EN LA IMPLEMENTACIÓN DE LOS PROCESOS DE CLASIFICACIÓN, ORDENACIÓN, SELECCIÓN NATURAL, FOLIACIÓN, IDENTIFICACIÓN, LEVANTAMIENTO DE INVENTARIOS, ALMACENAMIENTO Y APLICACIÓN DE PROTOCOLOS DE ELIMINACIÓN Y TRANSFERENCIAS DOCUMENTALES, Se expide CDP con certificado de No existencia de personal 23876 de fecha 29 de enero de 2021, solicitud SIPSE 55030, memorando con solicitud 20216020001693 recibido para tramite de fecha Feb 03/2021. SE EXPIDE CRP POR SOLICITUD CON RADICADO N° 2021602007173 MAR.03.2021 SE RECIBE PARA TRAMITE EL 04 DE MARZO 2021. | I113: Inversión | J113: Un Nuevo Contrato Social y Ambiental para la Bogotá del Siglo XXI | K113: 57 | L113: Gestión Pública Local | M113: =IF(ISERROR(VLOOKUP(K113,Proposito_programa!$C$2:$E$59,3,FALSE))," ",VLOOKUP(K113,Proposito_programa!$C$2:$E$59,3,FALSE)) -> Propósito 5: Construir Bogotá - Región con gobierno abierto, transparente y ciudadanía consciente | N113: 1623 | O113: 0 | P113: 1014239748 | Q113: ANGELICA MARITZA CARVAJAL PENAGOS | R113: Persona Natural | Y113: 20700000 | AA113: 1 | AB113: 1993333 | AC113: 22693333 | AD113: 20393333 | AE113: 2021-03-03 | AF113: 2021-03-05 | AG113: 2021-12-31 | AH113: 270 | AI113: 1 | AJ113: 27 | AQ113: X | AS113: 0.8986486472
A114: 223 | B114: 2021 | C114: FDLE-CD-223-2021 | D114: https://community.secop.gov.co/Public/Tendering/OpportunityDetail/Index?noticeUID=CO1.NTC.1814652&isFromPublicArea=True&isModal=False | E114: Contratos de prestación de servicios profesionales y de apoyo a la gestión | F114: Contratación directa | G114: Prestación de servicios profesionales y de apoyo a la gestión, o para la ejecución de trabajos artísticos que sólo puedan encomendarse a determinadas personas naturales; | H114: PRESTACIÓN DE SERVICIOS AUXILIARES EN LA CONDUCCIÓN DE LOS VEHÍCULOS DE LOS VEHÍCULOS DE CARGA PESADA, PRINCIPALMENTE LA MOTONIVELADORA Y/O RETROEXCAVADORA Y/O TBR DE PROPIEDAD Y/O TENENCIA DEL FONDO DE DESARROLLO LOCAL DE ENGATIVÁ. Se expide cdp con certificado de no existencia personal 23913 del 29 de enero de 2021, solicitud sipse 54595, memorando con solicitud 20216020003563 del 11 de febrero de 2021 y se recibe para trámite el 15 de febrero de 2021. se expide crp por solicitud con radicado N°20216020007473 03.mar.2021 se recibe para tramite el 05 de marzo 2021. | I114: Inversión | J114: Un Nuevo Contrato Social y Ambiental para la Bogotá del Siglo XXI | K114: 49 | L114: Movilidad segura, sostenible y accesible | M114: =IF(ISERROR(VLOOKUP(K114,Proposito_programa!$C$2:$E$59,3,FALSE))," ",VLOOKUP(K114,Proposito_programa!$C$2:$E$59,3,FALSE)) -> Propósito 4: Hacer de Bogotá Región un modelo de movilidad multimodal, incluyente y sostenible | N114: 1621 | O114: 0 | P114: 80282400 | Q114: CARLOS ANDRES LOZANO ATUESTA | R114: Persona Natural | Y114: 20700000 | AA114: 1 | AB114: 1993333 | AC114: 22693333 | AD114: 20393333 | AE114: 2021-03-04 | AF114: 2021-03-05 | AG114: 2021-12-31 | AH114: 270 | AI114: 1 | AJ114: 27 | AQ114: X | AS114: 0.8986486472
A115: 131 | B115: 2021 | C115: FDLE-CD-131-2021 | D115: https://community.secop.gov.co/Public/Tendering/OpportunityDetail/Index?noticeUID=CO1.NTC.1811605&isFromPublicArea=True&isModal=False | E115: Contratos de prestación de servicios profesionales y de apoyo a la gestión | F115: Contratación directa | G115: Prestación de servicios profesionales y de apoyo a la gestión, o para la ejecución de trabajos artísticos que sólo puedan encomendarse a determinadas personas naturales; | H115: LA PRESTACIÓN DE SERVICIOS DE APOYO A LA JUNTA ADMINISTRADORA LOCAL DE LA LOCALIDAD DE ENGATIVÁ, EN LAS ACTIVIDADES ADMINISTRATIVAS Y OPERATIVAS QUE ALLÍ SE REQUIERAN. Se expide cdp con certificado de no existencia personal 24246 del 2 de febrero de 2021, solicitud de sipse 54445, memorando con solicitud 20216020003163 con fecha 8 de febrero 2021, y se recibe para trámite en Febrero 9/2021. SE EXPIDE CRP POR SOLICITUD CON RADICADO N° 20216020007133 MAR.03.2021 SE RECIBE PARA TRAMITE EL 04 DE MARZO 2021. | I115: Inversión | J115: Un Nuevo Contrato Social y Ambiental para la Bogotá del Siglo XXI | K115: 57 | L115: Gestión Pública Local | M115: =IF(ISERROR(VLOOKUP(K115,Proposito_programa!$C$2:$E$59,3,FALSE))," ",VLOOKUP(K115,Proposito_programa!$C$2:$E$59,3,FALSE)) -> Propósito 5: Construir Bogotá - Región con gobierno abierto, transparente y ciudadanía consciente | N115: 1623 | O115: 0 | P115: 51730617 | Q115: MARIA DEL PILAR MORALES SANTODOMINGO | R115: Persona Natural | Y115: 20700000 | AA115: 1 | AB115: 2070000 | AC115: 22770000 | AD115: 20470000 | AE115: 2021-03-03 | AF115: 2021-03-04 | AG115: 2021-12-31 | AH115: 270 | AI115: 1 | AJ115: 28 | AQ115: X | AS115: 0.898989899
A116: 132 | B116: 2021 | C116: FDLE-CD-132-2021 | D116: https://community.secop.gov.co/Public/Tendering/OpportunityDetail/Index?noticeUID=CO1.NTC.1814473&isFromPublicArea=True&isModal=False | E116: Contratos de prestación de servicios profesionales y de apoyo a la gestión | F116: Contratación directa | G116: Prestación de servicios profesionales y de apoyo a la gestión, o para la ejecución de trabajos artísticos que sólo puedan encomendarse a determinadas personas naturales; | H116: LA PRESTACIÓN DE SERVICIOS DE APOYO A LA JUNTA ADMINISTRADORA LOCAL DE LA LOCALIDAD DE ENGATIVÁ, EN LAS ACTIVIDADES ADMINISTRATIVAS Y OPERATIVAS QUE ALLÍ SE REQUIERAN. Se expide cdp con certificado de no existencia personal 24246 del 2 de febrero de 2021, solicitud de sipse 54445, memorando con solicitud 20216020003173 con fecha de 8 de febrero 2021, y se recibe para trámite en Febrero 9/2021. SE EXPIDE CRP POR SOLICITUD CON RADICADO N° 21216020007143 MAR.03.2021 SE RECIBE PARA TRAMITE MARZO 04 DE 2021. | I116: Inversión | J116: Un Nuevo Contrato Social y Ambiental para la Bogotá del Siglo XXI | K116: 57 | L116: Gestión Pública Local | M116: =IF(ISERROR(VLOOKUP(K116,Proposito_programa!$C$2:$E$59,3,FALSE))," ",VLOOKUP(K116,Proposito_programa!$C$2:$E$59,3,FALSE)) -> Propósito 5: Construir Bogotá - Región con gobierno abierto, transparente y ciudadanía consciente | N116: 1623 | O116: 0 | P116: 1073669269 | Q116: ALIX MELIZA GARCIA BOHORQUEZ | R116: Persona Natural | Y116: 20700000 | AA116: 1 | AB116: 2070000 | AC116: 22770000 | AD116: 20470000 | AE116: 2021-03-02 | AF116: 2021-03-04 | AG116: 2021-12-31 | AH116: 270 | AI116: 1 | AJ116: 28 | AQ116: X | AS116: 0.898989899
A117: 319 | B117: 2021 | C117: FDLE-CD-319-2021 | D117: https://community.secop.gov.co/Public/Tendering/OpportunityDetail/Index?noticeUID=CO1.NTC.1954326&isFromPublicArea=True&isModal=False | E117: Contratos de prestación de servicios profesionales y de apoyo a la gestión | F117: Contratación directa | G117: Prestación de servicios profesionales y de apoyo a la gestión, o para la ejecución de trabajos artísticos que sólo puedan encomendarse a determinadas personas naturales; | H117: PRESTACIÓN DE SERVICIOS DE APOYO TÉCNICO EN TOPOGRAFÍA EN LA EJECUCIÓN DE ACTIVIDADES DE OBRA CIVIL QUE CONLLEVEN AL MEJORAMIENTO Y ADECUACIÓN DEL ESPACIO PÚBLICO Y LA MALLA VIAL DE LA LOCALIDAD DE ENGATIVÁ. Se expide cdp con certificado de no existencia personal 26143 del 6 de abril 2021, solicitud sipse 58223, memorando con solicitud 20216020012393 del 9 de abril de 2021 y se recibe para trámite el 12 de abril de 2021. SE EXPIDE CRP POR SOLICITUD CON RAD: 20216020014763 DE MAYO 11 2021 SE RECIBE PARA TRAMITE EL 12 DE MAYO 2021 REVISADO SECOP Y SIPSE. | I117: Inversión | J117: Un Nuevo Contrato Social y Ambiental para la Bogotá del Siglo XXI | K117: 49 | L117: Movilidad segura, sostenible y accesible | M117: =IF(ISERROR(VLOOKUP(K117,Proposito_programa!$C$2:$E$59,3,FALSE))," ",VLOOKUP(K117,Proposito_programa!$C$2:$E$59,3,FALSE)) -> Propósito 4: Hacer de Bogotá Región un modelo de movilidad multimodal, incluyente y sostenible | N117: 1621 | O117: 0 | P117: 1110487468 | Q117: TANIA MARCELA ALDANA CRUZ | R117: Persona Natural | Y117: 21000000 | AA117: 1 | AB117: 1800000 | AC117: 22800000 | AD117: 19800000 | AE117: 2021-05-10 | AF117: 2021-05-13 | AG117: 2021-12-31 | AH117: 210 | AI117: 1 | AJ117: 19 | AQ117: X | AS117: 0.8684210526
A118: 260 | B118: 2021 | C118: FDLE-CD-260-2021 | D118: https://community.secop.gov.co/Public/Tendering/OpportunityDetail/Index?noticeUID=CO1.NTC.1839787&isFromPublicArea=True&isModal=False | E118: Contratos de prestación de servicios profesionales y de apoyo a la gestión | F118: Contratación directa | G118: Prestación de servicios profesionales y de apoyo a la gestión, o para la ejecución de trabajos artísticos que sólo puedan encomendarse a determinadas personas naturales; | H118: PRESTACION DE SERVICIOS DE APOYO AUXILIAR AL ÁREA DE GESTIÓN DE DESARROLLO LOCAL, EN CONTRATACIÓN, EN LOS TRÁMITES ADMINISTRATIVOS QUE SE GENERAN EN EL FONDO DE DESARROLLO LOCAL DE ENGATIVÁ. Se expide CDP con certificado de No existencia de personal 23917 de fecha 29 de enero de 2021, solicitud SIPSE 54416, memorando con solicitud 20216020001343 recibido para tramite de fecha Feb 01/2021. SE EXPIDE CRP POR SOLICITUD CON RAD. N° 20216020008703 DEL 12 MARZO-2021SE RECIBE PARA TRAMITE EL 15 DE MARZO REVISADO SECOP II Y SIPSE. | I118: Inversión | J118: Un Nuevo Contrato Social y Ambiental para la Bogotá del Siglo XXI | K118: 57 | L118: Gestión Pública Local | M118: =IF(ISERROR(VLOOKUP(K118,Proposito_programa!$C$2:$E$59,3,FALSE))," ",VLOOKUP(K118,Proposito_programa!$C$2:$E$59,3,FALSE)) -> Propósito 5: Construir Bogotá - Región con gobierno abierto, transparente y ciudadanía consciente | N118: 1623 | O118: 0 | P118: 1022969641 | Q118: ANGIE LORENA MARTINEZ ALARCON | R118: Persona Natural | Y118: 20700000 | AA118: 1 | AB118: 2146667 | AC118: 22846667 | AD118: 19550000 | AE118: 2021-03-12 | AF118: 2021-03-16 | AG118: 2022-01-13 | AH118: 270 | AI118: 1 | AJ118: 28 | AQ118: X | AS118: 0.8557046855
A119: 151 | B119: 2021 | C119: FDLE-CD-151-2021 | D119: https://community.secop.gov.co/Public/Tendering/OpportunityDetail/Index?noticeUID=CO1.NTC.1800295&isFromPublicArea=True&isModal=False | E119: Contratos de prestación de servicios profesionales y de apoyo a la gestión | F119: Contratación directa | G119: Prestación de servicios profesionales y de apoyo a la gestión, o para la ejecución de trabajos artísticos que sólo puedan encomendarse a determinadas personas naturales; | H119: LA PRESTACIÓN DE SERVICIOS COMO AUXILIAR ADMINISTRATIVO EN TODO LO RELACIONADO CON LA ATENCIÓN DE LAS INSTANCIAS DE COORDINACIÓN INTERINSTITUCIONALES Y LAS INSTANCIAS DE PARTICIPACIÓN LOCALES, ASÍ COMOLOS PROCESOS COMUNITARIOS EN LA LOCALIDAD. Se expide cdp con certificado de no existencia personal 25070 del 12 de febrero de 2021, solicitud sipse 54617, memorando con solicitud 20216020004093 del 16 de febrero de 2021 y se recibe para trámite el 17 de febrero de 2021. SE EXPIDE CRP POR SOLICITUD CON RADICADO N° 20216020006403 FEB. 26 2021 SE RECIBE PARA TRAMITE EL 26 DE FEB-2021 REVISADO SECOP II Y SIPSE. | I119: Inversión | J119: Un Nuevo Contrato Social y Ambiental para la Bogotá del Siglo XXI | K119: 55 | L119: Fortalecimiento de Cultura Ciudadana y su institucionalidad | M119: =IF(ISERROR(VLOOKUP(K119,Proposito_programa!$C$2:$E$59,3,FALSE))," ",VLOOKUP(K119,Proposito_programa!$C$2:$E$59,3,FALSE)) -> Propósito 5: Construir Bogotá - Región con gobierno abierto, transparente y ciudadanía consciente | N119: 1622 | O119: 0 | P119: 1193373987 | Q119: SANTIAGO JOSE GARCIA GARCIA | R119: Persona Natural | Y119: 20700000 | AA119: 1 | AB119: 2300000 | AC119: 23000000 | AD119: 20700000 | AE119: 2021-02-26 | AF119: 2021-03-01 | AG119: 2021-12-31 | AH119: 272 | AI119: 1 | AJ119: 31 | AQ119: X | AS119: 0.9
A120: 206 | B120: 2021 | C120: FDLE-CD-206-2021 | D120: https://community.secop.gov.co/Public/Tendering/OpportunityDetail/Index?noticeUID=CO1.NTC.1840054&isFromPublicArea=True&isModal=False | E120: Contratos de prestación de servicios profesionales y de apoyo a la gestión | F120: Contratación directa | G120: Prestación de servicios profesionales y de apoyo a la gestión, o para la ejecución de trabajos artísticos que sólo puedan encomendarse a determinadas personas naturales; | H120: APOYAR ADMINISTRATIVA Y ASISTENCIALMENTE A LAS INSPECCIONES DE POLICÍA DE LA LOCALIDAD. Se expide cdp con certificado de no existencia personal 25353 del 19 de febrero de 2021, solicitud sipse 57173, memorando con solicitud 20216020005463 del 22 de febrero de 2021 y se recibe para trámite el 24 de febrero de 2021. SE EXPIDE CRP POR SOLICITUD CON RAD. N° 20216020009083 DEL 12 MARZO-2021SE RECIBE PARA TRAMITE EL 17 DE MARZO REVISADO SECOP II Y SIPSE. | I120: Inversión | J120: Un Nuevo Contrato Social y Ambiental para la Bogotá del Siglo XXI | K120: 57 | L120: Gestión Pública Local | M120: =IF(ISERROR(VLOOKUP(K120,Proposito_programa!$C$2:$E$59,3,FALSE))," ",VLOOKUP(K120,Proposito_programa!$C$2:$E$59,3,FALSE)) -> Propósito 5: Construir Bogotá - Región con gobierno abierto, transparente y ciudadanía consciente | N120: 1624 | O120: 0 | P120: 1136879118 | Q120: WILLIAM JAIR ACEVEDO PARRA | R120: Persona Natural | Y120: 20700000 | AA120: 2 | AB120: 2606666 | AC120: 23306666 | AD120: 19473333 | AE120: 2021-03-12 | AF120: 2021-03-17 | AG120: 2022-01-20 | AH120: 270 | AI120: 2 | AJ120: 15 | AQ120: X | AS120: 0.8355263254
A121: 317 | B121: 2021 | C121: FDLE-CD-317-2021 | D121: https://community.secop.gov.co/Public/Tendering/OpportunityDetail/Index?noticeUID=CO1.NTC.1947107&isFromPublicArea=True&isModal=False | E121: Contratos de prestación de servicios profesionales y de apoyo a la gestión | F121: Contratación directa | G121: Prestación de servicios profesionales y de apoyo a la gestión, o para la ejecución de trabajos artísticos que sólo puedan encomendarse a determinadas personas naturales; | H121: LA PRESTACIÓN DE SERVICIOS TÉCNICOS DE APOYO AL ÁREA DE GESTIÓN DE DESARROLLO LOCAL, EN LAS ACTIVIDADES ADMINISTRATIVAS DE LOS PROYECTOS RELACIONADOS CON EL SECTOR DE INTEGRACIÓN SOCIAL QUE LE SEAN ASIGNADOS. Se expide cdp con certificado de no existencia personal 26142 del 06 de abril de 2021, solicitud sipse 58222, memorando con solicitud 20216020012513 del 9 de abril de 2021 y se recibe para trámite el 12 de abril de 2021. SE EXPIDE CRP POR SOLICITUD CON RAD.N° 20216020013893 ABRIL 30 2021 SE RECIBE PARA TRAMITE EL 05 DE MAYO 2021 VERIFICADO SECOP Y SIPSE. | I121: Inversión | J121: Un Nuevo Contrato Social y Ambiental para la Bogotá del Siglo XXI | K121: 1 | L121: Subsidios y transferencias para la equidad | M121: =IF(ISERROR(VLOOKUP(K121,Proposito_programa!$C$2:$E$59,3,FALSE))," ",VLOOKUP(K121,Proposito_programa!$C$2:$E$59,3,FALSE)) -> Propósito 1: Hacer un nuevo contrato social para incrementar la inclusión social, productiva y política | N121: 1584 | O121: 0 | P121: 1077967726 | Q121: YESICA HASLEIDY SALAZAR RAMIREZ | R121: Persona Natural | Y121: 21000000 | AA121: 1 | AB121: 2500000 | AC121: 23500000 | AD121: 20500000 | AE121: 2021-05-04 | AF121: 2021-05-06 | AG121: 2021-12-31 | AH121: 210 | AI121: 1 | AJ121: 26 | AQ121: X | AS121: 0.8723404255
A122: 3 | B122: 2021 | C122: FDLE-CD-003-2021 | D122: https://community.secop.gov.co/Public/Tendering/OpportunityDetail/Index?noticeUID=CO1.NTC.1781143&isFromPublicArea=True&isModal=False | E122: Contratos de prestación de servicios profesionales y de apoyo a la gestión | F122: Contratación directa | G122: Prestación de servicios profesionales y de apoyo a la gestión, o para la ejecución de trabajos artísticos que sólo puedan encomendarse a determinadas personas naturales; | H122: LA PRESTACION DE SERVICIOS AUXILIARES AL ÁREA DE GESTION DE DESARROLLO LOCAL,COMO APOYO A LA ATENCIÓN AL CIUDADANO EN LA GESTIÓN DE LAS LABORES DE ATENCIÓN INTEGRAL, FILTRO Y DIRECCIONAMIENTO DE LAS SOLICITUDES DE LA CIUDADANÍA QUE ACUDE DE MANERA PERSONAL A LAS INSTALACIONES DE LA ALCALDÍA LOCAL DE ENGATIVÁ, Se expide CDP con certificado de no existencia de personal 23346 del 20 de enero de 2021, solicitud SIPSE 54401, memorando con solicitud 20216020000693 recibido para tramite de fecha Ene 26/21. SE EXPIDE CRP POR SOLICITUD CON RADICADO N° 20216020005873 FEB. 24 2021 SE RECIBE PARA TRAMITE EL 24 DE FEB-2021 REVISADO SECOP II Y SIPSE. | I122: Inversión | J122: Un Nuevo Contrato Social y Ambiental para la Bogotá del Siglo XXI | K122: 57 | L122: Gestión Pública Local | M122: =IF(ISERROR(VLOOKUP(K122,Proposito_programa!$C$2:$E$59,3,FALSE))," ",VLOOKUP(K122,Proposito_programa!$C$2:$E$59,3,FALSE)) -> Propósito 5: Construir Bogotá - Región con gobierno abierto, transparente y ciudadanía consciente | N122: 1623 | O122: 0 | P122: 21113992 | Q122: BLANCA YOLANDA BARAHONA VARGAS | R122: Persona Natural | Y122: 20700000 | AA122: 1 | AB122: 2836667 | AC122: 23536667 | AD122: 21236667 | AE122: 2021-02-23 | AF122: 2021-02-24 | AG122: 2021-12-31 | AH122: 270 | AI122: 1 | AJ122: 38 | AQ122: X | AS122: 0.9022801317
A123: 46 | B123: 2021 | C123: FDLE-CD-046-2021 | D123: https://community.secop.gov.co/Public/Tendering/OpportunityDetail/Index?noticeUID=CO1.NTC.1781012&isFromPublicArea=True&isModal=False | E123: Contratos de prestación de servicios profesionales y de apoyo a la gestión | F123: Contratación directa | G123: Prestación de servicios profesionales y de apoyo a la gestión, o para la ejecución de trabajos artísticos que sólo puedan encomendarse a determinadas personas naturales; | H123: APOYAR LA GESTIÓN DOCUMENTAL DE LA ALCALDÍA LOCAL EN LA IMPLEMENTACIÓN DE LOS PROCESOS DE CLASIFICACIÓN, ORDENACIÓN, SELECCIÓN NATURAL, FOLIACIÓN, IDENTIFICACIÓN, LEVANTAMIENTO DE INVENTARIOS, ALMACENAMIENTO Y APLICACIÓN DE PROTOCOLOS DE ELIMINACIÓN Y TRANSFERENCIAS DOCUMENTALES, Se expide CDP con certificado de No existencia de personal 23876 de fecha 29 de enero de 2021, solicitud SIPSE 55030, memorando con solicitud 20216020001683 recibido para tramite de fecha Feb 03/2021. SE EXPIDE CRP POR SOLICITUD CON RADICADO N° 20216020004803 FEB. 19 2021 SE RECIBE PARA TRAIMITE EL 22 DE FEB-2021 REVISADO SECOP II Y SIPSE. | I123: Inversión | J123: Un Nuevo Contrato Social y Ambiental para la Bogotá del Siglo XXI | K123: 57 | L123: Gestión Pública Local | M123: =IF(ISERROR(VLOOKUP(K123,Proposito_programa!$C$2:$E$59,3,FALSE))," ",VLOOKUP(K123,Proposito_programa!$C$2:$E$59,3,FALSE)) -> Propósito 5: Construir Bogotá - Región con gobierno abierto, transparente y ciudadanía consciente | N123: 1623 | O123: 0 | P123: 1014277447 | Q123: LEIDY TATIANA GAMBOA COPETE | R123: Persona Natural | Y123: 20700000 | AA123: 1 | AB123: 2990000 | AC123: 23690000 | AD123: 21390000 | AE123: 2021-02-19 | AF123: 2021-02-22 | AG123: 2021-12-31 | AH123: 270 | AI123: 1 | AJ123: 40 | AQ123: X | AS123: 0.9029126214
A124: 88 | B124: 2021 | C124: FDLE-CD-88-2021 | D124: https://community.secop.gov.co/Public/Tendering/OpportunityDetail/Index?noticeUID=CO1.NTC.1829045&isFromPublicArea=True&isModal=False | E124: Contratos de prestación de servicios profesionales y de apoyo a la gestión | F124: Contratación directa | G124: Prestación de servicios profesionales y de apoyo a la gestión, o para la ejecución de trabajos artísticos que sólo puedan encomendarse a determinadas personas naturales; | H124: APOYAR LA GESTIÓN DOCUMENTAL DE LA ALCALDÍA LOCAL EN LA IMPLEMENTACIÓN DE LOS PROCESOS DE CLASIFICACIÓN, ORDENACIÓN, SELECCIÓN NATURAL, FOLIACIÓN, IDENTIFICACIÓN, LEVANTAMIENTO DE INVENTARIOS, ALMACENAMIENTO Y APLICACIÓN DE PROTOCOLOS DE ELIMINACIÓN Y TRANSFERENCIAS DOCUMENTALES, Se expide CDP con certificado de No existencia de personal 23876 de fecha 29 de enero de 2021, solicitud SIPSE 55030, memorando con solicitud 20216020001783 recibido para tramite de fecha Feb 03/2021. SE EXPIDE CRP POR SOLICITUD CON RAD. N° 20216020007773 08 DE MARZO 2021 SE RECIBE PARA TRAMITE EL 09 DE MARZO 2021. VERIFICADO SECOP II Y SIPSE. | I124: Inversión | J124: Un Nuevo Contrato Social y Ambiental para la Bogotá del Siglo XXI | K124: 57 | L124: Gestión Pública Local | M124: =IF(ISERROR(VLOOKUP(K124,Proposito_programa!$C$2:$E$59,3,FALSE))," ",VLOOKUP(K124,Proposito_programa!$C$2:$E$59,3,FALSE)) -> Propósito 5: Construir Bogotá - Región con gobierno abierto, transparente y ciudadanía consciente | N124: 1623 | O124: 0 | P124: 1026273329 | Q124: DAISSY JULIETH ENCISO FLOREZ | R124: Persona Natural | Y124: 20700000 | AA124: 2 | AB124: 3220000 | AC124: 23920000 | AD124: 20086667 | AE124: 2021-03-09 | AF124: 2021-03-09 | AG124: 2022-01-20 | AH124: 270 | AI124: 2 | AJ124: 23 | AQ124: X | AS124: 0.8397436037
A125: 7 | B125: 2021 | C125: FDLE-CD-007-2021 | D125: https://community.secop.gov.co/Public/Tendering/OpportunityDetail/Index?noticeUID=CO1.NTC.1819634&isFromPublicArea=True&isModal=False | E125: Contratos de prestación de servicios profesionales y de apoyo a la gestión | F125: Contratación directa | G125: Prestación de servicios profesionales y de apoyo a la gestión, o para la ejecución de trabajos artísticos que sólo puedan encomendarse a determinadas personas naturales; | H125: LA PRESTACIÓN DE SERVICIOS AL ÁREA DE GESTIÓN POLICIVA JURÍDICA Y AL ÁREA DE GESTIÓN DE DESARROLLO LOCAL EN LA CONDUCCIÓN DE LOS VEHÍCULOS DEPROPIEDAD Y/O TENENCIA DEL FONDO DE DESARROLLO LOCAL DE ENGATIVÁ. Se expide CDP con certificado de no existencia 23811 del 28 de enero de 2021, solicitud de sipse 54404, memorando con solicitud 20216020001203 y fecha que se expide Febrero 02/2021. SE EXPIDE CRP POR SOLICITUD CON RAD. N° 20216020007733 DEL 08 MARZO-2021SE RECIBE PARA TRAMITE EL 10 DE MARZO REVISADO SECOP II Y SIPSE. | I125: Inversión | J125: Un Nuevo Contrato Social y Ambiental para la Bogotá del Siglo XXI | K125: 57 | L125: Gestión Pública Local | M125: =IF(ISERROR(VLOOKUP(K125,Proposito_programa!$C$2:$E$59,3,FALSE))," ",VLOOKUP(K125,Proposito_programa!$C$2:$E$59,3,FALSE)) -> Propósito 5: Construir Bogotá - Región con gobierno abierto, transparente y ciudadanía consciente | N125: 1623 | O125: 0 | P125: 79455692 | Q125: LIBERATO PINZON SUAREZ | R125: Persona Natural | Y125: 20000000 | AA125: 1 | AB125: 4250000 | AC125: 24250000 | AD125: 21750000 | AE125: 2021-03-05 | AF125: 2021-03-10 | AG125: 2021-12-31 | AH125: 240 | AI125: 1 | AJ125: 52 | AQ125: X | AS125: 0.8969072165
A126: 14 | B126: 2021 | C126: FDLE-CD-014-2021 | D126: https://community.secop.gov.co/Public/Tendering/OpportunityDetail/Index?noticeUID=CO1.NTC.1820467&isFromPublicArea=True&isModal=False | E126: Contratos de prestación de servicios profesionales y de apoyo a la gestión | F126: Contratación directa | G126: Prestación de servicios profesionales y de apoyo a la gestión, o para la ejecución de trabajos artísticos que sólo puedan encomendarse a determinadas personas naturales; | H126: LA PRESTACIÓN DE SERVICIOS AL ÁREA DE GESTIÓN POLICIVA JURÍDICA Y AL ÁREA DE GESTIÓN DE DESARROLLO LOCAL EN LA CONDUCCIÓN DE LOS VEHÍCULOS DEPROPIEDAD Y/O TENENCIA DEL FONDO DE DESARROLLO LOCAL DE ENGATIVÁ. Se expide CDP con certificado de no existencia 23811 del 28 enero 2021, solicitud sipse 54404, memorando con solicitud 20216020001193 y fecha que se expide Febrero 2/2021. SE EXPIDE CRP POR SOLICITUD CON RAD. N° 20216020007723 DEL 08 MARZO-2021SE RECIBE PARA TRAMITE EL 09 DE MARZO REVISADO SECOP II Y SIPSE. | I126: Inversión | J126: Un Nuevo Contrato Social y Ambiental para la Bogotá del Siglo XXI | K126: 57 | L126: Gestión Pública Local | M126: =IF(ISERROR(VLOOKUP(K126,Proposito_programa!$C$2:$E$59,3,FALSE))," ",VLOOKUP(K126,Proposito_programa!$C$2:$E$59,3,FALSE)) -> Propósito 5: Construir Bogotá - Región con gobierno abierto, transparente y ciudadanía consciente | N126: 1623 | O126: 0 | P126: 79533269 | Q126: OSCAR RICARDO OTERO LAME | R126: Persona Natural | Y126: 20000000 | AA126: 1 | AB126: 4250000 | AC126: 24250000 | AD126: 21750000 | AE126: 2021-03-05 | AF126: 2021-03-10 | AG126: 2021-12-31 | AH126: 240 | AI126: 1 | AJ126: 52 | AQ126: X | AS126: 0.8969072165
A127: 222 | B127: 2021 | C127: FDLE-CD-222-2021 | D127: https://community.secop.gov.co/Public/Tendering/OpportunityDetail/Index?noticeUID=CO1.NTC.1811115&isFromPublicArea=True&isModal=False | E127: Contratos de prestación de servicios profesionales y de apoyo a la gestión | F127: Contratación directa | G127: Prestación de servicios profesionales y de apoyo a la gestión, o para la ejecución de trabajos artísticos que sólo puedan encomendarse a determinadas personas naturales; | H127: LA PRESTACIÓN DE SERVICIOS AUXILIARES DE APOYO AL ÁREA DE GESTIÓN DE DESARROLLO LOCAL EN LOS TRÁMITES ADMINISTRATIVOS DE LOS PROYECTOS RELACIONADOS CON MALLA VIAL, ESPACIO PÚBLICO, PARQUES Y/O INFRAESTRUCTURA. Se expide CDP con certificado de No existencia de personal 25149 de fecha 15 de febrero de 2021, solicitud SIPSE 54593, memorando 20216020005033 recibido para tramite de fecha Febrero 24 de 2021. SE EXPIDE CRP POR SOLICITUD CON RADICADO N° 20216020007463 MAR.04.2021 SE RECIBE PARA TRAMITE REVISADO SECOP II. | I127: Inversión | J127: Un Nuevo Contrato Social y Ambiental para la Bogotá del Siglo XXI | K127: 49 | L127: Movilidad segura, sostenible y accesible | M127: =IF(ISERROR(VLOOKUP(K127,Proposito_programa!$C$2:$E$59,3,FALSE))," ",VLOOKUP(K127,Proposito_programa!$C$2:$E$59,3,FALSE)) -> Propósito 4: Hacer de Bogotá Región un modelo de movilidad multimodal, incluyente y sostenible | N127: 1621 | O127: 0 | P127: 1077973833 | Q127: KEVIN ESTEBAN GONGORA FONSECA | R127: Persona Natural | Y127: 20700000 | AA127: 2 | AB127: 3756666 | AC127: 24456666 | AD127: 20470000 | AE127: 2021-03-03 | AF127: 2021-03-05 | AG127: 2022-01-24 | AH127: 270 | AI127: 2 | AJ127: 27 | AQ127: X | AS127: 0.8369906184
A128: 325 | B128: 2021 | C128: FDLE-SMC-325-2021 | D128: https://community.secop.gov.co/Public/Tendering/OpportunityDetail/Index?noticeUID=CO1.NTC.1994251&isFromPublicArea=True&isModal=False | E128: Suministro | F128: Contratación mínima cuantia | G128: No aplica | H128: SUMINISTRO A MONTO AGOTABLE DE IMPLEMENTOS DE SEGURIDAD INDUSTRIAL Y UNIFORMES DE IDENTIFICACIÓN PARA EL PERSONAL CONTRATADO DIRECTAMENTE POR EL FONDO DE DESARROLLO LOCAL QUIENES APOYAN EN LA EJECUCIÓN DE ACTIVIDADES DE MANTENIMIENTO, ADECUACIÓN Y RECUPERACIÓN DE MALLA VIAL Y ESPACIO PÚBLICO DE LA LOCALIDAD DE ENGATIVÁ. Se expide cdp solicitud sipse 59026, memorando con solicitud 20216020015563 del 21 de mayo de 2021 y se recibe para trámite el 24 de mayo de 2021. SE EXPIDE CRP POR SOLICITUD CON RAD.N° 20216020017673 DE JUNIO 21 2021 SE RECIBE PARA TRÁMITE EL 22 DE JUNIO 2021 VERIFICADO SECOP II Y SIPSE. | I128: Inversión | J128: Un Nuevo Contrato Social y Ambiental para la Bogotá del Siglo XXI | K128: 49 | L128: Movilidad segura, sostenible y accesible | M128: =IF(ISERROR(VLOOKUP(K128,Proposito_programa!$C$2:$E$59,3,FALSE))," ",VLOOKUP(K128,Proposito_programa!$C$2:$E$59,3,FALSE)) -> Propósito 4: Hacer de Bogotá Región un modelo de movilidad multimodal, incluyente y sostenible | N128: 1621 | O128: 8 | P128: 901370420 | Q128: GN GENERACION DE NEGOCIOS SAS | R128: Persona Jurídica | Y128: 25000000 | AA128: 0 | AB128: 0 | AC128: 25000000 | AD128: 8857289 | AE128: 2021-06-17 | AF128: 2021-07-09 | AG128: 2022-03-08 | AH128: 180 | AI128: 1 | AJ128: 58 | AP128: X | AS128: 0.35429156
A129: 1 | B129: 2021 | C129: FDLE-CD-001-2021 | D129: https://community.secop.gov.co/Public/Tendering/OpportunityDetail/Index?noticeUID=CO1.NTC.1724632&isFromPublicArea=True&isModal=False | E129: Contratos de prestación de servicios profesionales y de apoyo a la gestión | F129: Contratación directa | G129: Prestación de servicios profesionales y de apoyo a la gestión, o para la ejecución de trabajos artísticos que sólo puedan encomendarse a determinadas personas naturales; | H129: LA PRESTACIÓN DE SERVICIOS AUXILIARES DE APOYO A LA GESTIÓN AL ÁREA DE GESTIÓN DE DESARROLLO LOCAL EN LA EJECUCIÓN DEL PROCESO DE CORRESPONDENCIA QUE SE GENERA EN CDI DE LA ALCALDÍA LOCAL DE ENGATIVÁ. SE EXPIDE CDP CON CERTIFICADO DE NO EXISTENCIA PERSONAL 23347 DEL 20 DE ENERO DE 2021, SOLICITUD SIPSE 54402, MEMORANDO CON SOLICITUD 20216020000763 Y FECHA QUE SE EXPIDE ENERO 26/2021. SE EXPIDE CRP POR SOLICITUD CON RADICADO N° 2021602002113 FEB.02-2021 RECIBIDO PARA TRAMITE EN FB.03.21. CTO-001-2021 | I129: Inversión | J129: Un Nuevo Contrato Social y Ambiental para la Bogotá del Siglo XXI | K129: 57 | L129: Gestión Pública Local | M129: =IF(ISERROR(VLOOKUP(K129,Proposito_programa!$C$2:$E$59,3,FALSE))," ",VLOOKUP(K129,Proposito_programa!$C$2:$E$59,3,FALSE)) -> Propósito 5: Construir Bogotá - Región con gobierno abierto, transparente y ciudadanía consciente | N129: 1623 | O129: 0 | P129: 1010186649 | Q129: CATALINA REYES FORERO | R129: Persona Natural | Y129: 20700000 | AA129: 1 | AB129: 4370000 | AC129: 25070000 | AD129: 22770000 | AE129: 2021-02-02 | AF129: 2021-02-04 | AG129: 2021-12-31 | AH129: 270 | AI129: 1 | AJ129: 58 | AQ129: X | AS129: 0.9082568807
A130: 83883 | B130: 2021 | C130: CCE-GS-2018-1 | D130: https://colombiacompra.gov.co/tienda-virtual-del-estado-colombiano/ordenes-compra/83883 | E130: Suministro | F130: Selección abreviada | G130: Acuerdo marco de precios | H130: ADQUIRIR EQUIPOS LOGISTICOS PARA ORGANISMOS DE SEGURIDAD LOCAL DE ENGATIVÁ. Se expide cdp con solicitud sipse 68019 y con memorando 20216020035623 del 28 de diciembre de 2021 y se recibe para trámite el 28 de diciembre de 2021. SE EXPIDE CRP POR SOLICITUD CON RAD. N° 20216020010823 DEL 29.12.2021 SE RECIBE PARA TRAMITE EL 30 .12.21. | I130: Inversión | J130: Un Nuevo Contrato Social y Ambiental para la Bogotá del Siglo XXI | K130: 48 | L130: Plataforma institucional para la seguridad y justicia | M130: =IF(ISERROR(VLOOKUP(K130,Proposito_programa!$C$2:$E$59,3,FALSE))," ",VLOOKUP(K130,Proposito_programa!$C$2:$E$59,3,FALSE)) -> Propósito 3: Inspirar confianza y legitimidad para vivir sin miedo y ser epicentro de cultura ciudadana, paz y reconciliación | N130: 1620 | O130: 0 | P130: 830037946 | Q130: PANAMERICANA LIBRERIA Y PAPELERIA S A | R130: Persona Jurídica | Y130: 25070682 | AA130: 0 | AB130: 0 | AC130: 25070682 | AD130: 0 | AE130: 2021-12-29 | AH130: 30 | AI130: 0 | AJ130: 0 | AO130: X | AP130: X | AS130: 0
A131: 8 | B131: 2021 | C131: FDLE-CD-008-2021 | D131: https://community.secop.gov.co/Public/Tendering/OpportunityDetail/Index?noticeUID=CO1.NTC.1793214&isFromPublicArea=True&isModal=False | E131: Contratos de prestación de servicios profesionales y de apoyo a la gestión | F131: Contratación directa | G131: Prestación de servicios profesionales y de apoyo a la gestión, o para la ejecución de trabajos artísticos que sólo puedan encomendarse a determinadas personas naturales; | H131: LA PRESTACIÓN DE SERVICIOS AL ÁREA DE GESTIÓN POLICIVA JURÍDICA Y AL ÁREA DE GESTIÓN DE DESARROLLO LOCAL EN LA CONDUCCIÓN DE LOS VEHÍCULOS DE PROPIEDAD Y/O TENENCIA DEL FONDO DE DESARROLLO LOCAL DE ENGATIVÁ. Se expide cdo con certificado de no existencia personal 23811 del 28 de 2021, solicitud sipse 54404, memorando con solicitud 20216020001213 y fecha que se expide Febrero 2/2021. SE EXPIDE CRP POR SOLICITUD CON RADICADO N° 20216020006003 FEB. 24 2021 SE RECIBE PARA TRAMITE EL 24 DE FEB-2021 REVISADO SECOP II Y SIPSE. | I131: Inversión | J131: Un Nuevo Contrato Social y Ambiental para la Bogotá del Siglo XXI | K131: 57 | L131: Gestión Pública Local | M131: =IF(ISERROR(VLOOKUP(K131,Proposito_programa!$C$2:$E$59,3,FALSE))," ",VLOOKUP(K131,Proposito_programa!$C$2:$E$59,3,FALSE)) -> Propósito 5: Construir Bogotá - Región con gobierno abierto, transparente y ciudadanía consciente | N131: 1623 | O131: 0 | P131: 1014213151 | Q131: CHAYAN SMITH MENESES MORENO | R131: Persona Natural | Y131: 20000000 | AA131: 1 | AB131: 5500000 | AC131: 25500000 | AD131: 23000000 | AE131: 2021-02-24 | AF131: 2021-02-25 | AG131: 2021-12-31 | AH131: 240 | AI131: 1 | AJ131: 67 | AQ131: X | AS131: 0.9019607843
A132: 345 | B132: 2021 | C132: FDLE-CD-345-2021 | D132: https://community.secop.gov.co/Public/Tendering/OpportunityDetail/Index?noticeUID=CO1.NTC.2054178&isFromPublicArea=True&isModal=False | E132: Contratos de prestación de servicios profesionales y de apoyo a la gestión | F132: Contratación directa | G132: Prestación de servicios profesionales y de apoyo a la gestión, o para la ejecución de trabajos artísticos que sólo puedan encomendarse a determinadas personas naturales; | H132: PRESTAR LOS SERVICIOS PROFESIONALES ÁREA DE GESTIÓN POLICIVA JURÍDICA Y/O ÁREA DE GESTIÓN DE DESARROLLO LOCAL, EN TEMAS DE SEGURIDAD, PREVENCIÓN Y CONVIVENCIA CIUDADANA EN LA LOCALIDAD, DE CONFORMIDAD CON EL MARCO NORMATIVO APLICABLE PARA LA MATERIA. Se expide cdp con certificado de no existencia personal 26657 del 01 junio 2021, solicitud sipse 59129, memorando con solicitud 20216020016243 del 2 de junio de 2021 y se recibe para trámite el 8 de junio de 2021. SE EXPIDE CRP POR SOLICITUD CON RAD. N° 20216020018963 DE 07072021 VERIFICADO SECOP Y SIPSE. | I132: Inversión | J132: Un Nuevo Contrato Social y Ambiental para la Bogotá del Siglo XXI | K132: 45 | L132: Espacio público más seguro y construido colectivamente | M132: =IF(ISERROR(VLOOKUP(K132,Proposito_programa!$C$2:$E$59,3,FALSE))," ",VLOOKUP(K132,Proposito_programa!$C$2:$E$59,3,FALSE)) -> Propósito 3: Inspirar confianza y legitimidad para vivir sin miedo y ser epicentro de cultura ciudadana, paz y reconciliación | N132: 1618 | O132: 0 | P132: 1001182158 | Q132: DIANA MARCELA SABOYA AUDOR | R132: Persona Natural | Y132: 26220000 | AA132: 0 | AB132: 0 | AC132: 26220000 | AD132: 20830333 | AE132: 2021-07-07 | AF132: 2021-07-08 | AG132: 2022-01-07 | AH132: 180 | AI132: 0 | AJ132: 0 | AQ132: X | AS132: 0.7944444317
A133: 102 | B133: 2021 | C133: FDLE-CD-102-2021 | D133: https://community.secop.gov.co/Public/Tendering/OpportunityDetail/Index?noticeUID=CO1.NTC.1855325&isFromPublicArea=True&isModal=False | E133: Contratos de prestación de servicios profesionales y de apoyo a la gestión | F133: Contratación directa | G133: Prestación de servicios profesionales y de apoyo a la gestión, o para la ejecución de trabajos artísticos que sólo puedan encomendarse a determinadas personas naturales; | H133: APOYAR LAS INSPECCIONES DE POLICÍA CON EL INGRESO DE INFORMACIÓN, USO Y APROPIACIÓN DE LOS SISTEMAS DE INFORMACIÓN VIGENTES DISPUESTOS PARA LAS ACTUACIONES DE POLICÍA. Se expide CDP con certificado de No existencia de personal 23867 de fecha 28 de enero de 2021, solicitud SIPSE 55031, memorando con solicitud 20216020001983 recibido para tramite de fecha Feb 03/2021. SE EXPIDE CRP POR SOLICITUD CON RAD. N° 20216020009723 DEL 18 MARZO-2021SE RECIBE PARA TRAMITE EL 19 DE MARZO REVISADO SECOP II Y SIPSE. | I133: Inversión | J133: Un Nuevo Contrato Social y Ambiental para la Bogotá del Siglo XXI | K133: 57 | L133: Gestión Pública Local | M133: =IF(ISERROR(VLOOKUP(K133,Proposito_programa!$C$2:$E$59,3,FALSE))," ",VLOOKUP(K133,Proposito_programa!$C$2:$E$59,3,FALSE)) -> Propósito 5: Construir Bogotá - Región con gobierno abierto, transparente y ciudadanía consciente | N133: 1624 | O133: 0 | P133: 52796030 | Q133: DIANA LUZ CASALLAS RUBIANO | R133: Persona Natural | Y133: 27000000 | AA133: 0 | AB133: 0 | AC133: 27000000 | AD133: 21800000 | AE133: 2021-03-19 | AF133: 2021-03-23 | AG133: 2021-12-22 | AH133: 270 | AI133: 0 | AJ133: 0 | AQ133: X | AS133: 0.8074074074
A134: 105 | B134: 2021 | C134: FDLE-CD-105-2021 | D134: https://community.secop.gov.co/Public/Tendering/OpportunityDetail/Index?noticeUID=CO1.NTC.1836826&isFromPublicArea=True&isModal=False | E134: Contratos de prestación de servicios profesionales y de apoyo a la gestión | F134: Contratación directa | G134: Prestación de servicios profesionales y de apoyo a la gestión, o para la ejecución de trabajos artísticos que sólo puedan encomendarse a determinadas personas naturales; | H134: APOYAR LAS INSPECCIONES DE POLICÍA CON EL INGRESO DE INFORMACIÓN, USO Y APROPIACIÓN DE LOS SISTEMAS DE INFORMACIÓN VIGENTES DISPUESTOS PARA LAS ACTUACIONES DE POLICÍA. Se expide CDP con certificado con certificado de No existencia de personal 23867 de fecha 29 de enero de 2021, solicitud Sipse 55031, memorando con solicitud 20216020002043 recibido para tramite de fecha Feb 03/2021. SE EXPIDE CRP POR SOLICITUD CON RAD. N° 20216020008613 DEL 11 MARZO-2021SE RECIBE PARA TRAMITE EL 12 DE MARZO REVISADO SECOP II Y SIPSE. | I134: Inversión | J134: Un Nuevo Contrato Social y Ambiental para la Bogotá del Siglo XXI | K134: 57 | L134: Gestión Pública Local | M134: =IF(ISERROR(VLOOKUP(K134,Proposito_programa!$C$2:$E$59,3,FALSE))," ",VLOOKUP(K134,Proposito_programa!$C$2:$E$59,3,FALSE)) -> Propósito 5: Construir Bogotá - Región con gobierno abierto, transparente y ciudadanía consciente | N134: 1624 | O134: 0 | P134: 52798485 | Q134: ADRIANA ERIKA BOHORQUEZ LEON | R134: Persona Natural | Y134: 27000000 | AA134: 0 | AB134: 0 | AC134: 27000000 | AD134: 25600000 | AE134: 2021-03-11 | AF134: 2021-03-15 | AG134: 2021-12-14 | AH134: 270 | AI134: 0 | AJ134: 0 | AQ134: X | AS134: 0.9481481481
A135: 118 | B135: 2021 | C135: FDLE-CD-118-2021 | D135: https://community.secop.gov.co/Public/Tendering/OpportunityDetail/Index?noticeUID=CO1.NTC.1854857&isFromPublicArea=True&isModal=False | E135: Contratos de prestación de servicios profesionales y de apoyo a la gestión | F135: Contratación directa | G135: Prestación de servicios profesionales y de apoyo a la gestión, o para la ejecución de trabajos artísticos que sólo puedan encomendarse a determinadas personas naturales; | H135: APOYAR EN LAS TAREAS OPERATIVAS DE CARÁCTER ARCHIVÍSTICO DESARROLLADAS EN LA ALCALDÍA LOCAL PARA GARANTIZAR LA APLICACIÓN CORRECTA DE LOS PROCEDIMIENTOS TÉCNICOS. Se expide cdp con certificado de no existencia personal 24265 del 2 de febrero de 2021, solicitud sipse 54396, memorando con solicitud 20216020002423 y se expide en Febrero 8/2021. SE EXPIDE CRP POR SOLICITUD CON RAD. N° 202160200010583 DEL 23 MAR.-2021SE RECIBE PARA TRAMITE EL 25 DE MARZO REVISADO SECOP II Y SIPSE. | I135: Inversión | J135: Un Nuevo Contrato Social y Ambiental para la Bogotá del Siglo XXI | K135: 57 | L135: Gestión Pública Local | M135: =IF(ISERROR(VLOOKUP(K135,Proposito_programa!$C$2:$E$59,3,FALSE))," ",VLOOKUP(K135,Proposito_programa!$C$2:$E$59,3,FALSE)) -> Propósito 5: Construir Bogotá - Región con gobierno abierto, transparente y ciudadanía consciente | N135: 1623 | O135: 0 | P135: 52959946 | Q135: ANA MELISSA LARA PLATIN | R135: Persona Natural | Y135: 27000000 | AA135: 0 | AB135: 0 | AC135: 27000000 | AD135: 24600000 | AE135: 2021-03-18 | AF135: 2021-03-25 | AG135: 2021-12-24 | AH135: 270 | AI135: 0 | AJ135: 0 | AQ135: X | AS135: 0.9111111111
A136: 127 | B136: 2021 | C136: FDLE-CD-127-2021 | D136: https://community.secop.gov.co/Public/Tendering/OpportunityDetail/Index?noticeUID=CO1.NTC.1830513&isFromPublicArea=True&isModal=False | E136: Contratos de prestación de servicios profesionales y de apoyo a la gestión | F136: Contratación directa | G136: Prestación de servicios profesionales y de apoyo a la gestión, o para la ejecución de trabajos artísticos que sólo puedan encomendarse a determinadas personas naturales; | H136: LA PRESTACIÓN DE SERVICIOS TÉCNICOS DE APOYO AL ÁREA DE GESTIÓN DE DESARROLLO LOCAL, EN LAS ACTIVIDADES ADMINISTRATIVAS DE LOS PROYECTOS RELACIONADOS CON EL SECTOR DE INTEGRACIÓN SOCIAL QUE LE SEAN ASIGNADOS. Se expide CDP con certificado de no existencia personal 23815 del 28 de enero 2021, solicitud sipse 55239, memorando con solicitud 20216020001123 y se expide en Febrero 2/2021. SE EXPIDE CRP POR SOLICITUD CON RAD. N° 20216020007523 DEL 04 MARZO-2021SE RECIBE PARA TRAMITE EL 10 DE MARZO REVISADO SECOP II Y SIPSE. | I136: Inversión | J136: Un Nuevo Contrato Social y Ambiental para la Bogotá del Siglo XXI | K136: 1 | L136: Subsidios y transferencias para la equidad | M136: =IF(ISERROR(VLOOKUP(K136,Proposito_programa!$C$2:$E$59,3,FALSE))," ",VLOOKUP(K136,Proposito_programa!$C$2:$E$59,3,FALSE)) -> Propósito 1: Hacer un nuevo contrato social para incrementar la inclusión social, productiva y política | N136: 1584 | O136: 0 | P136: 52362065 | Q136: CARMEN ELISA VELA ROJAS | R136: Persona Natural | Y136: 27000000 | AA136: 0 | AB136: 0 | AC136: 27000000 | AD136: 8100000 | AE136: 2021-03-09 | AF136: 2021-03-10 | AG136: 2021-06-30 | AH136: 270 | AI136: 0 | AJ136: 0 | AQ136: X | AS136: 0.3
A137: 150 | B137: 2021 | C137: FDLE-CD-150-2021 | D137: https://community.secop.gov.co/Public/Tendering/OpportunityDetail/Index?noticeUID=CO1.NTC.1852751&isFromPublicArea=True&isModal=False | E137: Contratos de prestación de servicios profesionales y de apoyo a la gestión | F137: Contratación directa | G137: Prestación de servicios profesionales y de apoyo a la gestión, o para la ejecución de trabajos artísticos que sólo puedan encomendarse a determinadas personas naturales; | H137: LA PRESTACIÓN DE SERVICIOS TÉCNICOS DE APOYO TÉCNICO EN LA GESTIÓN Y PROMOCIÓN DE LOS PROCESOS DEPORTIVOS Y RECREATIVOS DE LA LOCALIDAD Y EN EL ACOMPAÑAMIENTO DE LAS ESTRATEGIAS Y ACTIVIDADES QUE DE ALLÍ SE DERIVEN. Se expide CDP con certificado de no existencia 24232 del 2 de febrero de2021, solicitud sipse 54478, memorando con solicitud 20216020003123 del 8 de febrero y se recibde para trámite Febrero 9/2021. SE EXPIDE CRP POR SOLICITUD CON RAD. N° 20216020009813 DEL 18 MARZO-2021SE RECIBE PARA TRAMITE EL 19 DE MARZO REVISADO SECOP II Y SIPSE. | I137: Inversión | J137: Un Nuevo Contrato Social y Ambiental para la Bogotá del Siglo XXI | K137: 20 | L137: Bogotá, referente de cultura, deporte, recreación y actividad física, con parques para el desarrollo y la salud. | M137: =IF(ISERROR(VLOOKUP(K137,Proposito_programa!$C$2:$E$59,3,FALSE))," ",VLOOKUP(K137,Proposito_programa!$C$2:$E$59,3,FALSE)) -> Propósito 1: Hacer un nuevo contrato social para incrementar la inclusión social, productiva y política | N137: 1594 | O137: 0 | P137: 86007625 | Q137: SANTOS ROMERO | R137: Persona Natural | Y137: 27000000 | AA137: 0 | AB137: 0 | AC137: 27000000 | AD137: 24800000 | AE137: 2021-03-18 | AF137: 2021-03-23 | AG137: 2021-12-22 | AH137: 270 | AI137: 0 | AJ137: 0 | AQ137: X | AS137: 0.9185185185
A138: 240 | B138: 2021 | C138: FDLE-CD-240-2021 | D138: https://community.secop.gov.co/Public/Tendering/OpportunityDetail/Index?noticeUID=CO1.NTC.1831126&isFromPublicArea=True&isModal=False | E138: Contratos de prestación de servicios profesionales y de apoyo a la gestión | F138: Contratación directa | G138: Prestación de servicios profesionales y de apoyo a la gestión, o para la ejecución de trabajos artísticos que sólo puedan encomendarse a determinadas personas naturales; | H138: EL CONTRATISTA SE OBLIGA PARA CON EL FONDO DE DESARROLLO LOCAL DE ENGATIVA A LA PRESTACIÓN DE SERVICIOS TÉCNICOS AL ÁREA DE GESTIÓN DE DESARROLLO LOCAL, APOYANDO LA OPERACIÓN, ADMINISTRACIÓN Y GESTIÓN DEL PUNTO VIVE DIGITAL. Se expide cdp con certificado de no existencia personal 25722 del 03 de marzo de 2021, solicitud sipse 54452, memorando con solicitud 20216020007433 del 4 de marzo de 2021 y recibe para trámite el 4 de marzo de 2021. SE EXPIDE CRP POR SOLICITUD CON RAD. N° 20216020008663 DEL 12 MARZO-2021SE RECIBE PARA TRAMITE EL 15 DE MARZO REVISADO SECOP II Y SIPSE. | I138: Inversión | J138: Un Nuevo Contrato Social y Ambiental para la Bogotá del Siglo XXI | K138: 57 | L138: Gestión Pública Local | M138: =IF(ISERROR(VLOOKUP(K138,Proposito_programa!$C$2:$E$59,3,FALSE))," ",VLOOKUP(K138,Proposito_programa!$C$2:$E$59,3,FALSE)) -> Propósito 5: Construir Bogotá - Región con gobierno abierto, transparente y ciudadanía consciente | N138: 1623 | O138: 0 | P138: 52826087 | Q138: GINA ALEXANDRA QUIVANO SANTACRUZ | R138: Persona Natural | Y138: 27000000 | AA138: 0 | AB138: 0 | AC138: 27000000 | AD138: 25400000 | AE138: 2021-03-11 | AF138: 2021-03-17 | AG138: 2021-12-16 | AH138: 270 | AI138: 0 | AJ138: 0 | AQ138: X | AS138: 0.9407407407
A139: 248 | B139: 2021 | C139: FDLE-CD-248-2021 | D139: https://community.secop.gov.co/Public/Tendering/OpportunityDetail/Index?noticeUID=CO1.NTC.1859433&isFromPublicArea=True&isModal=False | E139: Contratos de prestación de servicios profesionales y de apoyo a la gestión | F139: Contratación directa | G139: Prestación de servicios profesionales y de apoyo a la gestión, o para la ejecución de trabajos artísticos que sólo puedan encomendarse a determinadas personas naturales; | H139: LA PRESTACIÓN DE SERVICIOS TÉCNICOS PARA APOYAR LAS ACCIONES CONCERNIENTES A LAS DISPOSICIONES DE GESTIÓN AMBIENTAL, PLAN DE ACCIÓN DE RESIDUOS SÓLIDOS DE LA LOCALIDAD, Y DEMÁS ACTIVIDADES RELACIONADAS CON LOS TEMAS AMBIENTALES. Se expide cdp con certificado de no existencia personal 25723 del 03 de marzo de 2021, solicitud sipse 54514, memorando con solicitud 20216020007413 del 4 de marzo de 2021 y recibe para trámite el 4 de marzo de 2021. SE EXPIDE CRP POR SOLICITUD CON RAD. N° 202160200010493 DEL 23 MARZO-202SE RECIBE PARA TRAMITE EL 24 DE MARZO REVISADO SECOP II Y SIPSE. | I139: Inversión | J139: Un Nuevo Contrato Social y Ambiental para la Bogotá del Siglo XXI | K139: 28 | L139: Bogotá protectora de sus recursos naturales | M139: =IF(ISERROR(VLOOKUP(K139,Proposito_programa!$C$2:$E$59,3,FALSE))," ",VLOOKUP(K139,Proposito_programa!$C$2:$E$59,3,FALSE)) -> Propósito 2 : Cambiar Nuestros Hábitos de Vida para Reverdecer a Bogotá y Adaptarnos y Mitigar la Crisis Climática | N139: 1603 | O139: 0 | P139: 1090175959 | Q139: DIEGO ALEXANDER CARMONA AVELLANEDA | R139: Persona Natural | Y139: 27000000 | AA139: 0 | AB139: 0 | AC139: 27000000 | AD139: 24700000 | AE139: 2021-03-19 | AF139: 2021-03-24 | AG139: 2021-12-23 | AH139: 270 | AI139: 0 | AJ139: 0 | AQ139: X | AS139: 0.9148148148
A140: 289 | B140: 2021 | C140: FDLE-CD-289-2021 | D140: https://community.secop.gov.co/Public/Tendering/OpportunityDetail/Index?noticeUID=CO1.NTC.1870788&isFromPublicArea=True&isModal=False | E140: Contratos de prestación de servicios profesionales y de apoyo a la gestión | F140: Contratación directa | G140: Prestación de servicios profesionales y de apoyo a la gestión, o para la ejecución de trabajos artísticos que sólo puedan encomendarse a determinadas personas naturales; | H140: APOYAR Y DAR SOPORTE TÉCNICO AL ADMINISTRADOR Y USUARIO FINAL DE LA RED DE SISTEMAS Y TECNOLOGÍA E INFORMACIÓN DE LA ALCALDÍA LOCAL. Se expide cdp con certificado de no existencia personal 24247 del 2 febrero 2021, solicitud sipse 54449, memorando con solicitud 20216020002763 y se expide en Febrero 9/2021. SE EXPIDE CRP POR SOLICITUD CON RAD. N° 202160200010963 DEL 26 MAR.2021 SE RECIBE PARA TRAMITE EL 29 DE MARZO REVISADO SECOP II Y SIPSE. | I140: Inversión | J140: Un Nuevo Contrato Social y Ambiental para la Bogotá del Siglo XXI | K140: 57 | L140: Gestión Pública Local | M140: =IF(ISERROR(VLOOKUP(K140,Proposito_programa!$C$2:$E$59,3,FALSE))," ",VLOOKUP(K140,Proposito_programa!$C$2:$E$59,3,FALSE)) -> Propósito 5: Construir Bogotá - Región con gobierno abierto, transparente y ciudadanía consciente | N140: 1623 | O140: 0 | P140: 1020805914 | Q140: FABIAN HUMBERTO PULIDO PEREZ | R140: Persona Natural | Y140: 27000000 | AA140: 0 | AB140: 0 | AC140: 27000000 | AD140: 24200000 | AE140: 2021-03-26 | AF140: 2021-03-29 | AG140: 2021-12-28 | AH140: 270 | AI140: 0 | AJ140: 0 | AQ140: X | AS140: 0.8962962963
A141: 291 | B141: 2021 | C141: FDLE-CD-291-2021 | D141: https://community.secop.gov.co/Public/Tendering/OpportunityDetail/Index?noticeUID=CO1.NTC.1874801&isFromPublicArea=True&isModal=False | E141: Contratos de prestación de servicios profesionales y de apoyo a la gestión | F141: Contratación directa | G141: Prestación de servicios profesionales y de apoyo a la gestión, o para la ejecución de trabajos artísticos que sólo puedan encomendarse a determinadas personas naturales; | H141: PRESTACIÓN DE SERVICIOS DE APOYO TÉCNICO EN LA INSPECCIÓN Y CONTROL DE LAS ACTIVIDADES QUE CONLLEVEN AL MEJORAMIENTO Y ADECUACIÓN DEL ESPACIO PÚBLICO Y MALLA VIAL LOCAL DE LA LOCALIDAD DE ENGATIVÁ. Se expide cdp con certificado de no existencia personal 23911 del 29 de enero de 2021, solicitud sipse 54608, memorando con solicitud 20216020003313 del 10 de febrero de 2021, y se recibe para trámite el 11 de febrero de 2021. SE EXPIDE CRP POR SOLICITUD CON RAD. N° 202160200010773 DEL 25 MAR.2021 SE RECIBE PARA TRAMITE EL 26 DE MARZO REVISADO SECOP II Y SIPSE. | I141: Inversión | J141: Un Nuevo Contrato Social y Ambiental para la Bogotá del Siglo XXI | K141: 49 | L141: Movilidad segura, sostenible y accesible | M141: =IF(ISERROR(VLOOKUP(K141,Proposito_programa!$C$2:$E$59,3,FALSE))," ",VLOOKUP(K141,Proposito_programa!$C$2:$E$59,3,FALSE)) -> Propósito 4: Hacer de Bogotá Región un modelo de movilidad multimodal, incluyente y sostenible | N141: 1621 | O141: 0 | P141: 14233838 | Q141: GUILLERMO VILLANUEVA MENDOZA | R141: Persona Natural | Y141: 27000000 | AA141: 0 | AB141: 0 | AC141: 27000000 | AD141: 24200000 | AE141: 2021-03-26 | AF141: 2021-03-29 | AG141: 2021-12-28 | AH141: 270 | AI141: 0 | AJ141: 0 | AQ141: X | AS141: 0.8962962963
A142: 367 | B142: 2021 | C142: FDLE-CD-367-2021 | D142: https://community.secop.gov.co/Public/Tendering/OpportunityDetail/Index?noticeUID=CO1.NTC.2192013&isFromPublicArea=True&isModal=False | E142: Contratos de prestación de servicios profesionales y de apoyo a la gestión | F142: Contratación directa | G142: Prestación de servicios profesionales y de apoyo a la gestión, o para la ejecución de trabajos artísticos que sólo puedan encomendarse a determinadas personas naturales; | H142: COORDINA, LIDERA Y ASESORA LOS PLANES Y ESTRATEGIAS DE COMUNICACIÓN INTERNA Y EXTERNA PARA LA DIVULGACIÓN DE LOS PROGRAMAS, PROYECTOS Y ACTIVIDADES DE LA ALCALDÍA LOCAL. Se expide CDP con certificado de No existencia de personal 27586 del 18 de agosto de 2021, solicitud SIPSE 60994, memorando con solicitud 20216020021663 del 19 de agosto de 2021 y se recibe para trámite el 20 de agosto de 2021. SE EXPIDE CRP POR SOLICITUD CON RAD. N° 20216020021773 AGO.20.2021 SE RECIBE PARA TRAMITE EL 24 DE AGO.2021 VERIFICADO SIPSE. | I142: Inversión | J142: Un Nuevo Contrato Social y Ambiental para la Bogotá del Siglo XXI | K142: 57 | L142: Gestión Pública Local | M142: =IF(ISERROR(VLOOKUP(K142,Proposito_programa!$C$2:$E$59,3,FALSE))," ",VLOOKUP(K142,Proposito_programa!$C$2:$E$59,3,FALSE)) -> Propósito 5: Construir Bogotá - Región con gobierno abierto, transparente y ciudadanía consciente | N142: 1623 | O142: 0 | P142: 52332622 | Q142: MARTHA DAYANA GOMEZ VELASQUEZ | R142: Persona Natural | Y142: 27200000 | AA142: 0 | AB142: 0 | AC142: =+Y142+Z142+AB142 -> 27200000 | AD142: 21986667 | AE142: 2021-08-24 | AF142: 2021-08-24 | AG142: 2021-12-23 | AH142: 120 | AI142: 0 | AJ142: 0 | AQ142: X | AS142: =IF(ISERROR(AD142/AC142),"-",(AD142/AC142)) -> 0.8083333456
A143: 356 | B143: 2021 | C143: FDLE-CD-356-2021 | D143: https://community.secop.gov.co/Public/Tendering/ContractNoticePhases/View?PPI=CO1.PPI.14097288&isFromPublicArea=True&isModal=False | E143: Contratos de prestación de servicios profesionales y de apoyo a la gestión | F143: Contratación directa | G143: Prestación de servicios profesionales y de apoyo a la gestión, o para la ejecución de trabajos artísticos que sólo puedan encomendarse a determinadas personas naturales; | H143: LA PRESTACIÓN DE SERVICIOS PROFESIONALES, AL ÁREA DE GESTIÓN DE DESARROLLO LOCAL, REALIZANDO SEGUIMIENTO A LAS ACTIVIDADES RELACIONADAS CON LA SUPERVISIÓN Y/O LIQUIDACION DE CONTRATOS Y/O CONVENIOS QUE LE SEAN DESIGNADOS Y DEMÁS ACTIVIDADES QUE SE REQUIERAN. Se expide cdp con certificado de no existencia personal 26884 del 29 junio 2021, solicitud sipse 59816, memorando con solicitud 20216020018643 del 30 de junio y se recibe para trámite el 1 de julio de 2021. SE EXPIDE CRP POR SOLICITUD CON RAD N° 20216020019573 DE JULIO 13 2021. | I143: Inversión | J143: Un Nuevo Contrato Social y Ambiental para la Bogotá del Siglo XXI | K143: 57 | L143: Gestión Pública Local | M143: =IF(ISERROR(VLOOKUP(K143,Proposito_programa!$C$2:$E$59,3,FALSE))," ",VLOOKUP(K143,Proposito_programa!$C$2:$E$59,3,FALSE)) -> Propósito 5: Construir Bogotá - Región con gobierno abierto, transparente y ciudadanía consciente | N143: 1623 | O143: 0 | P143: 57441957 | Q143: ELIANA RODRIGUEZ GOMEZ | R143: Persona Natural | Y143: 25000000 | AA143: 1 | AB143: 3000000 | AC143: 28000000 | AD143: 23000000 | AE143: 2021-07-13 | AF143: 2021-07-13 | AG143: 2021-12-31 | AH143: 150 | AI143: 1 | AJ143: 18 | AK143: 1010174567 | AL143: ELIANA RODRIGUEZ GOMEZ | AM143: 2021-08-27 | AN143: 17666667 | AQ143: X | AS143: 0.8214285714
A144: 104 | B144: 2021 | C144: FDLE-CD-104-2021 | D144: https://community.secop.gov.co/Public/Tendering/OpportunityDetail/Index?noticeUID=CO1.NTC.1838365&isFromPublicArea=True&isModal=False | E144: Contratos de prestación de servicios profesionales y de apoyo a la gestión | F144: Contratación directa | G144: Prestación de servicios profesionales y de apoyo a la gestión, o para la ejecución de trabajos artísticos que sólo puedan encomendarse a determinadas personas naturales; | H144: APOYAR LAS INSPECCIONES DE POLICÍA CON EL INGRESO DE INFORMACIÓN, USO Y APROPIACIÓN DE LOS SISTEMAS DE INFORMACIÓN VIGENTES DISPUESTOS PARA LAS ACTUACIONES DE POLICÍA. Se expide CDP con certificado con certificado de No existencia de personal 23867 de fecha 29 de enero de 2021, solicitud Sipse 55031, memorando con solicitud 20216020002033 recibido para tramite de fecha Feb 03/2021. SE EXPIDE CRP POR SOLICITUD CON RAD. N° 20216020008693 DEL 12 MARZO-2021SE RECIBE PARA TRAMITE EL 16 DE MARZO REVISADO SECOP II Y SIPSE. | I144: Inversión | J144: Un Nuevo Contrato Social y Ambiental para la Bogotá del Siglo XXI | K144: 57 | L144: Gestión Pública Local | M144: =IF(ISERROR(VLOOKUP(K144,Proposito_programa!$C$2:$E$59,3,FALSE))," ",VLOOKUP(K144,Proposito_programa!$C$2:$E$59,3,FALSE)) -> Propósito 5: Construir Bogotá - Región con gobierno abierto, transparente y ciudadanía consciente | N144: 1624 | O144: 0 | P144: 1010232516 | Q144: DAVID STIVEN CASTRO MADRIGAL | R144: Persona Natural | Y144: 27000000 | AA144: 1 | AB144: 1500000 | AC144: 28500000 | AD144: 25500000 | AE144: 2021-03-15 | AF144: 2021-03-16 | AG144: 2021-12-31 | AH144: 270 | AI144: 1 | AJ144: 16 | AQ144: X | AS144: 0.8947368421
A145: 103 | B145: 2021 | C145: FDLE-CD-103-2021 | D145: https://community.secop.gov.co/Public/Tendering/OpportunityDetail/Index?noticeUID=CO1.NTC.1832957&isFromPublicArea=True&isModal=False | E145: Contratos de prestación de servicios profesionales y de apoyo a la gestión | F145: Contratación directa | G145: Prestación de servicios profesionales y de apoyo a la gestión, o para la ejecución de trabajos artísticos que sólo puedan encomendarse a determinadas personas naturales; | H145: APOYAR LAS INSPECCIONES DE POLICÍA CON EL INGRESO DE INFORMACIÓN, USO Y APROPIACIÓN DE LOS SISTEMAS DE INFORMACIÓN VIGENTES DISPUESTOS PARA LAS ACTUACIONES DE POLICÍA. Se expide CDP con certificado con certificado de No existencia de personal 23867 de fecha 29 de enero de 2021, solicitud Sipse 55031, memorando con solicitud 20216020001993 recibido para tramite de fecha Feb 03/2021. SE EXPIDE CRP POR SOLICITUD CON RAD. N° 20216020008433 DEL 10 MARZO-2021SE RECIBE PARA TRAMITE EL 12 DE MARZO REVISADO SECOP II Y SIPSE. | I145: Inversión | J145: Un Nuevo Contrato Social y Ambiental para la Bogotá del Siglo XXI | K145: 57 | L145: Gestión Pública Local | M145: =IF(ISERROR(VLOOKUP(K145,Proposito_programa!$C$2:$E$59,3,FALSE))," ",VLOOKUP(K145,Proposito_programa!$C$2:$E$59,3,FALSE)) -> Propósito 5: Construir Bogotá - Región con gobierno abierto, transparente y ciudadanía consciente | N145: 1624 | O145: 0 | P145: 79624606 | Q145: GIOVANNI ALEXIS GARZON TORRES | R145: Persona Natural | Y145: 27000000 | AA145: 1 | AB145: 1600000 | AC145: 28600000 | AD145: 25600000 | AE145: 2021-03-11 | AF145: 2021-03-15 | AG145: 2021-12-31 | AH145: 270 | AI145: 1 | AJ145: 17 | AQ145: X | AS145: 0.8951048951
A146: 399 | B146: 2021 | C146: FDLE-CMA-399-2021 | D146: https://community.secop.gov.co/Public/Tendering/OpportunityDetail/Index?noticeUID=CO1.NTC.2429324&isFromPublicArea=True&isModal=False | E146: Interventoría | F146: Concurso de méritos | G146: No aplica | H146: Realizar la interventoría técnica, jurídica, administrativa, financiera y ambiental al contrato que tiene por objeto: realizar a monto agotable el mantenimiento, sembrado de árboles, labores de jardinería y restauración ecológica en la localidad de Engativá. Se expide cdp con solicitud SIPSE 64743, memorando con solicitud 20216020032533 del 12 de noviembre de 2021 y se recibe para trámite el 16 de noviembre de 2021. SE EXPIDE CRP POR SOLICITUD CON RAD N° 20216020035153 DE DIC 23-2021 SE RECIBE PARA TRAMITE EL 23 DE DIC 2021. | I146: Inversión | J146: Un Nuevo Contrato Social y Ambiental para la Bogotá del Siglo XXI | K146: 33 | L146: Más árboles y más y mejor espacio público | M146: =IF(ISERROR(VLOOKUP(K146,Proposito_programa!$C$2:$E$59,3,FALSE))," ",VLOOKUP(K146,Proposito_programa!$C$2:$E$59,3,FALSE)) -> Propósito 2 : Cambiar Nuestros Hábitos de Vida para Reverdecer a Bogotá y Adaptarnos y Mitigar la Crisis Climática | N146: 1610 | O146: 1 | P146: 900070729 | Q146: CORPORACION METAMORFOSIS | R146: Persona Jurídica | Y146: 28714363 | AA146: 0 | AB146: 0 | AC146: 28714363 | AD146: 0 | AE146: 2021-12-23 | AH146: 210 | AI146: 0 | AJ146: 0 | AO146: X | AP146: X | AS146: 0
A147: 106 | B147: 2021 | C147: FDLE-CD-106-2021 | D147: https://community.secop.gov.co/Public/Tendering/OpportunityDetail/Index?noticeUID=CO1.NTC.1833317&isFromPublicArea=True&isModal=False | E147: Contratos de prestación de servicios profesionales y de apoyo a la gestión | F147: Contratación directa | G147: Prestación de servicios profesionales y de apoyo a la gestión, o para la ejecución de trabajos artísticos que sólo puedan encomendarse a determinadas personas naturales; | H147: APOYAR LAS INSPECCIONES DE POLICÍA CON EL INGRESO DE INFORMACIÓN, USO Y APROPIACIÓN DE LOS SISTEMAS DE INFORMACIÓN VIGENTES DISPUESTOS PARA LAS ACTUACIONES DE POLICÍA. Se expide CDP con certificado con certificado de No existencia de personal 23867 de fecha 29 de enero de 2021, solicitud Sipse 55031, memorando con solicitud 20216020002003 recibido para tramite de fecha Feb 03/2021. SE EXPIDE CRP POR SOLICITUD CON RAD. N° 20216020008343 DEL 10 MARZO-2021SE RECIBE PARA TRAMITE EL 11 DE MARZO REVISADO SECOP II Y SIPSE. | I147: Inversión | J147: Un Nuevo Contrato Social y Ambiental para la Bogotá del Siglo XXI | K147: 57 | L147: Gestión Pública Local | M147: =IF(ISERROR(VLOOKUP(K147,Proposito_programa!$C$2:$E$59,3,FALSE))," ",VLOOKUP(K147,Proposito_programa!$C$2:$E$59,3,FALSE)) -> Propósito 5: Construir Bogotá - Región con gobierno abierto, transparente y ciudadanía consciente | N147: 1624 | O147: 0 | P147: 1076818484 | Q147: SANDRA MILENA RUIZ PANESSO | R147: Persona Natural | Y147: 27000000 | AA147: 1 | AB147: 1900000 | AC147: 28900000 | AD147: 25900000 | AE147: 2021-03-10 | AF147: 2021-03-12 | AG147: 2021-12-31 | AH147: 270 | AI147: 1 | AJ147: 20 | AQ147: X | AS147: 0.8961937716
A148: 126 | B148: 2021 | C148: FDLE-CD-126-2021 | D148: https://community.secop.gov.co/Public/Tendering/OpportunityDetail/Index?noticeUID=CO1.NTC.1829671&isFromPublicArea=True&isModal=False | E148: Contratos de prestación de servicios profesionales y de apoyo a la gestión | F148: Contratación directa | G148: Prestación de servicios profesionales y de apoyo a la gestión, o para la ejecución de trabajos artísticos que sólo puedan encomendarse a determinadas personas naturales; | H148: APOYAR EN LAS TAREAS OPERATIVAS DE CARÁCTER ARCHIVÍSTICO DESARROLLADAS EN LA ALCALDÍA LOCAL PARA GARANTIZAR LA APLICACIÓN CORRECTA DE LOS PROCEDIMIENTOS TÉCNICOS. Se expide cdp con certificado de no existencia personal 24265 del 2 de febrero de 2021, solicitud sipse 54396, memorando con solicitud 20216020002433 y se expide en Febrero 8/2021. SE EXPIDE CRP POR SOLICITUD CON RAD. N° 20216020007493 DEL 04 MARZO-2021SE RECIBE PARA TRAMITE EL 10 DE MARZO REVISADO SECOP II Y SIPSE. | I148: Inversión | J148: Un Nuevo Contrato Social y Ambiental para la Bogotá del Siglo XXI | K148: 57 | L148: Gestión Pública Local | M148: =IF(ISERROR(VLOOKUP(K148,Proposito_programa!$C$2:$E$59,3,FALSE))," ",VLOOKUP(K148,Proposito_programa!$C$2:$E$59,3,FALSE)) -> Propósito 5: Construir Bogotá - Región con gobierno abierto, transparente y ciudadanía consciente | N148: 1623 | O148: 0 | P148: 1016035783 | Q148: ALDO JOSEPH MARTIN RAMOS | R148: Persona Natural | Y148: 27000000 | AA148: 1 | AB148: 1900000 | AC148: 28900000 | AD148: 25900000 | AE148: 2021-03-09 | AF148: 2021-03-12 | AG148: 2021-12-31 | AH148: 270 | AI148: 1 | AJ148: 20 | AQ148: X | AS148: 0.8961937716
A149: 312 | B149: 2021 | C149: FDLE-CD-312-2021 | D149: https://community.secop.gov.co/Public/Tendering/OpportunityDetail/Index?noticeUID=CO1.NTC.1924531&isFromPublicArea=True&isModal=False | E149: Contratos de prestación de servicios profesionales y de apoyo a la gestión | F149: Contratación directa | G149: Prestación de servicios profesionales y de apoyo a la gestión, o para la ejecución de trabajos artísticos que sólo puedan encomendarse a determinadas personas naturales; | H149: LA PRESTACIÓN DE SERVICIOS TECNICOS AL ÁREA DE GESTIÓN DE DESARROLLO LOCAL COMO OPERADOR DEL CONMUTADOR EN LA GESTIÓN DE LAS LABORES DE ATENCIÓN INTEGRAL, FILTRO Y DIRECCIONAMIENTO DE LAS SOLICITUDES DE LA CIUDADANÍA QUE ACUDE DE MANERA PERSONAL Y TELEFÓNICAMENTE A LAS INSTALACIONES DE LA ALCALDÍA LOCAL DE ENGATIVÁ, DE CONFORMIDAD CON LOS ESTUDIOS PREVIOS. Se expide cdp con certificado de no existencia personal 26133 del 6 de abril 2021, solicitud sipse 58127, memorando con solicitud 20216020012383 del 9 de abril de 2021 y se recibe para trámite el 12 de abril de 2021. 26133 del06 abril 2021 SE EXPIDE CRP POR SOLICITUD CON RAD.N° 20216020013133 DE ABR.2.2021 SE RECIBE PARA TRAMITE EL 22 DE ABRIL REVISADO SIPSE Y SECOP II | I149: Inversión | J149: Un Nuevo Contrato Social y Ambiental para la Bogotá del Siglo XXI | K149: 57 | L149: Gestión Pública Local | M149: =IF(ISERROR(VLOOKUP(K149,Proposito_programa!$C$2:$E$59,3,FALSE))," ",VLOOKUP(K149,Proposito_programa!$C$2:$E$59,3,FALSE)) -> Propósito 5: Construir Bogotá - Región con gobierno abierto, transparente y ciudadanía consciente | N149: 1623 | O149: 0 | P149: 1026259558 | Q149: NIDIA MILENA PEDRAZA GAONA | R149: Persona Natural | Y149: 24500000 | AA149: 1 | AB149: 4433333 | AC149: 28933333 | AD149: 25433333 | AE149: 2021-04-22 | AF149: 2021-04-23 | AG149: 2021-12-31 | AH149: 210 | AI149: 1 | AJ149: 39 | AQ149: X | AS149: 0.8790322567
A150: 245 | B150: 2021 | C150: FDLE-CD-245-2021 | D150: https://community.secop.gov.co/Public/Tendering/OpportunityDetail/Index?noticeUID=CO1.NTC.1833914&isFromPublicArea=True&isModal=False | E150: Contratos de prestación de servicios profesionales y de apoyo a la gestión | F150: Contratación directa | G150: Prestación de servicios profesionales y de apoyo a la gestión, o para la ejecución de trabajos artísticos que sólo puedan encomendarse a determinadas personas naturales; | H150: 4. Revitalización OBJETO: PRESTAR LOS SERVICIOS TÉCNICOS AL ÁREA DE PRESTAR LOS SERVICIOS TÉCNICOS AL ÁREA DE GESTIÓN DE DESARROLLO LOCAL, EN TEMAS RELACIONADOS CON REACTIVACIÓN ECONÓMICA, EMPRENDIMIENTO, TURISMO Y PATRIMONIO DE LA LOCALIDAD DE ENGATIVÁ. Se expide CDP con certificado de no existencia personal 24233 del 2 de febrero 2021, solicitud sipse 54484, memorando con solicitud 20216020002833 y se expide en Febrero 9/2021. SE EXPIDE CRP POR SOLICITUD CON RAD. N° 20216020008573 DEL 11 MARZO-2021SE RECIBE PARA TRAMITE EL 11 DE MARZO REVISADO SECOP II Y SIPSE. | I150: Inversión | J150: Un Nuevo Contrato Social y Ambiental para la Bogotá del Siglo XXI | K150: 6 | L150: Sistema Distrital del Cuidado | M150: =IF(ISERROR(VLOOKUP(K150,Proposito_programa!$C$2:$E$59,3,FALSE))," ",VLOOKUP(K150,Proposito_programa!$C$2:$E$59,3,FALSE)) -> Propósito 1: Hacer un nuevo contrato social para incrementar la inclusión social, productiva y política | N150: 1598 | O150: 0 | P150: 1019014673 | Q150: HECTOR ESNEYDER ENCISO FLOREZ | R150: Persona Natural | Y150: 27000000 | AA150: 1 | AB150: 2000000 | AC150: 29000000 | AD150: 26000000 | AE150: 2021-03-10 | AF150: 2021-03-11 | AG150: 2021-12-31 | AH150: 270 | AI150: 1 | AJ150: 21 | AQ150: X | AS150: 0.8965517241
A151: 168 | B151: 2021 | C151: FDLE-CD-168-2021 | D151: https://community.secop.gov.co/Public/Tendering/OpportunityDetail/Index?noticeUID=CO1.NTC.1804460&isFromPublicArea=True&isModal=False | E151: Contratos de prestación de servicios profesionales y de apoyo a la gestión | F151: Contratación directa | G151: Prestación de servicios profesionales y de apoyo a la gestión, o para la ejecución de trabajos artísticos que sólo puedan encomendarse a determinadas personas naturales; | H151: LA PRESTACIÓN DE SERVICIOS DE APOYO TÉCNICO AL ÁREA DE GESTIÓN DE DESARROLLO LOCAL, EN PLANEACIÓN, EN LAS ACTIVIDADES ADMINISTRATIVAS Y OPERATIVAS QUE SE REQUIERAN. Se expide CDP con certificado de no existencia personal 24254 del 2 de febrero 2021, solicitud sipse 54426, memorando con solicitud 20216020002393 y se expide en Febrero 5/2021. SE EXPIDE CRP POR SOLICITUD CON RAD. N° 20216020008193 09 DE MARZO 2021 SE VERIFICA SECOP II Y SIPSE. | I151: Inversión | J151: Un Nuevo Contrato Social y Ambiental para la Bogotá del Siglo XXI | K151: 57 | L151: Gestión Pública Local | M151: =IF(ISERROR(VLOOKUP(K151,Proposito_programa!$C$2:$E$59,3,FALSE))," ",VLOOKUP(K151,Proposito_programa!$C$2:$E$59,3,FALSE)) -> Propósito 5: Construir Bogotá - Región con gobierno abierto, transparente y ciudadanía consciente | N151: 1623 | O151: 0 | P151: 1233492814 | Q151: VANESSA ESTEFANY CERVANTES DE LA HOZ | R151: Persona Natural | Y151: 27000000 | AA151: 1 | AB151: 2100000 | AC151: 29100000 | AD151: 26100000 | AE151: 2021-03-09 | AF151: 2021-03-10 | AG151: 2021-12-31 | AH151: 270 | AI151: 1 | AJ151: 22 | AQ151: X | AS151: 0.8969072165
A152: 182 | B152: 2021 | C152: FDLE-CD-182-2021 | D152: https://community.secop.gov.co/Public/Tendering/OpportunityDetail/Index?noticeUID=CO1.NTC.1822687&isFromPublicArea=True&isModal=False | E152: Contratos de prestación de servicios profesionales y de apoyo a la gestión | F152: Contratación directa | G152: Prestación de servicios profesionales y de apoyo a la gestión, o para la ejecución de trabajos artísticos que sólo puedan encomendarse a determinadas personas naturales; | H152: PRESTAR LOS SERVICIOS TÉCNICOS AL ÁREA DE GESTIÓN POLICIVA JURÍDICA Y/O ÁREA DE GESTIÓN DE DESARROLLO LOCAL, EN TEMAS DE SEGURIDAD, PREVENCIÓN Y CONVIVENCIA CIUDADANA EN LA LOCALIDAD, DE CONFORMIDAD CON EL MARCO NORMATIVO APLICABLE PARA LA MATERIA. Se expide CDP con certificado de no existencia personal 24135 del 1o de febrero de 2021, solicitud sipse 54659, memorando con solicitud 20216020003523 del 11 de febrero de 2021 y se recibe para trámite el 15 de febrero de 2021. SE EXPIDE CRP POR SOLICITUD CON RAD. N° 20216020007563 DEL 04 MARZO-2021SE RECIBE PARA TRAMITE EL 09 DE MARZO REVISADO SECOP II Y SIPSE. | I152: Inversión | J152: Un Nuevo Contrato Social y Ambiental para la Bogotá del Siglo XXI | K152: 45 | L152: Espacio público más seguro y construido colectivamente | M152: =IF(ISERROR(VLOOKUP(K152,Proposito_programa!$C$2:$E$59,3,FALSE))," ",VLOOKUP(K152,Proposito_programa!$C$2:$E$59,3,FALSE)) -> Propósito 3: Inspirar confianza y legitimidad para vivir sin miedo y ser epicentro de cultura ciudadana, paz y reconciliación | N152: 1618 | O152: 0 | P152: 1020743284 | Q152: MARIA ALBENIS ROJAS CASTILLO | R152: Persona Natural | Y152: 27000000 | AA152: 1 | AB152: 2100000 | AC152: 29100000 | AD152: 26100000 | AE152: 2021-03-08 | AF152: 2021-03-10 | AG152: 2021-12-31 | AH152: 270 | AI152: 1 | AJ152: 22 | AQ152: X | AS152: 0.8969072165
A153: 230 | B153: 2021 | C153: FDLE-CD-230-2021 | D153: https://community.secop.gov.co/Public/Tendering/OpportunityDetail/Index?noticeUID=CO1.NTC.1829611&isFromPublicArea=True&isModal=False | E153: Contratos de prestación de servicios profesionales y de apoyo a la gestión | F153: Contratación directa | G153: Prestación de servicios profesionales y de apoyo a la gestión, o para la ejecución de trabajos artísticos que sólo puedan encomendarse a determinadas personas naturales; | H153: LA PRESTACIÓN DE SERVICIOS DE APOYO TÉCNICO AL ÁREA DE GESTIÓN DE DESARROLLO LOCAL, EN CONTABILIDAD, EN LAS ACTIVIDADES QUE ALLÍ SE SE GENEREN Y LE SEAN DESIGNADAS. Se expide cdp con certificado de no existencia personal 23929 del 29 de enero de 2021, solicitud sipse 54406, memorando con solicitud 20216020003553 con fecha del 11 de febrero de 2021 y se recibe para trámite el 15 de febrero de 2021. SE EXPIDE CRP POR SOLICITUD CON RAD. N° 20216020008293 DEL 09 MARZO-2021SE RECIBE PARA TRAMITE EL 09 DE MARZO REVISADO SECOP II Y SIPSE. | I153: Inversión | J153: Un Nuevo Contrato Social y Ambiental para la Bogotá del Siglo XXI | K153: 57 | L153: Gestión Pública Local | M153: =IF(ISERROR(VLOOKUP(K153,Proposito_programa!$C$2:$E$59,3,FALSE))," ",VLOOKUP(K153,Proposito_programa!$C$2:$E$59,3,FALSE)) -> Propósito 5: Construir Bogotá - Región con gobierno abierto, transparente y ciudadanía consciente | N153: 1623 | O153: 0 | P153: 39056620 | Q153: JOHANA PAOLA PABON MIRANDA | R153: Persona Natural | Y153: 27000000 | AA153: 1 | AB153: 2200000 | AC153: 29200000 | AD153: 26200000 | AE153: 2021-03-08 | AF153: 2021-03-09 | AG153: 2021-12-31 | AH153: 270 | AI153: 1 | AJ153: 23 | AQ153: X | AS153: 0.897260274
A154: 167 | B154: 2021 | C154: FDLE-CD-167- 2021 | D154: https://community.secop.gov.co/Public/Tendering/OpportunityDetail/Index?noticeUID=CO1.NTC.1807230&isFromPublicArea=True&isModal=False | E154: Contratos de prestación de servicios profesionales y de apoyo a la gestión | F154: Contratación directa | G154: Prestación de servicios profesionales y de apoyo a la gestión, o para la ejecución de trabajos artísticos que sólo puedan encomendarse a determinadas personas naturales; | H154: LA PRESTACIÓN DE SERVICIOS TÉCNICOS DE APOYO AL ÁREA DE GESTIÓN DE DESARROLLO LOCAL EN LOS TRÁMITES ADMINISTRATIVOS DE LOS PROYECTOS RELACIONADOS CON MALLA VIAL, ESPACIO PÚBLICO, PARQUES Y/O INFRAESTRUCTURA. Se expide cdp con certificado de no existencia personal 23870 del 28 de enero 2021, solicitud sipse 54611, memorando con solicitud 20216020003293 del 10 de febrero de 2021, y se recibe para trámite el 11de febrero de 2021. SE EXPIDE CRP POR SOLICITUD CON RAD N° 20216020006723 01 DE MARZO 2021 SE RECIBE PARA TRAMITE EL 08 DE MARZO 2021 | I154: Inversión | J154: Un Nuevo Contrato Social y Ambiental para la Bogotá del Siglo XXI | K154: 49 | L154: Movilidad segura, sostenible y accesible | M154: =IF(ISERROR(VLOOKUP(K154,Proposito_programa!$C$2:$E$59,3,FALSE))," ",VLOOKUP(K154,Proposito_programa!$C$2:$E$59,3,FALSE)) -> Propósito 4: Hacer de Bogotá Región un modelo de movilidad multimodal, incluyente y sostenible | N154: 1621 | O154: 0 | P154: 1077976348 | Q154: EDWIN STEVEN GONZALEZ RAMOS | R154: Persona Natural | Y154: 27000000 | AA154: 1 | AB154: 2300000 | AC154: 29300000 | AD154: 26300000 | AE154: 2021-03-04 | AF154: 2021-03-08 | AG154: 2021-12-31 | AH154: 270 | AI154: 1 | AJ154: 24 | AQ154: X | AS154: 0.8976109215
A155: 54 | B155: 2021 | C155: FDLE-CD-54-2021 | D155: https://community.secop.gov.co/Public/Tendering/OpportunityDetail/Index?noticeUID=CO1.NTC.1816390&isFromPublicArea=True&isModal=False | E155: Contratos de prestación de servicios profesionales y de apoyo a la gestión | F155: Contratación directa | G155: Prestación de servicios profesionales y de apoyo a la gestión, o para la ejecución de trabajos artísticos que sólo puedan encomendarse a determinadas personas naturales; | H155: APOYAR LAS INSPECCIONES DE POLICÍA CON EL INGRESO DE INFORMACIÓN, USO Y APROPIACIÓN DE LOS SISTEMAS DE INFORMACIÓN VIGENTES DISPUESTOS PARA LAS ACTUACIONES DE POLICÍA. Se expide CDP con certificado de No existencia de personal 23867 del 28 de enero de 2021, solicitud SIPSE 55031, memorando 20216020001973 recibido para tramite de fecha Feb 03/2021. SE EXPIDE CRP POR SOLICITUD CON RADICADO N° 20216020007193 03.MAR.2021 SE RECIBE PARA TRAMITE EL 05 DE MARZO 2021. | I155: Inversión | J155: Un Nuevo Contrato Social y Ambiental para la Bogotá del Siglo XXI | K155: 57 | L155: Gestión Pública Local | M155: =IF(ISERROR(VLOOKUP(K155,Proposito_programa!$C$2:$E$59,3,FALSE))," ",VLOOKUP(K155,Proposito_programa!$C$2:$E$59,3,FALSE)) -> Propósito 5: Construir Bogotá - Región con gobierno abierto, transparente y ciudadanía consciente | N155: 1624 | O155: 0 | P155: 1014270865 | Q155: BRAYAN EDUARDO RAMIREZ CASTILLO | R155: Persona Natural | Y155: 27000000 | AA155: 1 | AB155: 2600000 | AC155: 29600000 | AD155: 26600000 | AE155: 2021-03-05 | AF155: 2021-03-05 | AG155: 2021-12-31 | AH155: 270 | AI155: 1 | AJ155: 27 | AQ155: X | AS155: 0.8986486486
A156: 125 | B156: 2021 | C156: FDLE-CD-125-2021 | D156: https://community.secop.gov.co/Public/Tendering/OpportunityDetail/Index?noticeUID=CO1.NTC.1815967&isFromPublicArea=True&isModal=False | E156: Contratos de prestación de servicios profesionales y de apoyo a la gestión | F156: Contratación directa | G156: Prestación de servicios profesionales y de apoyo a la gestión, o para la ejecución de trabajos artísticos que sólo puedan encomendarse a determinadas personas naturales; | H156: LA PRESTACIÓN DE SERVICIOS DE APOYO TÉCNICO AL ÁREA DE GESTIÓN DE DESARROLLO LOCAL, EN EL ALMACÉN, EN LAS LABORES ADMINISTRATIVAS Y OPERATIVAS QUE ALLÍ SE REQUIERAN. Se expide cdp con certificado de no existencia personal 24263 del 2 de febrero de 2021, solicitud de sipse 54393, memorando con solicitud 20216020002813 del 5 de febrero de 2021, y se recibe para trámite el 9 de febrero de 2021. SE EXPIDE CRP POR SOLICITUD CON RADICADO N° 20216020007093 MAR.03.2021 SE RECIBE PARA TRAMITE EL 04 DE MARZO 2021. | I156: Inversión | J156: Un Nuevo Contrato Social y Ambiental para la Bogotá del Siglo XXI | K156: 57 | L156: Gestión Pública Local | M156: =IF(ISERROR(VLOOKUP(K156,Proposito_programa!$C$2:$E$59,3,FALSE))," ",VLOOKUP(K156,Proposito_programa!$C$2:$E$59,3,FALSE)) -> Propósito 5: Construir Bogotá - Región con gobierno abierto, transparente y ciudadanía consciente | N156: 1623 | O156: 0 | P156: 79800142 | Q156: JUAN CARLOS CALDERON PATARROYO | R156: Persona Natural | Y156: 27000000 | AA156: 1 | AB156: 2700000 | AC156: 29700000 | AD156: 26700000 | AE156: 2021-03-03 | AF156: 2021-03-04 | AG156: 2021-12-31 | AH156: 270 | AI156: 1 | AJ156: 28 | AQ156: X | AS156: 0.898989899
A157: 66 | B157: 2021 | C157: FDLE-CD-66-2021 | D157: https://community.secop.gov.co/Public/Tendering/OpportunityDetail/Index?noticeUID=CO1.NTC.1801474&isFromPublicArea=True&isModal=False | E157: Contratos de prestación de servicios profesionales y de apoyo a la gestión | F157: Contratación directa | G157: Prestación de servicios profesionales y de apoyo a la gestión, o para la ejecución de trabajos artísticos que sólo puedan encomendarse a determinadas personas naturales; | H157: LA PRESTACIÓN DE SERVICIOS DE APOYO TÉCNICO AL ÁREA DE GESTIÓN DE DESARROLLO LOCAL, EN EL ALMACÉN, EN LAS LABORES ADMINISTRATIVAS Y OPERATIVAS QUE ALLÍ SE REQUIERAN. Se expide cdp con certificado de no existencia personal 24263 del 2 de febrero de 2021, solicitud de sipse 54393, memorando con solicitud 20216020002803 del 5 de febrero de 2021, y se recibe para trámite el 9 de febrero de 2021. SE EXPIDE CRP POR SOLICITUD CON RADICADO N° 20216020006463 FEB. 26 2021SE RECIBE PARA TRAMITE EL 02-03-2021 REVISADO SECOP II PENDIENTE SIPSE. | I157: Inversión | J157: Un Nuevo Contrato Social y Ambiental para la Bogotá del Siglo XXI | K157: 57 | L157: Gestión Pública Local | M157: =IF(ISERROR(VLOOKUP(K157,Proposito_programa!$C$2:$E$59,3,FALSE))," ",VLOOKUP(K157,Proposito_programa!$C$2:$E$59,3,FALSE)) -> Propósito 5: Construir Bogotá - Región con gobierno abierto, transparente y ciudadanía consciente | N157: 1623 | O157: 0 | P157: 80865061 | Q157: JHON JAIRO OSPINA HENAO | R157: Persona Natural | Y157: 27000000 | AA157: 1 | AB157: 2800000 | AC157: 29800000 | AD157: 26800000 | AE157: 2021-03-01 | AF157: 2021-03-03 | AG157: 2021-12-31 | AH157: 270 | AI157: 1 | AJ157: 29 | AQ157: X | AS157: 0.8993288591
A158: 114 | B158: 2021 | C158: FDLE-CD-114-2021 | D158: https://community.secop.gov.co/Public/Tendering/OpportunityDetail/Index?noticeUID=CO1.NTC.1800490&isFromPublicArea=True&isModal=False | E158: Contratos de prestación de servicios profesionales y de apoyo a la gestión | F158: Contratación directa | G158: Prestación de servicios profesionales y de apoyo a la gestión, o para la ejecución de trabajos artísticos que sólo puedan encomendarse a determinadas personas naturales; | H158: APOYAR Y DAR SOPORTE TÉCNICO AL ADMINISTRADOR Y USUARIO FINAL DE LA RED DE SISTEMAS Y TECNOLOGÍA E INFORMACIÓN DE LA ALCALDÍA LOCAL. Se expide cdp con certificado de no existencia personal 24247 del 2 febrero 2021, solicitud sipse 54449, memorando con solicitud 20216020002753 y se expide en Febrero 9/2021. SE EXPIDE CRP POR SOLICITUD CON RADICADO N° 20216020006933 MAR-02-2021 SE RECIBE PARA TRAMITE EL 03 DE MARZO REVISADO SECOP II PENDIENTE SIPS | I158: Inversión | J158: Un Nuevo Contrato Social y Ambiental para la Bogotá del Siglo XXI | K158: 57 | L158: Gestión Pública Local | M158: =IF(ISERROR(VLOOKUP(K158,Proposito_programa!$C$2:$E$59,3,FALSE))," ",VLOOKUP(K158,Proposito_programa!$C$2:$E$59,3,FALSE)) -> Propósito 5: Construir Bogotá - Región con gobierno abierto, transparente y ciudadanía consciente | N158: 1623 | O158: 0 | P158: 1024600564 | Q158: YAMID FARID RODRIGUEZ CERINZA | R158: Persona Natural | Y158: 27000000 | AA158: 1 | AB158: 2800000 | AC158: 29800000 | AD158: 26800000 | AE158: 2021-03-01 | AF158: 2021-03-03 | AG158: 2021-12-31 | AH158: 270 | AI158: 1 | AJ158: 29 | AQ158: X | AS158: 0.8993288591
A159: 239 | B159: 2021 | C159: FDLE-CD-239-2021 | D159: https://community.secop.gov.co/Public/Tendering/OpportunityDetail/Index?noticeUID=CO1.NTC.1832192&isFromPublicArea=True&isModal=False | E159: Contratos de prestación de servicios profesionales y de apoyo a la gestión | F159: Contratación directa | G159: Prestación de servicios profesionales y de apoyo a la gestión, o para la ejecución de trabajos artísticos que sólo puedan encomendarse a determinadas personas naturales; | H159: EL CONTRATISTA SE OBLIGA PARA CON EL FONDO DE DESARROLLO LOCAL DE ENGATIVA A LA PRESTACIÓN DE SERVICIOS TÉCNICOS AL ÁREA DE GESTIÓN DE DESARROLLO LOCAL, APOYANDO LA OPERACIÓN, ADMINISTRACIÓN Y GESTIÓN DEL PUNTO VIVE DIGITAL. Se expide cdp con certificado de no existencia personal 25722 del 03 de marzo de 2021, solicitud sipse 54452, memorando con solicitud 20216020007423 del 4 de marzo de 2021 y recibe para trámite el 4 de marzo de 2021. SE EXPIDE CRP POR SOLICITUD CON RAD. N° 20216020009423 DEL 16 MARZO-2021SE RECIBE PARA TRAMITE EL 17 DE MARZO REVISADO SECOP II Y SIPSE. | I159: Inversión | J159: Un Nuevo Contrato Social y Ambiental para la Bogotá del Siglo XXI | K159: 57 | L159: Gestión Pública Local | M159: =IF(ISERROR(VLOOKUP(K159,Proposito_programa!$C$2:$E$59,3,FALSE))," ",VLOOKUP(K159,Proposito_programa!$C$2:$E$59,3,FALSE)) -> Propósito 5: Construir Bogotá - Región con gobierno abierto, transparente y ciudadanía consciente | N159: 1623 | O159: 0 | P159: 80008614 | Q159: MANUEL ALEJANDRO RIVERA CARDENAS | R159: Persona Natural | Y159: 27000000 | AA159: 1 | AB159: 3300000 | AC159: 30300000 | AD159: 25300000 | AE159: 2021-03-16 | AF159: 2021-03-18 | AG159: 2022-01-20 | AH159: 270 | AI159: 1 | AJ159: 33 | AQ159: X | AS159: 0.8349834983
A160: 68 | B160: 2021 | C160: FDLE-CD-68-2021 | D160: https://community.secop.gov.co/Public/Tendering/OpportunityDetail/Index?noticeUID=CO1.NTC.1792502&isFromPublicArea=True&isModal=False | E160: Contratos de prestación de servicios profesionales y de apoyo a la gestión | F160: Contratación directa | G160: Prestación de servicios profesionales y de apoyo a la gestión, o para la ejecución de trabajos artísticos que sólo puedan encomendarse a determinadas personas naturales; | H160: APOYAR EN LAS TAREAS OPERATIVAS DE CARÁCTER ARCHIVÍSTICO DESARROLLADAS EN LA ALCALDÍA LOCAL PARA GARANTIZAR LA APLICACIÓN CORRECTA DE LOS PROCEDIMIENTOS TÉCNICOS. Se expide cdp con certificado de no existencia personal 24265 del 2 de febrero de 2021, solicitud sipse 54396, memorando con solicitud 20216020002443 se expide en Febrero 8/2021. SE EXPIDE CRP POR SOLICITUD CON RADICADO N° 20216020005733 FEB. 24 2021 SE RECIBE PARA TRAMITE EL 24 DE FEB-2021 REVISADO SECOP II Y SIPSE. | I160: Inversión | J160: Un Nuevo Contrato Social y Ambiental para la Bogotá del Siglo XXI | K160: 57 | L160: Gestión Pública Local | M160: =IF(ISERROR(VLOOKUP(K160,Proposito_programa!$C$2:$E$59,3,FALSE))," ",VLOOKUP(K160,Proposito_programa!$C$2:$E$59,3,FALSE)) -> Propósito 5: Construir Bogotá - Región con gobierno abierto, transparente y ciudadanía consciente | N160: 1623 | O160: 0 | P160: 1015413788 | Q160: LEONARD YESID GARCIA ROJAS | R160: Persona Natural | Y160: 27000000 | AA160: 1 | AB160: 3600000 | AC160: 30600000 | AD160: 27600000 | AE160: 2021-02-24 | AF160: 2021-02-25 | AG160: 2021-12-31 | AH160: 270 | AI160: 1 | AJ160: 37 | AQ160: X | AS160: 0.9019607843
A161: 39 | B161: 2021 | C161: FDLE-CD-39-2021 | D161: https://community.secop.gov.co/Public/Tendering/OpportunityDetail/Index?noticeUID=CO1.NTC.1792691&isFromPublicArea=True&isModal=False | E161: Contratos de prestación de servicios profesionales y de apoyo a la gestión | F161: Contratación directa | G161: Prestación de servicios profesionales y de apoyo a la gestión, o para la ejecución de trabajos artísticos que sólo puedan encomendarse a determinadas personas naturales; | H161: APOYAR EN LAS TAREAS OPERATIVAS DE CARÁCTER ARCHIVÍSTICO DESARROLLADAS EN LA ALCALDÍA LOCAL PARA GARANTIZAR LA APLICACIÓN CORRECTA DE LOS PROCEDIMIENTOS TÉCNICOS. Se expide cdp con certificado de no existencia personal 24265 del 2 de febrero de 2021, solicitud sipse 54396, memorando con solicitud 20216020002453 se expide en Febrero 8/2021. | I161: Inversión | J161: Un Nuevo Contrato Social y Ambiental para la Bogotá del Siglo XXI | K161: 57 | L161: Gestión Pública Local | M161: =IF(ISERROR(VLOOKUP(K161,Proposito_programa!$C$2:$E$59,3,FALSE))," ",VLOOKUP(K161,Proposito_programa!$C$2:$E$59,3,FALSE)) -> Propósito 5: Construir Bogotá - Región con gobierno abierto, transparente y ciudadanía consciente | N161: 1623 | O161: 0 | P161: 39812835 | Q161: LUDERLY YINETH DIAZ CRUZ | R161: Persona Natural | Y161: 27000000 | AA161: 1 | AB161: 3700000 | AC161: 30700000 | AD161: 27700000 | AE161: 2021-02-23 | AF161: 2021-02-24 | AG161: 2021-12-31 | AH161: 270 | AI161: 1 | AJ161: 38 | AQ161: X | AS161: 0.9022801303
A162: 59 | B162: 2021 | C162: FDLE-CD-59-2021 | D162: https://community.secop.gov.co/Public/Tendering/OpportunityDetail/Index?noticeUID=CO1.NTC.1791600&isFromPublicArea=True&isModal=False | E162: Contratos de prestación de servicios profesionales y de apoyo a la gestión | F162: Contratación directa | G162: Prestación de servicios profesionales y de apoyo a la gestión, o para la ejecución de trabajos artísticos que sólo puedan encomendarse a determinadas personas naturales; | H162: APOYAR LAS INSPECCIONES DE POLICÍA CON EL INGRESO DE INFORMACIÓN, USO Y APROPIACIÓN DE LOS SISTEMAS DE INFORMACIÓN VIGENTES DISPUESTOS PARA LAS ACTUACIONES DE POLICÍA. Se expide CDP con certificado con certificado de No existencia de personal 23867 de fecha 29 de enero de 2021, solicitud Sipse 55031, memorando con solicitud 20216020002023 recibido para tramite de fecha Feb 03/2021. | I162: Inversión | J162: Un Nuevo Contrato Social y Ambiental para la Bogotá del Siglo XXI | K162: 57 | L162: Gestión Pública Local | M162: =IF(ISERROR(VLOOKUP(K162,Proposito_programa!$C$2:$E$59,3,FALSE))," ",VLOOKUP(K162,Proposito_programa!$C$2:$E$59,3,FALSE)) -> Propósito 5: Construir Bogotá - Región con gobierno abierto, transparente y ciudadanía consciente | N162: 1624 | O162: 0 | P162: 52331883 | Q162: ANDREA PATRICIA CAMARGO CARDONA | R162: Persona Natural | Y162: 27000000 | AA162: 1 | AB162: 3700000 | AC162: 30700000 | AD162: 27700000 | AE162: 2021-02-23 | AF162: 2021-02-24 | AG162: 2021-12-31 | AH162: 270 | AI162: 1 | AJ162: 38 | AQ162: X | AS162: 0.9022801303
A163: 55 | B163: 2021 | C163: FDLE-CD-55-2021 | D163: https://community.secop.gov.co/Public/Tendering/OpportunityDetail/Index?noticeUID=CO1.NTC.1783690&isFromPublicArea=True&isModal=False | E163: Contratos de prestación de servicios profesionales y de apoyo a la gestión | F163: Contratación directa | G163: Prestación de servicios profesionales y de apoyo a la gestión, o para la ejecución de trabajos artísticos que sólo puedan encomendarse a determinadas personas naturales; | H163: LA PRESTACIÓN DE SERVICIOS TÉCNICOS DE APOYO AL ÁREA DE GESTIÓN DE DESARROLLO LOCAL, EN LAS ACTIVIDADES ADMINISTRATIVAS DE LOS PROYECTOS RELACIONADOS CON EL SECTOR DE INTEGRACIÓN SOCIAL QUE LE SEAN ASIGNADOS. Se expide CDP con certificado de no existencia personal 23815 del 28 de enero 2021, solicitud sipse 55239, memorando con solicitud 20216020001133 y se expide en Febrero 2/2021. SE EXPIDE CRP POR SOLICITUD CON RADICADO N° 20216020004683 FEB. 19 2021 SE RECIBE PARA TRAIMITE EL 22 DE FEB-2021 REVISADO SECOP II Y SIPSE. | I163: Inversión | J163: Un Nuevo Contrato Social y Ambiental para la Bogotá del Siglo XXI | K163: 1 | L163: Subsidios y transferencias para la equidad | M163: =IF(ISERROR(VLOOKUP(K163,Proposito_programa!$C$2:$E$59,3,FALSE))," ",VLOOKUP(K163,Proposito_programa!$C$2:$E$59,3,FALSE)) -> Propósito 1: Hacer un nuevo contrato social para incrementar la inclusión social, productiva y política | N163: 1584 | O163: 0 | P163: 1019066652 | Q163: SINGRIDT JULIETTE RODRIGUEZ GONZALEZ | R163: Persona Natural | Y163: 27000000 | AA163: 1 | AB163: 3800000 | AC163: 30800000 | AD163: 27800000 | AE163: 2021-02-22 | AF163: 2021-02-23 | AG163: 2021-12-31 | AH163: 270 | AI163: 1 | AJ163: 39 | AQ163: X | AS163: 0.9025974026
A164: 178 | B164: 2021 | C164: FDLE-CD-178-2021 | D164: https://community.secop.gov.co/Public/Tendering/OpportunityDetail/Index?noticeUID=CO1.NTC.1815648&isFromPublicArea=True&isModal=False | E164: Contratos de prestación de servicios profesionales y de apoyo a la gestión | F164: Contratación directa | G164: Prestación de servicios profesionales y de apoyo a la gestión, o para la ejecución de trabajos artísticos que sólo puedan encomendarse a determinadas personas naturales; | H164: LA PRESTACIÓN DE SERVICIOS DE APOYO TÉCNICO AL ÁREA DE GESTIÓN DE DESARROLLO LOCAL, EN CONTRATACIÓN, EN LOS TRÁMITES ADMINISTRATIVOS QUE SE GENERAN EN EL FONDO DE DESARROLLO LOCAL DE ENGATIVÁ. Se expide cdp con certificado de no existencia personal 23918 del 29 de enero 2021, solicitud sipse 54415, memorando con solicitud 20216020002583 y se expide en Febrero/2021. SE EXPIDE CRP POR SOLICITUD CON RADICADO N° 20216020006993 MAR-02-2021 SE RECIBE PARA TRAMITE EL 03 DE MARZO REVISADO SECOP II PENDIENTE SIPS | I164: Inversión | J164: Un Nuevo Contrato Social y Ambiental para la Bogotá del Siglo XXI | K164: 57 | L164: Gestión Pública Local | M164: =IF(ISERROR(VLOOKUP(K164,Proposito_programa!$C$2:$E$59,3,FALSE))," ",VLOOKUP(K164,Proposito_programa!$C$2:$E$59,3,FALSE)) -> Propósito 5: Construir Bogotá - Región con gobierno abierto, transparente y ciudadanía consciente | N164: 1623 | O164: 0 | P164: 1019047073 | Q164: CLAUDIA JANETH ALONSO MENDEZ | R164: Persona Natural | Y164: 27000000 | AA164: 1 | AB164: 3900000 | AC164: 30900000 | AD164: 26700000 | AE164: 2021-03-03 | AF164: 2021-03-04 | AG164: 2022-01-12 | AH164: 270 | AI164: 1 | AJ164: 39 | AQ164: X | AS164: 0.8640776699
A165: 179 | B165: 2021 | C165: FDLE-CD-179-2021 | D165: https://community.secop.gov.co/Public/Tendering/OpportunityDetail/Index?noticeUID=CO1.NTC.1815764&isFromPublicArea=True&isModal=False | E165: Contratos de prestación de servicios profesionales y de apoyo a la gestión | F165: Contratación directa | G165: Prestación de servicios profesionales y de apoyo a la gestión, o para la ejecución de trabajos artísticos que sólo puedan encomendarse a determinadas personas naturales; | H165: LA PRESTACIÓN DE SERVICIOS DE APOYO TÉCNICO AL ÁREA DE GESTIÓN DE DESARROLLO LOCAL, EN CONTRATACIÓN, EN LOS TRÁMITES ADMINISTRATIVOS QUE SE GENERAN EN EL FONDO DE DESARROLLO LOCAL DE ENGATIVÁ. Se expide cdp con certificado de no existencia personal 23918 del 29 de enero 2021, solicitud sipse 54415, memorando con solicitud 20216020002563 y se expide en Febrero 8/2021. SE EXPIDE CRP POR SOLICITUD CON RADICADO N° 20216020006833 MAR-02-2021 SE RECIBE PARA TRAMITE EL 03 DE MARZO REVISADO SECOP II PENDIENTE SIPS | I165: Inversión | J165: Un Nuevo Contrato Social y Ambiental para la Bogotá del Siglo XXI | K165: 57 | L165: Gestión Pública Local | M165: =IF(ISERROR(VLOOKUP(K165,Proposito_programa!$C$2:$E$59,3,FALSE))," ",VLOOKUP(K165,Proposito_programa!$C$2:$E$59,3,FALSE)) -> Propósito 5: Construir Bogotá - Región con gobierno abierto, transparente y ciudadanía consciente | N165: 1623 | O165: 0 | P165: 80875088 | Q165: IVAN CAMILO RODRIGUEZ WILCHES | R165: Persona Natural | Y165: 27000000 | AA165: 1 | AB165: 3900000 | AC165: 30900000 | AD165: 26700000 | AE165: 2021-03-03 | AF165: 2021-03-04 | AG165: 2022-01-12 | AH165: 270 | AI165: 1 | AJ165: 39 | AQ165: X | AS165: 0.8640776699
A166: 174 | B166: 2021 | C166: FDLE-CD-174-2021 | D166: https://community.secop.gov.co/Public/Tendering/OpportunityDetail/Index?noticeUID=CO1.NTC.1810180&isFromPublicArea=True&isModal=False | E166: Contratos de prestación de servicios profesionales y de apoyo a la gestión | F166: Contratación directa | G166: Prestación de servicios profesionales y de apoyo a la gestión, o para la ejecución de trabajos artísticos que sólo puedan encomendarse a determinadas personas naturales; | H166: LA PRESTACIÓN DE SERVICIOS TÉCNICOS AL DESPACHO DE LA ALCALDE(SA) LOCAL EN LAS ACTIVIDADES ADMINISTRATIVAS QUE SE REQUIERAN. Se expiden CDP con certificado de No existencia de personal 23926 de fecha 29 de enero de 2021, solicitud SIPSE 54386, memorando con solicitud 20216020002193 recibido para tramite de fecha Feb 08/2021. SE EXPIDE CRP POR SOLICITUD CON RADICADO N° 20216020006653 MAR.01.2021 SE RECIBE PARA TRAMITE VERIFICADO SECOPII. | I166: Inversión | J166: Un Nuevo Contrato Social y Ambiental para la Bogotá del Siglo XXI | K166: 57 | L166: Gestión Pública Local | M166: =IF(ISERROR(VLOOKUP(K166,Proposito_programa!$C$2:$E$59,3,FALSE))," ",VLOOKUP(K166,Proposito_programa!$C$2:$E$59,3,FALSE)) -> Propósito 5: Construir Bogotá - Región con gobierno abierto, transparente y ciudadanía consciente | N166: 1623 | O166: 0 | P166: 1022364982 | Q166: ANGIE PAOLA MONTENEGRO JIMENEZ | R166: Persona Natural | Y166: 27000000 | AA166: 2 | AB166: 4100000 | AC166: 31100000 | AD166: 27000000 | AE166: 2021-03-01 | AF166: 2021-03-01 | AG166: 2022-01-12 | AH166: 272 | AI166: 2 | AJ166: 31 | AK166: 1077972988 | AL166: ANGIE PAOLA MONTENEGRO JIMENEZ | AM166: 2021-09-01 | AN166: 9000000 | AQ166: X | AS166: 0.8681672026
A167: 238 | B167: 2021 | C167: FDLE-CD-238-2021 | D167: https://community.secop.gov.co/Public/Tendering/OpportunityDetail/Index?noticeUID=CO1.NTC.1829649&isFromPublicArea=True&isModal=False | E167: Contratos de prestación de servicios profesionales y de apoyo a la gestión | F167: Contratación directa | G167: Prestación de servicios profesionales y de apoyo a la gestión, o para la ejecución de trabajos artísticos que sólo puedan encomendarse a determinadas personas naturales; | H167: LA PRESTACIÓN DE SERVICIOS DE APOYO TÉCNICO AL ÁREA DE GESTIÓN DE DESARROLLO LOCAL, EN PLANEACIÓN, EN LAS ACTIVIDADES ADMINISTRATIVAS QUE SE REQUIERAN. Se expide cdp con certificado de no existencia personal 25721 del 03 de marzo de 2021, solicitud sipse 54432, memorando con solicitud 20216020007293 del 4 de marzo de 2021 y recibe para trámite el 4 de marzo de 2021. SE EXPIDE CRP POR SOLICITUD CON RAD. N° 20216020008203 DEL 08 MARZO-2021SE RECIBE PARA TRAMITE EL 10 DE MARZO REVISADO SECOP II Y SIPSE. | I167: Inversión | J167: Un Nuevo Contrato Social y Ambiental para la Bogotá del Siglo XXI | K167: 57 | L167: Gestión Pública Local | M167: =IF(ISERROR(VLOOKUP(K167,Proposito_programa!$C$2:$E$59,3,FALSE))," ",VLOOKUP(K167,Proposito_programa!$C$2:$E$59,3,FALSE)) -> Propósito 5: Construir Bogotá - Región con gobierno abierto, transparente y ciudadanía consciente | N167: 1623 | O167: 0 | P167: 33101125 | Q167: KARINA SOFIA OVIEDO TORRES | R167: Persona Natural | Y167: 27000000 | AA167: 1 | AB167: 4100000 | AC167: 31100000 | AD167: 26100000 | AE167: 2021-03-09 | AF167: 2021-03-10 | AG167: 2022-01-21 | AH167: 270 | AI167: 1 | AJ167: 22 | AQ167: X | AS167: 0.8392282958
A168: 38 | B168: 2021 | C168: FDLE-CD-38-2021 | D168: https://community.secop.gov.co/Public/Tendering/OpportunityDetail/Index?noticeUID=CO1.NTC.1775666&isFromPublicArea=True&isModal=False | E168: Contratos de prestación de servicios profesionales y de apoyo a la gestión | F168: Contratación directa | G168: Prestación de servicios profesionales y de apoyo a la gestión, o para la ejecución de trabajos artísticos que sólo puedan encomendarse a determinadas personas naturales; | H168: LA PRESTACIÓN DE SERVICIOS TÉCNICOS DE APOYO AL ÁREA DE GESTIÓN DE DESARROLLO LOCAL, EN LAS ACTIVIDADES ADMINISTRATIVAS DE LOS PROYECTOS RELACIONADOS CON EL SECTOR DE INTEGRACIÓN SOCIAL QUE LE SEAN ASIGNADOS. Se expide CDP con certificado de no existencia personal 23815 del 28 de enero 2021, solicitud sipse 55239, memorando con solicitud 20216020001153 y se expide en Febrero 2/2021. SE EXPIDE CRP POR SOLICITUD CON RADICADO N° 20216020004403 FEB.17.2021 SE VERIFICA SECOP II Y SIPSE. RECIBIDO PARA TRAMITE FEB.18.2021 | I168: Inversión | J168: Un Nuevo Contrato Social y Ambiental para la Bogotá del Siglo XXI | K168: 1 | L168: Subsidios y transferencias para la equidad | M168: =IF(ISERROR(VLOOKUP(K168,Proposito_programa!$C$2:$E$59,3,FALSE))," ",VLOOKUP(K168,Proposito_programa!$C$2:$E$59,3,FALSE)) -> Propósito 1: Hacer un nuevo contrato social para incrementar la inclusión social, productiva y política | N168: 1584 | O168: 0 | P168: 1077972907 | Q168: GEIDY MARCELA RODRIGUEZ CASAS | R168: Persona Natural | Y168: 27000000 | AA168: 1 | AB168: 4300000 | AC168: 31300000 | AD168: 28300000 | AE168: 2021-02-17 | AF168: 2021-02-18 | AG168: 2021-12-31 | AH168: 270 | AI168: 1 | AJ168: 44 | AQ168: X | AS168: 0.9041533546
A169: 172 | B169: 2021 | C169: FDLE-CD-172-2021 | D169: https://community.secop.gov.co/Public/Tendering/OpportunityDetail/Index?noticeUID=CO1.NTC.1810352&isFromPublicArea=True&isModal=False | E169: Contratos de prestación de servicios profesionales y de apoyo a la gestión | F169: Contratación directa | G169: Prestación de servicios profesionales y de apoyo a la gestión, o para la ejecución de trabajos artísticos que sólo puedan encomendarse a determinadas personas naturales; | H169: LA PRESTACIÓN DE SERVICIOS TÉCNICOS AL DESPACHO DE LA ALCALDE(SA) LOCAL EN LAS ACTIVIDADES ADMINISTRATIVAS QUE SE REQUIERAN. Se expiden CDP con certificado de No existencia de personal 23926 de fecha 29 de enero de 2021, solicitud SIPSE 54386, memorando con solicitud 20216020002183 recibido para tramite de fecha Feb 08/2021. Se expide crp por solicitud con radicado N° 20216020006633 MAR-01-2021 revisado secop II pendiente sipse. | I169: Inversión | J169: Un Nuevo Contrato Social y Ambiental para la Bogotá del Siglo XXI | K169: 57 | L169: Gestión Pública Local | M169: =IF(ISERROR(VLOOKUP(K169,Proposito_programa!$C$2:$E$59,3,FALSE))," ",VLOOKUP(K169,Proposito_programa!$C$2:$E$59,3,FALSE)) -> Propósito 5: Construir Bogotá - Región con gobierno abierto, transparente y ciudadanía consciente | N169: 1623 | O169: 0 | P169: 1077974196 | Q169: JESSICA VANESA TINOCO SILVA | R169: Persona Natural | Y169: 27000000 | AA169: 2 | AB169: 4800000 | AC169: 31800000 | AD169: 26800000 | AE169: 2021-03-01 | AF169: 2021-03-03 | AG169: 2022-01-21 | AH169: 270 | AI169: 2 | AJ169: 29 | AQ169: X | AS169: 0.8427672956
A170: 240 | B170: 2019 | C170: FDLE-CD-224-2019 | D170: https://www.contratos.gov.co/consultas/detalleProceso.do?numConstancia=19-12-9370646 | E170: Contratos interadministrativos | F170: Contratación directa | G170: Contratos interadministrativos | H170: ADICIÓN Y PRORROGA N° 01, AL CONTRATO 240 DE 2019, QUE TIENE POR OBJETO. PRESTACIÓN DE SERVICIOS DE CORRO CERTIFICADO Y MENSAJERIAEXPRESA PARA COMUNICACIONES EMITIDAS POR LA ALCALDÍA LOCAL DE ENGATIVÁ Y SUS DEPENDENCIAS. REEMPLAZA CDP 1355 POR CONSTITUIRSE COMOOBLIGACION POR PAGAR. Reemplaza CDP 8 por constituirse como obligación por pagar para la vigencia 2021. REEMPLAZA CRP 18 POR CONSTITUIRSE COMO OBLIGACION POR PAGAR PARA LA VIGENCIA 2021. | I170: Funcionamiento | J170: Un Nuevo Contrato Social y Ambiental para la Bogotá del Siglo XXI | N170: FUNC | O170: 0 | P170: 900062917 | Q170: SERVICIOS POSTALES NACIONALES S A | R170: Persona Jurídica | Y170: 0 | AA170: 1 | AB170: 114400 | AC170: 114400 | AD170: 114400 | AE170: 2021-01-19 | AF170: 2021-01-19 | AG170: 2021-01-19 | AQ170: X | AS170: 1
A171: 162 | B171: 2021 | C171: FDLE-SASI-162-2021 | D171: https://community.secop.gov.co/Public/Tendering/OpportunityDetail/Index?noticeUID=CO1.NTC.1830047&isFromPublicArea=True&isModal=False | E171: Suministro | F171: Selección abreviada | G171: Subasta inversa | H171: SUMINISTRAR LOS ELEMENTOS DE PAPELERÍA Y ÚTILES DE OFICINA A MONTO AGOTABLE PARA LAS DIFERENTES ÁREAS DE GESTIÓN DE LA ALCALDIA LOCAL DE ENGATIVÁ, Se expide CDP con memorando 20216020003833 recibido para tramite de fecha Feb 19/2021.Sin sipse. Se expide CRP con solicitud memorando 20216020011893 del 8 de abril de 2021 y se recibe para trámite el 13 de abril de 2021, revisado SECOP II y sipse. | I171: Funcionamiento | J171: Un Nuevo Contrato Social y Ambiental para la Bogotá del Siglo XXI | M171: =IF(ISERROR(VLOOKUP(K171,Proposito_programa!$C$2:$E$59,3,FALSE))," ",VLOOKUP(K171,Proposito_programa!$C$2:$E$59,3,FALSE)) ->  | N171: FUNC | O171: 13 | P171: 830073623 | Q171: KEY MARKET SAS - EN REORGANIZACION | R171: Persona Jurídica | Y171: 300000 | AA171: 0 | AB171: 0 | AC171: 300000 | AD171: 0 | AE171: 2021-04-12 | AF171: 2021-04-13 | AG171: 2022-02-28 | AH171: 240 | AI171: 1 | AJ171: 11 | AP171: X | AS171: 0
A172: 162 | B172: 2021 | C172: FDLE-SASI-162-2021 | D172: https://community.secop.gov.co/Public/Tendering/OpportunityDetail/Index?noticeUID=CO1.NTC.1830047&isFromPublicArea=True&isModal=False | E172: Suministro | F172: Selección abreviada | G172: Subasta inversa | H172: SUMINISTRAR LOS ELEMENTOS DE PAPELERÍA Y ÚTILES DE OFICINA A MONTO AGOTABLE PARA LAS DIFERENTES ÁREAS DE GESTIÓN DE LA ALCALDIA LOCAL DE ENGATIVÁ, Se expide CDP con memorando 20216020003833 recibido para tramite de fecha Feb 19/2021.Sin sipse. Se expide CRP con solicitud memorando 20216020011893 del 8 de abril de 2021 y se recibe para trámite el 13 de abril de 2021, revisado SECOP II y sipse. | I172: Funcionamiento | J172: Un Nuevo Contrato Social y Ambiental para la Bogotá del Siglo XXI | M172: =IF(ISERROR(VLOOKUP(K172,Proposito_programa!$C$2:$E$59,3,FALSE))," ",VLOOKUP(K172,Proposito_programa!$C$2:$E$59,3,FALSE)) ->  | N172: FUNC | O172: 13 | P172: 830073623 | Q172: KEY MARKET SAS - EN REORGANIZACION | R172: Persona Jurídica | Y172: 400000 | AA172: 0 | AB172: 0 | AC172: 400000 | AD172: 0 | AE172: 2021-04-12 | AF172: 2021-04-13 | AG172: 2022-02-28 | AH172: 240 | AI172: 1 | AJ172: 11 | AP172: X | AS172: 0
A173: 282932 | B173: 2018 | C173: CCE-139-IAD-2018 | D173: https://colombiacompra.gov.co/tienda-virtual-del-estado-colombiano/ordenes-compra/78858 | E173: Suministro | F173: Selección abreviada | G173: Acuerdo marco de precios | H173: SERVICIO DE ARRENDAMIENTO DE IMPRESORAS, INCLUIDO EL SOFTWARE DE GESTIÓN DE IMPRESIÓN, PARA LAS DIFERENTES DEPENDENCIAS DE LA ALCALDÍA LOCAL DE ENGATIVÁ, A TRAVÉS DEL ACUERDO MARCO DE PRECIOS CCE-288-1-AMP-2015. SE EXPIDE CDP AOLISITUD DE LA DRA ANGELA VIANNEY ORTIZ ROLDAN CON SOLICITUD RADICADO NUEMRO 20186020013283 DE FECHA 19-04-2018. SE EXPIDE REGISTRO PRESUPUESTAL CON MEMORANDO NUMERO 20186020015193 DE FECHA 10 DE AMYO DE 2018 Y RECIBIDO PAR< TRAMITE DE FECHA 16 DE MAYO DE 2018, ORDEN DE COMPRA, 28293, A TRAVES DEL ACUERDO MARCO DE PRECIOS CCE - 288-1-AMP-2015. SE REEMPLAZA COMO OBLIGACION POR PAGAR 2019 EL CDP 714 DE LA VIGENCIA 2018.SE REEMPLAZA CDP 2 POR CONSTITUIRSE COMO OBLIGACION POR PAGAR. REEMPLAZA EL CRP N° 2.Reemplaza CDP 27 por constituirse como obligación por pagar para la vigencia 2021. REEMPLAZA CRP 43 POR CONSTITUIRSE COMO OBLIGACION POR PAGAR PARA LA VIGENCIA 2021. | I173: Funcionamiento | J173: Un Nuevo Contrato Social y Ambiental para la Bogotá del Siglo XXI | N173: FUNC | O173: 0 | P173: 830001338 | Q173: SUMIMAS S A S | R173: Persona Jurídica | Y173: 416839 | AA173: 0 | AB173: 0 | AC173: 416839 | AD173: 0 | AE173: 2021-01-19 | AF173: 2021-01-19 | AG173: 2021-01-19 | AP173: X | AS173: 0
A174: 362 | B174: 2019 | C174: FDLE-CMA-370-2019 | D174: https://community.secop.gov.co/Public/Tendering/OpportunityDetail/Index?noticeUID=CO1.NTC.903308&isFromPublicArea=True&isModal=False | E174: Interventoría | F174: Concurso de méritos | G174: No aplica | H174: SUMINISTRO DE COMBUSTIBLE PARA VEHICULOS LIVIANOS, PESADOS Y MAQUINARIA AMARILLA DE PROPIEDAD Y/O TENENCIA DEL FONDO DE DESARROLLO LOCAL DE ENGATIVA, QUE GARANTICE EL BUEN DESARROLLO DE LAS ACTIVIDADES DEL PARQUE AUTOMOTOR Y MAQUINARIA AMARILLA DEL FONDO DE DESARROLLO LOCAL DE ENGATIVA A TRAVES DEL ACUERDO AL MARCO DE PRECIOS CCE - 715-1-AMP-2018, POR EL RUBRO DE INVERSION POR VALOR $ 150.688.716 Y POR EL RUBRO DE FUNCIONAMIENTO POR VALOR DE $43.373.172, SE EXPIDE CERTIFICADO DE DISPONIBILIDAD CON MEMORANDOS 20196020011493 Y 20196020011483 RECIBIDOS PARA TRAMITE DE FECHA 08-03-2019, REEMPLAZA CDP 764 POR CONSTITUIRSE COMO OBLIGACION POR PAGAR, REEMPLAZA CRP 774 POR CONSTITUIRSE COMO OBLIGACION POR PAGAR. Reemplaza CDP 4 por constituirse como obligación por pagar para la vigencia 2021. REEMPLAZA CRP 14 POR CONSTITUIRSE COMO OBLIGACION POR PAGAR PARA LA VIGENCIA 2021. | I174: Funcionamiento | J174: Un Nuevo Contrato Social y Ambiental para la Bogotá del Siglo XXI | N174: FUNC | O174: 0 | P174: 830095213 | Q174: ORGANIZACION TERPEL S A | R174: Persona Jurídica | Y174: 824143 | AA174: 0 | AB174: 0 | AC174: =+Y174+Z174+AB174 -> 824143 | AD174: 824143 | AE174: 2021-01-19 | AF174: 2021-01-19 | AG174: 2021-01-19 | AQ174: X | AS174: 1
A175: 57713 | B175: 2020 | C175: CCE-925-AMP-2019 | D175: https://www.colombiacompra.gov.co/tienda-virtual-del-estado-colombiano/ordenes-compra/57713 | E175: Suministro | F175: Selección abreviada | G175: Acuerdo marco de precios | H175: Contratar para la adquisición de equipos tecnológicos para las diferentes dependencias de la alcaldía local de Engativá, Se expide CDP con solicitud SIPSE 51460, memorando con solicitud 20206020039223recibido para tramite de fecha OCT 29/2020. Reemplaza CDP 1342 por constituirse como obligación por pagar para la vigencia 2021. REEMPLAZA CRP 1490 POR CONSTITUIRSE COMO OBLIGACION POR PAGAR PARA LA VIGENCIA 2021. | I175: Funcionamiento | J175: Un Nuevo Contrato Social y Ambiental para la Bogotá del Siglo XXI | N175: FUNC | O175: 0 | P175: 901350187 | Q175: UT VENECOPY 2019 | R175: Unión Temporal | S175: 900491061 | T175: COPYMAS SAS | U175: 0.5 | V175: 900019737 | W175: VENEPLAST LTDA | X175: 0.5 | Y175: 925127 | AA175: 0 | AB175: 0 | AC175: 925127 | AD175: 925127 | AE175: 2021-01-14 | AF175: 2021-01-14 | AG175: 2021-01-14 | AQ175: X | AS175: 1
A176: 206 | B176: 2019 | C176: FDLE-LP-188-2019 | D176: https://community.secop.gov.co/Public/Tendering/OpportunityDetail/Index?noticeUID=CO1.NTC.791001&isFromPublicArea=True&isModal=False | E176: Contratos de prestación de servicios | F176: Licitación pública | G176: No aplica | H176: ADICION Y PRORROGA N° 1 AL CONTRATO 206 DE 2019, CUYO OBJETO ES: CONTRATAR LA PRESTACION DEL SERVICIO INTEGRAL DE VIGILANCIA Y SEGURIDAD PRIVADA, PERMANTE, PARA TODOS LOS BIENES MUEBLES E INMUEBLES DE PROPIEDAD DEL FONDO DE DESARROLLO LOCAL DE ENGATIVA, Y DE TODOS AQUELLOS POR LOS CUALES LLEGARE A SER RESPONSABLE , SE EXPIDE CERTIFICADO DE DISPONIBILIDAD PRESUPUESTAL CON MEMORANDO N° 20196020045823, RECIBIDO PARA TRAMITE DE FECHA 11 DE DICIEMBRE DE 2019. SE REEMPLAZA CDP 1334 POR CONSTITUIRSE COMO OBLIGACION POR PAGAR,SE REEMPLAZA CRP 1494.Reemplaza CDP 15 por constituirse como obligación por pagar para la vigencia 2021. REEMPLAZA CRP 31 POR CONSTITUIRSE COMO OBLIGACION POR PAGAR PARA LA VIGENCIA 2021. | I176: Funcionamiento | J176: Un Nuevo Contrato Social y Ambiental para la Bogotá del Siglo XXI | N176: FUNC | O176: 0 | P176: 891502104 | Q176: COMPAÑIA DE VIGILANCIA COVISUR DE COLOMB IA LTDA. | R176: Persona Jurídica | Y176: 0 | AA176: 1 | AB176: 946164 | AC176: =+Y176+Z176+AB176 -> 946164 | AD176: 0 | AE176: 2021-01-19 | AF176: 2021-01-19 | AG176: 2021-01-19 | AQ176: X | AS176: 0
A177: 162 | B177: 2021 | C177: FDLE-SASI-162-2021 | D177: https://community.secop.gov.co/Public/Tendering/OpportunityDetail/Index?noticeUID=CO1.NTC.1830047&isFromPublicArea=True&isModal=False | E177: Suministro | F177: Selección abreviada | G177: Subasta inversa | H177: SUMINISTRAR LOS ELEMENTOS DE PAPELERÍA Y ÚTILES DE OFICINA A MONTO AGOTABLE PARA LAS DIFERENTES ÁREAS DE GESTIÓN DE LA ALCALDIA LOCAL DE ENGATIVÁ, Se expide CDP con memorando 20216020003833 recibido para tramite de fecha Feb 19/2021.Sin sipse. Se expide CRP con solicitud memorando 20216020011893 del 8 de abril de 2021 y se recibe para trámite el 13 de abril de 2021, revisado SECOP II y sipse. | I177: Funcionamiento | J177: Un Nuevo Contrato Social y Ambiental para la Bogotá del Siglo XXI | M177: =IF(ISERROR(VLOOKUP(K177,Proposito_programa!$C$2:$E$59,3,FALSE))," ",VLOOKUP(K177,Proposito_programa!$C$2:$E$59,3,FALSE)) ->  | N177: FUNC | O177: 13 | P177: 830073623 | Q177: KEY MARKET SAS - EN REORGANIZACION | R177: Persona Jurídica | Y177: 1000000 | AA177: 0 | AB177: 0 | AC177: 1000000 | AD177: 996889 | AE177: 2021-04-12 | AF177: 2021-04-13 | AG177: 2022-02-28 | AH177: 240 | AI177: 1 | AJ177: 11 | AP177: X | AS177: 0.996889
A178: 38128 | B178: 2019 | C178: CCE-427-1-AMP-2016 | D178: https://www.colombiacompra.gov.co/tienda-virtual-del-estado-colombiano/ordenes-compra/38128 | E178: Suministro | F178: Selección abreviada | G178: Acuerdo marco de precios | H178: ADICION Y PRORROGA N°1 A LA ORDEN DE COMPRA 38128 DE 2019, CUYO OOBJETO ES: PRESTAR EL SERVICIO DE INTERNET PARA TODOS LOS INMUEBLES DE PROPIEDAD Y/O TENENCIA DEL FONDO DE DESARROLLO LOCAL DE ENGATIVA, Reemplaza CDP 1016 por constituirse como obligación por pagar. REEMPLAZA CRP 1141 POR CONSTITUIRSE COMO OBLIGACION POR PAGAR PARA LA VIGENCIA 2021. | I178: Funcionamiento | J178: Un Nuevo Contrato Social y Ambiental para la Bogotá del Siglo XXI | N178: FUNC | O178: 0 | P178: 899999115 | Q178: EMPRESA DE TELECOMUNICACIONES DE BOGOTÁ S.A. E.S.P. - ETB S.A. ESP | R178: Persona Jurídica | Y178: 0 | AA178: 1 | AB178: 1113349 | AC178: 1113349 | AD178: 734516 | AE178: 2021-01-19 | AF178: 2021-01-19 | AG178: 2021-01-19 | AQ178: X | AS178: 0.6597356265
A179: 57 | B179: 2021 | C179: FDLE-CD-57-2021 | D179: https://community.secop.gov.co/Public/Tendering/OpportunityDetail/Index?noticeUID=CO1.NTC.1818641&isFromPublicArea=True&isModal=False | E179: Contratos de prestación de servicios profesionales y de apoyo a la gestión | F179: Contratación directa | G179: Prestación de servicios profesionales y de apoyo a la gestión, o para la ejecución de trabajos artísticos que sólo puedan encomendarse a determinadas personas naturales; | H179: APOYAR LAS INSPECCIONES DE POLICÍA CON EL INGRESO DE INFORMACIÓN, USO Y APROPIACIÓN DE LOS SISTEMAS DE INFORMACIÓN VIGENTES DISPUESTOS PARA LAS ACTUACIONES DE POLICÍA. Se expide CDP con certificado con certificado de No existencia de personal 23867 de fecha 29 de enero de 2021, solicitud Sipse 55031, memorando con solicitud 20216020002013 recibido para tramite de fecha Feb 03/2021. SE EXPIDE CRP POR SOLICITID CON RADICADO N°20216020007243 03 DE MAR.2021SE RECIBE PARA TRIMITE EL 05 DE MARZO 2021. | I179: Inversión | J179: Un Nuevo Contrato Social y Ambiental para la Bogotá del Siglo XXI | K179: 57 | L179: Gestión Pública Local | M179: =IF(ISERROR(VLOOKUP(K179,Proposito_programa!$C$2:$E$59,3,FALSE))," ",VLOOKUP(K179,Proposito_programa!$C$2:$E$59,3,FALSE)) -> Propósito 5: Construir Bogotá - Región con gobierno abierto, transparente y ciudadanía consciente | N179: 1624 | O179: 0 | P179: 1014258132 | Q179: CLAUDIA GISELA TORRES RANGEL | R179: Persona Natural | Y179: 27000000 | AA179: 2 | AB179: 5000000 | AC179: 32000000 | AD179: 26600000 | AE179: 2021-03-04 | AF179: 2021-03-05 | AG179: 2022-01-24 | AH179: 270 | AI179: 2 | AJ179: 27 | AQ179: X | AS179: 0.83125
A180: 155 | B180: 2021 | C180: FDLE-CD-155-2021 | D180: https://community.secop.gov.co/Public/Tendering/OpportunityDetail/Index?noticeUID=CO1.NTC.1801224&isFromPublicArea=True&isModal=False | E180: Contratos de prestación de servicios profesionales y de apoyo a la gestión | F180: Contratación directa | G180: Prestación de servicios profesionales y de apoyo a la gestión, o para la ejecución de trabajos artísticos que sólo puedan encomendarse a determinadas personas naturales; | H180: LA PRESTACIÓN DE SERVICIOS TÉCNICOS DE APOYO AL ÁREA DE GESTIÓN DE DESARROLLO LOCAL EN LOS TRÁMITES ADMINISTRATIVOS DE LOS PROYECTOS RELACIONADOS CON MALLA VIAL, ESPACIO PÚBLICO, PARQUES Y/O INFRAESTRUCTURA. Se expide cdp con certificado de no existencia personal 23870 del 28 de enero 2021, solicitud sipse 54611, memorando con solicitud 20216020003283 del 10 de febrero de 2021, y se recibe para trámite el 11 de febrero de 2021. SE EXPIDE CRP POR SOLICITUD CON RADICADO N° 20216020007063 MAR-03-2021 SE RECIBE PARA TRAMITE EL 04 DE MARZO REVISADO SECOP II PENDIENTE SIP | I180: Inversión | J180: Un Nuevo Contrato Social y Ambiental para la Bogotá del Siglo XXI | K180: 49 | L180: Movilidad segura, sostenible y accesible | M180: =IF(ISERROR(VLOOKUP(K180,Proposito_programa!$C$2:$E$59,3,FALSE))," ",VLOOKUP(K180,Proposito_programa!$C$2:$E$59,3,FALSE)) -> Propósito 4: Hacer de Bogotá Región un modelo de movilidad multimodal, incluyente y sostenible | N180: 1621 | O180: 0 | P180: 51876973 | Q180: NUBIA MARGOTH VALLEJO MOLINA | R180: Persona Natural | Y180: 27000000 | AA180: 2 | AB180: 5000000 | AC180: 32000000 | AD180: 26700000 | AE180: 2021-03-01 | AF180: 2021-03-04 | AG180: 2022-01-24 | AH180: 270 | AI180: 2 | AJ180: 28 | AQ180: X | AS180: 0.834375
A181: 171 | B181: 2021 | C181: FDLE-CD-171-2021 | D181: https://community.secop.gov.co/Public/Tendering/OpportunityDetail/Index?noticeUID=CO1.NTC.1807233&isFromPublicArea=True&isModal=False | E181: Contratos de prestación de servicios profesionales y de apoyo a la gestión | F181: Contratación directa | G181: Prestación de servicios profesionales y de apoyo a la gestión, o para la ejecución de trabajos artísticos que sólo puedan encomendarse a determinadas personas naturales; | H181: LA PRESTACIÓN DE SERVICIOS TÉCNICOS DE APOYO AL ÁREA DE GESTIÓN DE DESARROLLO LOCAL EN LOS TRÁMITES ADMINISTRATIVOS DE LOS PROYECTOS RELACIONADOS CON MALLA VIAL, ESPACIO PÚBLICO, PARQUES Y/O INFRAESTRUCTURA. Se expide cdp con certificado de no existencia personal 23870 del 28 de enero 2021, solicitud sipse 54611, memorando con solicitud 20216020003303 del 10 de febrero de 2021, y se recibe para trámite el 11de febrero de 2021. SE EXPIDE CRP POR SOLICTUD CCON RADICADO N° 20216020006733 MAR.03.2021 SE RECIBE PARA TRAMITE EL 04 DE AMRZO 2021. | I181: Inversión | J181: Un Nuevo Contrato Social y Ambiental para la Bogotá del Siglo XXI | K181: 49 | L181: Movilidad segura, sostenible y accesible | M181: =IF(ISERROR(VLOOKUP(K181,Proposito_programa!$C$2:$E$59,3,FALSE))," ",VLOOKUP(K181,Proposito_programa!$C$2:$E$59,3,FALSE)) -> Propósito 4: Hacer de Bogotá Región un modelo de movilidad multimodal, incluyente y sostenible | N181: 1621 | O181: 0 | P181: 1077976182 | Q181: ANDREA VALENTINA LEAL PEREZ | R181: Persona Natural | Y181: 27000000 | AA181: 2 | AB181: 5000000 | AC181: 32000000 | AD181: 26700000 | AE181: 2021-03-01 | AF181: 2021-03-04 | AG181: 2022-01-24 | AH181: 270 | AI181: 2 | AJ181: 28 | AQ181: X | AS181: 0.834375
A182: 322 | B182: 2021 | C182: FDLE-CD-322-2021 | D182: https://community.secop.gov.co/Public/Tendering/OpportunityDetail/Index?noticeUID=CO1.NTC.1971620&isFromPublicArea=True&isModal=False | E182: Contratos de prestación de servicios profesionales y de apoyo a la gestión | F182: Contratación directa | G182: Prestación de servicios profesionales y de apoyo a la gestión, o para la ejecución de trabajos artísticos que sólo puedan encomendarse a determinadas personas naturales; | H182: LA PRESTACIÓN DE SERVICIOS PROFESIONALES DE APOYO AL ÁREA DE GESTIÓN DE DESARROLLO LOCAL, EN LAS ACTIVIDADES RELACIONADAS CON LA EJECUCIÓN<(>,<)> SEGUIMIENTO DE LOS PROYECTOS RELACIONADOS CON REACTIVACIÓN ECONÓMICA, EMPRENDIMIENTO, TURISMO Y PATRIMONIO DE LA LOCALIDAD DE ENGATIVÁ. Se expide cdp con certificado de no existencia personal 26460 del 5 de mayo 2021, solicitud sipse 58735, memorando con solicitud 20216020014113 del 6 de mayo de 2021 y se recibe para trámite el 10 de mayo de 2021. SE EXPIDE CRP POR SOLICITUD CON RAD:20216020015023 DE MAYO 13 2021 SE RECIBE PARA TRAMITE EL 18 DE MAYO 2021 VERIFICADO SECOP Y SIPSE. | I182: Inversión | J182: Un Nuevo Contrato Social y Ambiental para la Bogotá del Siglo XXI | K182: 6 | L182: Sistema Distrital del Cuidado | M182: =IF(ISERROR(VLOOKUP(K182,Proposito_programa!$C$2:$E$59,3,FALSE))," ",VLOOKUP(K182,Proposito_programa!$C$2:$E$59,3,FALSE)) -> Propósito 1: Hacer un nuevo contrato social para incrementar la inclusión social, productiva y política | N182: 1598 | O182: 0 | P182: 1014180521 | Q182: DIANA PAOLA ARENAS MARTINEZ | R182: Persona Natural | Y182: 26220000 | AA182: 1 | AB182: 6263667 | AC182: 32483667 | AD182: 28113667 | AE182: 2021-05-13 | AF182: 2021-05-18 | AG182: 2021-12-31 | AH182: 180 | AI182: 1 | AJ182: 44 | AQ182: X | AS182: 0.8654708534
A183: 112 | B183: 2021 | C183: FDLE-CD-112-2021 | D183: https://community.secop.gov.co/Public/Tendering/OpportunityDetail/Index?noticeUID=CO1.NTC.1795916&isFromPublicArea=True&isModal=False | E183: Contratos de prestación de servicios profesionales y de apoyo a la gestión | F183: Contratación directa | G183: Prestación de servicios profesionales y de apoyo a la gestión, o para la ejecución de trabajos artísticos que sólo puedan encomendarse a determinadas personas naturales; | H183: APOYAR Y DAR SOPORTE TÉCNICO AL ADMINISTRADOR Y USUARIO FINAL DE LA RED DE SISTEMAS Y TECNOLOGÍA E INFORMACIÓN DE LA ALCALDÍA LOCAL. Se expide cdp con certificado de no existencia personal 24247 del 2 febrero 2021, solicitud sipse 54449, memorando con solicitud 20216020002743 y se expide en Febrero 9/2021. SE EXPIDE CRP POR SOLICITUD CON RADICADO N° 20216020006193 FEB. 25 2021 SE RECIBE PARA TRAMITE EL 25 DE FEB-2021 REVISADO SECOP II Y SIPSE. | I183: Inversión | J183: Un Nuevo Contrato Social y Ambiental para la Bogotá del Siglo XXI | K183: 57 | L183: Gestión Pública Local | M183: =IF(ISERROR(VLOOKUP(K183,Proposito_programa!$C$2:$E$59,3,FALSE))," ",VLOOKUP(K183,Proposito_programa!$C$2:$E$59,3,FALSE)) -> Propósito 5: Construir Bogotá - Región con gobierno abierto, transparente y ciudadanía consciente | N183: 1623 | O183: 0 | P183: 1077968770 | Q183: CRISTHIAM CAMILO FERIA PEREZ | R183: Persona Natural | Y183: 27000000 | AA183: 2 | AB183: 5600000 | AC183: 32600000 | AD183: 27600000 | AE183: 2021-02-24 | AF183: 2021-02-25 | AG183: 2022-01-20 | AH183: 270 | AI183: 2 | AJ183: 37 | AQ183: X | AS183: 0.8466257669
A184: 65 | B184: 2021 | C184: FDLE-CD-65-2021 | D184: https://community.secop.gov.co/Public/Tendering/OpportunityDetail/Index?noticeUID=CO1.NTC.1793417&isFromPublicArea=True&isModal=False | E184: Contratos de prestación de servicios profesionales y de apoyo a la gestión | F184: Contratación directa | G184: Prestación de servicios profesionales y de apoyo a la gestión, o para la ejecución de trabajos artísticos que sólo puedan encomendarse a determinadas personas naturales; | H184: LA PRESTACIÓN DE SERVICIOS DE APOYO TÉCNICO AL ÁREA DE GESTIÓN DE DESARROLLO LOCAL, EN EL ALMACÉN, EN LAS LABORES ADMINISTRATIVAS Y OPERATIVAS QUE ALLÍ SE REQUIERAN. Se expide cdp con certificado de no existencia personal 24263 del 2 de febrero de 2021, solicitud de sipse 54393, memorando con solicitud 20216020002793 del 5 de febrero de 2021, y se recibe para trámite el 9 de febrero 2021. SE EXPIDE CRP POR SOLICITUD CON RADICADO N° 20216020005683 FEB. 24 2021 SE RECIBE PARA TRAMITE EL 24 DE FEB-2021 REVISADO SECOP II Y SIPSE. | I184: Inversión | J184: Un Nuevo Contrato Social y Ambiental para la Bogotá del Siglo XXI | K184: 57 | L184: Gestión Pública Local | M184: =IF(ISERROR(VLOOKUP(K184,Proposito_programa!$C$2:$E$59,3,FALSE))," ",VLOOKUP(K184,Proposito_programa!$C$2:$E$59,3,FALSE)) -> Propósito 5: Construir Bogotá - Región con gobierno abierto, transparente y ciudadanía consciente | N184: 1623 | O184: 0 | P184: 80227893 | Q184: JOSE ALEXANDER HERRERA BERDUGO | R184: Persona Natural | Y184: 27000000 | AA184: 2 | AB184: 5700000 | AC184: 32700000 | AD184: 27700000 | AE184: 2021-02-24 | AF184: 2021-02-24 | AG184: 2022-01-20 | AH184: 270 | AI184: 2 | AJ184: 38 | AQ184: X | AS184: 0.8470948012
A185: 448 | B185: 2020 | C185: FDLE-CMA-451-2020 | D185: https://community.secop.gov.co/Public/Tendering/OpportunityDetail/Index?noticeUID=CO1.NTC.1599922&isFromPublicArea=True&isModal=False | E185: Interventoría | F185: Concurso de méritos | G185: No aplica | H185: REALIZAR LA INTERVENTORIA TECNICA, LEGAL, ADMIMISTRATIVA, FINANCIERA YAMBIENTAL AL CONTRATO QUE RESULTE DE LA LICITACIÓN FDLE-LP-442-2020 ,cuyo objeto es “REALIZAR LAS OBRAS DE ADECUACIÓN, REMODELACIÓN ,MANTENIMIENTO DE LA INFRAESTRUCTURA FISICA Y SUMINISTRO E INSTALACIÓN DEMOBILIARIO, EQUIPOS Y ENSERES PARA EL EDIFICIO CENTRO ADMINISTRATIVOLOCAL (CALE) Y EDIFICACIONES DE PROPIEDAD O TENENCIA DEL FONDO DEDESARROLLO LOCAL DE ENGATIVA A MONTO AGOTABLE, CON PRECIOS UNITARIOSFIJOS SIN FORMULA DE REAJUSTE. Se expide cpd para la 1a adición al contrato 448 de 2020, según solicitud sipse 59779 y memorando con solicitud 20216020017563 del 18 de junio de 2021 y se recibe para trámite el 23 de junio de 2021. SE EXPIDE CRP ADICIÓN 01 POR SOLICITUD CON RAD. N° 20216020018153 250621SE RECIBE PARA TRAMITE EL 28 DE JUNIO 2021. | I185: Inversión | J185: Un Nuevo Contrato Social y Ambiental para la Bogotá del Siglo XXI | K185: 57 | L185: Gestión Pública Local | M185: =IF(ISERROR(VLOOKUP(K185,Proposito_programa!$C$2:$E$59,3,FALSE))," ",VLOOKUP(K185,Proposito_programa!$C$2:$E$59,3,FALSE)) -> Propósito 5: Construir Bogotá - Región con gobierno abierto, transparente y ciudadanía consciente | N185: 1623 | O185: 0 | P185: 900965653 | Q185: CONSULTORES, DESARROLLO Y AMBIENTE S A S | R185: Persona Jurídica | Y185: 32911973 | AA185: 0 | AB185: 0 | AC185: 32911973 | AD185: 32911973 | AE185: 2021-01-14 | AF185: 2021-01-14 | AG185: 2021-01-14 | AQ185: X | AS185: 1
A186: 24 | B186: 2021 | C186: FDLE-CD-024-2021 | D186: https://community.secop.gov.co/Public/Tendering/OpportunityDetail/Index?noticeUID=CO1.NTC.1760466&isFromPublicArea=True&isModal=False | E186: Contratos de prestación de servicios profesionales y de apoyo a la gestión | F186: Contratación directa | G186: Prestación de servicios profesionales y de apoyo a la gestión, o para la ejecución de trabajos artísticos que sólo puedan encomendarse a determinadas personas naturales; | H186: LA PRESTACIÓN DE SERVICIOS DE APOYO TÉCNICO AL ÁREA DE GESTIÓN DE DESARROLLO LOCAL, EN CONTRATACIÓN, EN LOS TRÁMITES ADMINISTRATIVOS QUE SE GENERAN EN EL FONDO DE DESARROLLO LOCAL DE ENGATIVÁ. Se expide cdp con certificado de no existencia personal 23918 del 29 de enero 2021, solicitud sipse 54415, memorando con solicitud 20216020002573 y se expide en Febrero 8/2021. SE EXPIDE CRP POR SOLICITUD CON RADIACADO N° 20216020003673 FEB.12.2021 REVISADO SECOP II Y SIPSE. | I186: Inversión | J186: Un Nuevo Contrato Social y Ambiental para la Bogotá del Siglo XXI | K186: 57 | L186: Gestión Pública Local | M186: =IF(ISERROR(VLOOKUP(K186,Proposito_programa!$C$2:$E$59,3,FALSE))," ",VLOOKUP(K186,Proposito_programa!$C$2:$E$59,3,FALSE)) -> Propósito 5: Construir Bogotá - Región con gobierno abierto, transparente y ciudadanía consciente | N186: 1623 | O186: 0 | P186: 1053823043 | Q186: MARIANA SANCHEZ SERNA | R186: Persona Natural | Y186: 27000000 | AA186: 1 | AB186: 6100000 | AC186: 33100000 | AD186: 28900000 | AE186: 2021-02-12 | AF186: 2021-02-12 | AG186: 2022-01-12 | AH186: 270 | AI186: 1 | AJ186: 61 | AQ186: X | AS186: 0.8731117825
A187: 264 | B187: 2021 | C187: FDLE-CD-264-2021 | D187: https://community.secop.gov.co/Public/Tendering/OpportunityDetail/Index?noticeUID=CO1.NTC.1839789&isFromPublicArea=True&isModal=False | E187: Contratos de prestación de servicios profesionales y de apoyo a la gestión | F187: Contratación directa | G187: Prestación de servicios profesionales y de apoyo a la gestión, o para la ejecución de trabajos artísticos que sólo puedan encomendarse a determinadas personas naturales; | H187: COORDINA, LIDERA Y ASESORA LOS PLANES Y ESTRATEGIAS DE COMUNICACIÓN INTERNA Y EXTERNA PARA LA DIVULGACIÓN DE LOS PROGRAMAS, PROYECTOS Y ACTIVIDADES DE LA ALCALDÍA LOCAL. Se expide cdp con certificado de no existencia personal 25265 del 18 de febrero de 2021, solicitud sipse 54438, memorando con solicitud 20216020004863 con fecha del 22 de febrero de 2021 y se recibe para trámite el 24 de febrero de 2021. SE EXPIDE CRP POR SOLICITUD CON RAD. N° 20216020008793 DEL 12 MARZO-2021SE RECIBE PARA TRAMITE EL 15 DE MARZO REVISADO SECOP II Y SIPSE. | I187: Inversión | J187: Un Nuevo Contrato Social y Ambiental para la Bogotá del Siglo XXI | K187: 57 | L187: Gestión Pública Local | M187: =IF(ISERROR(VLOOKUP(K187,Proposito_programa!$C$2:$E$59,3,FALSE))," ",VLOOKUP(K187,Proposito_programa!$C$2:$E$59,3,FALSE)) -> Propósito 5: Construir Bogotá - Región con gobierno abierto, transparente y ciudadanía consciente | N187: 1623 | O187: 0 | P187: 52332622 | Q187: MARTHA DAYANA GOMEZ VELASQUEZ | R187: Persona Natural | Y187: 34075000 | AA187: 0 | AB187: 0 | AC187: 34075000 | AD187: 34075000 | AE187: 2021-03-12 | AF187: 2021-03-15 | AG187: 2021-08-14 | AH187: 150 | AI187: 0 | AJ187: 0 | AQ187: X | AS187: 1
A188: 268 | B188: 2021 | C188: FDLE-CD-268-2021 | D188: https://community.secop.gov.co/Public/Tendering/OpportunityDetail/Index?noticeUID=CO1.NTC.1859000&isFromPublicArea=True&isModal=False | E188: Contratos de prestación de servicios profesionales y de apoyo a la gestión | F188: Contratación directa | G188: Prestación de servicios profesionales y de apoyo a la gestión, o para la ejecución de trabajos artísticos que sólo puedan encomendarse a determinadas personas naturales; | H188: PRESTAR LOS SERVICIOS TÉCNICOS PARA LA OPERACIÓN, SEGUIMIENTO Y CUMPLIMIENTO DE LOS PROCESOS Y PROCEDIMIENTOS DEL SERVICIO APOYOS PARA LA SEGURIDAD ECONÓMICA TIPO C, REQUERIDOS PARA EL OPORTUNO Y ADECUADO REGISTRO, CRUCE Y REPORTE DE LOS DATOS EN EL SISTEMA MISIONAL¿SIRBE, QUE CONTRIBUYAN A LA GARANTÍA DE LOS DERECHOS DE LA POBLACIÓN MAYOR EN EL MARCO DE LA POLÍTICA PÚBLICA SOCIAL PARA EL ENVEJECIMIENTO Y LA VEJEZ EN EL DISTRITO CAPITAL A CARGO DE LA ALCALDÍA LOCAL, DE CONFORMIDAD CON LOS ESTUDIOS PREVIOS. Se expide cdp con certificado de no existencia personal 25355 del 19 de febrero de 2021, solicitud sipse 57169, memorando con solicitud 20216020005973 del 24 de febrero de 2021 y se recibe para trámite el 25 de febrero de 2021. SE EXPIDE CRP POR SOLICITUD CON RAD. N° 20216020010843 DEL 26 MAR.2021 SE RECIBE PARA TRAMITE EL 30 DE MARZO REVISADO SECOP II Y SIPSE. | I188: Inversión | J188: Un Nuevo Contrato Social y Ambiental para la Bogotá del Siglo XXI | K188: 1 | L188: Subsidios y transferencias para la equidad | M188: =IF(ISERROR(VLOOKUP(K188,Proposito_programa!$C$2:$E$59,3,FALSE))," ",VLOOKUP(K188,Proposito_programa!$C$2:$E$59,3,FALSE)) -> Propósito 1: Hacer un nuevo contrato social para incrementar la inclusión social, productiva y política | N188: 1584 | O188: 0 | P188: 1037616223 | Q188: SEBASTIAN MONSALVE PALACIO | R188: Persona Natural | Y188: 34200000 | AA188: 0 | AB188: 0 | AC188: 34200000 | AD188: 29893333 | AE188: 2021-03-24 | AF188: 2021-04-05 | AG188: 2022-01-04 | AH188: 270 | AI188: 0 | AJ188: 0 | AQ188: X | AS188: 0.8740740643
A189: 313 | B189: 2021 | C189: FDLE-CD-313-2021 | D189: https://community.secop.gov.co/Public/Tendering/OpportunityDetail/Index?noticeUID=CO1.NTC.1947231&isFromPublicArea=True&isModal=False | E189: Contratos de prestación de servicios profesionales y de apoyo a la gestión | F189: Contratación directa | G189: Prestación de servicios profesionales y de apoyo a la gestión, o para la ejecución de trabajos artísticos que sólo puedan encomendarse a determinadas personas naturales; | H189: LA PRESTACIÓN DE SERVICIOS PROFESIONALES DE APOYO AL ÁREA DE GESTIÓN DE DESARROLLO LOCAL, EN LAS ACTIVIDADES RELACIONADAS CON LA EJECUCIÓN, SEGUIMIENTO DE LOS PROYECTOS RELACIONADOS CON REACTIVACIÓN ECONÓMICA, EMPRENDIMIENTO, TURISMO Y PATRIMONIO DE LA LOCALIDAD DE ENGATIVÁ. Se expide cdp con certificado de no existencia personal 26130 del 6 de abril 2021, solicitud sipse 58124, memorando con solicitud 20216020012523 del 9 de abril de 2021 y se recibe para trámite el 12 de abril 2021. SE EXPIDE CRP POR SOLICITUD CON RAD.N° 20216020013983 DE MAYO 03 2021 SE VERIFICA SECOP II Y SIPSE. | I189: Inversión | J189: Un Nuevo Contrato Social y Ambiental para la Bogotá del Siglo XXI | K189: 6 | L189: Sistema Distrital del Cuidado | M189: =IF(ISERROR(VLOOKUP(K189,Proposito_programa!$C$2:$E$59,3,FALSE))," ",VLOOKUP(K189,Proposito_programa!$C$2:$E$59,3,FALSE)) -> Propósito 1: Hacer un nuevo contrato social para incrementar la inclusión social, productiva y política | N189: 1598 | O189: 0 | P189: 1102845524 | Q189: KARLA PATRICIA LOZANO BLANCO | R189: Persona Natural | Y189: 30590000 | AA189: 1 | AB189: 3933000 | AC189: 34523000 | AD189: 30153000 | AE189: 2021-05-03 | AF189: 2021-05-04 | AG189: 2021-12-31 | AH189: 210 | AI189: 1 | AJ189: 28 | AQ189: X | AS189: 0.8734177215
A190: 47 | B190: 2021 | C190: FDLE-CD-047-2021 | D190: https://community.secop.gov.co/Public/Tendering/OpportunityDetail/Index?noticeUID=CO1.NTC.1780731&isFromPublicArea=True&isModal=False | E190: Contratos de prestación de servicios profesionales y de apoyo a la gestión | F190: Contratación directa | G190: Prestación de servicios profesionales y de apoyo a la gestión, o para la ejecución de trabajos artísticos que sólo puedan encomendarse a determinadas personas naturales; | H190: APOYAR JURÍDICAMENTE LA EJECUCIÓN DE LAS ACCIONES REQUERIDAS PARA LA DEPURACIÓN DE LAS ACTUACIONES ADMINISTRATIVAS QUE CURSAN EN LA ALCALDÍA LOCAL. Se expide CDP con certificado de No existencia de personal 23908 del 23 de enero de 2021, solicitud SIPSE 55048, memorando con solicitud 20216020001843 recibido para tramite de fecha Feb 03 /2021. SE EXPIDE CRP POR SOLICITUD CON RADICADO N° 20216020004623 FEB.19.2021 SE VERIFICA SECOP II Y SIPSE. | I190: Inversión | J190: Un Nuevo Contrato Social y Ambiental para la Bogotá del Siglo XXI | K190: 57 | L190: Gestión Pública Local | M190: =IF(ISERROR(VLOOKUP(K190,Proposito_programa!$C$2:$E$59,3,FALSE))," ",VLOOKUP(K190,Proposito_programa!$C$2:$E$59,3,FALSE)) -> Propósito 5: Construir Bogotá - Región con gobierno abierto, transparente y ciudadanía consciente | N190: 1624 | O190: 0 | P190: 72283510 | Q190: CARLOS DE JESUS ARIZA ALTAMAR | R190: Persona Natural | Y190: 34960000 | AA190: 0 | AB190: 0 | AC190: 34960000 | AD190: 23161000 | AE190: 2021-02-19 | AF190: 2021-02-22 | AG190: 2021-10-21 | AH190: 240 | AI190: 0 | AJ190: 0 | AQ190: X | AS190: 0.6625
A191: 69 | B191: 2021 | C191: FDLE-CD-69-2021 | D191: https://community.secop.gov.co/Public/Tendering/OpportunityDetail/Index?noticeUID=CO1.NTC.1792339&isFromPublicArea=True&isModal=False | E191: Contratos de prestación de servicios profesionales y de apoyo a la gestión | F191: Contratación directa | G191: Prestación de servicios profesionales y de apoyo a la gestión, o para la ejecución de trabajos artísticos que sólo puedan encomendarse a determinadas personas naturales; | H191: LA PRESTACIÓN DE SERVICIOS DE APOYO PROFESIONAL AL ÁREA DE GESTIÓN DE DESARROLLO LOCAL, EN EL ALMACÉN, EN LAS LABORES QUE ALLÍ SE REQUIERAN. Se expide cdp con certificado de no existencia personal 25213 del 16 de febrero de 2021, solicitud sipse 54390, memorando con solicitud 20216020004263 del 17 de febrero de 2021 y se recibe para trámite el 17 de febrero de 2021. SE EXPIDE CRP POR SOLICITUD CON RADICADO N° 20216020005623 FEB. 23 2021 SE RECIBE PARA TRAIMITE EL 22 DE FEB-2021 REVISADO SECOP II Y SIPSE. | I191: Inversión | J191: Un Nuevo Contrato Social y Ambiental para la Bogotá del Siglo XXI | K191: 57 | L191: Gestión Pública Local | M191: =IF(ISERROR(VLOOKUP(K191,Proposito_programa!$C$2:$E$59,3,FALSE))," ",VLOOKUP(K191,Proposito_programa!$C$2:$E$59,3,FALSE)) -> Propósito 5: Construir Bogotá - Región con gobierno abierto, transparente y ciudadanía consciente | N191: 1623 | O191: 0 | P191: 1110450731 | Q191: ANA MARIA SARMIENTO LEON | R191: Persona Natural | Y191: 34960000 | AA191: 0 | AB191: 0 | AC191: 34960000 | AD191: 34960000 | AE191: 2021-02-23 | AF191: 2021-02-24 | AG191: 2021-10-23 | AH191: 240 | AI191: 0 | AJ191: 0 | AQ191: X | AS191: 1
